Date ,Transaction Number,Amount,Supplier Name,Period,Expense Area,Cipfa(T)
10/08/2017,3881502,"3,000.00",11KBW Ltd,201805,Resources Capital,Capital Expenditure
11/09/2017,3883289,450,123Comms Ltd,201806,Schools,Supplies & Services
27/09/2017,3885460,960,2Faced Dance Company,201806,Schools,Supplies & Services
19/07/2017,3879117,"80,478.50",2Gether NHS Foundation Trust,201804,Commissioning Adults,Third Party Payments
02/08/2017,3880756,"80,478.50",2Gether NHS Foundation Trust,201805,Commissioning Adults,Third Party Payments
11/09/2017,3883528,"80,478.50",2Gether NHS Foundation Trust,201806,Commissioning Adults,Third Party Payments
29/09/2017,3885699,800,2simple Software Ltd,201806,Schools,Supplies & Services
14/07/2017,3878242,"1,236.64",3C Payment (UK) Ltd,201804,Environment and Place,Premises-Related Expenditure
08/08/2017,3881162,"1,412.56",3C Payment (UK) Ltd,201805,Environment and Place,Premises-Related Expenditure
15/09/2017,3883863,"1,374.32",3C Payment (UK) Ltd,201806,Environment and Place,Premises-Related Expenditure
20/07/2017,3878633,575,A & S Landscape,201804,Schools,Premises-Related Expenditure
14/09/2017,3883884,575,A & S Landscape,201806,Schools,Premises-Related Expenditure
01/08/2017,3880634,500,A Rule of Tum Burger Shop Ltd,201805,Growth,Transfer Payments
31/07/2017,3880346,668.36,A4 Office Products Ltd,201804,Communities,Supplies & Services
05/09/2017,3882791,744,A4 Office Products Ltd,201806,Transformation and Safeguarding,Premises-Related Expenditure
06/07/2017,3876877,"19,293.00",Absence Protection Ltd,201804,Schools,Employees
17/08/2017,3881966,584,Absence Protection Ltd,201805,Schools,Employees
08/08/2017,3880986,471,Access Independent Ltd,201805,Communities,Supplies & Services
08/08/2017,3880987,471,Access Independent Ltd,201805,Communities,Supplies & Services
12/09/2017,3883340,843,Access Independent Ltd,201806,Communities,Supplies & Services
26/09/2017,3885407,555,Access Independent Ltd,201806,Communities,Supplies & Services
10/07/2017,3876902,"2,098.00",Ace Coaches & Travel,201804,Environment and Place,Transport-Related Expenditure
10/07/2017,3876903,912,Ace Coaches & Travel,201804,Environment and Place,Transport-Related Expenditure
11/07/2017,3877561,"2,510.00",Ace Coaches & Travel,201804,Environment and Place,Transport-Related Expenditure
11/08/2017,3881564,"1,890.00",Ace Coaches & Travel,201805,Environment and Place,Transport-Related Expenditure
14/08/2017,3881609,"1,573.50",Ace Coaches & Travel,201805,Environment and Place,Transport-Related Expenditure
14/08/2017,3881612,684,Ace Coaches & Travel,201805,Environment and Place,Transport-Related Expenditure
25/07/2017,3879269,430,Ace Health,201804,Schools,Supplies & Services
01/08/2017,3880466,600,Ace Health,201805,Schools,Supplies & Services
11/08/2017,3881434,"2,755.00",Acorns Childrens Hospice Trust,201805,Education and Commissioning,Third Party Payments
14/09/2017,3883939,"4,592.00",Action Centres Uk Ltd,201806,Schools,Supplies & Services
04/07/2017,3876647,505,Activate Central Ltd,201804,Schools,Employees
21/07/2017,3879482,"1,850.00",Activate Central Ltd,201804,Schools,Employees
18/09/2017,3884245,"3,500.00",Activate Central Ltd,201806,Schools,Employees
26/07/2017,3879911,"6,500.00",Activate Central Ltd,201804,Schools,Supplies & Services
19/09/2017,3884322,"1,850.00",Activate Central Ltd,201806,Schools,Supplies & Services
21/09/2017,3884801,"4,500.00",Activate Central Ltd,201806,Schools,Supplies & Services
21/09/2017,3884836,"1,850.00",Activate Central Ltd,201806,Schools,Supplies & Services
29/09/2017,3885690,"1,295.00",Activate Educational Ltd,201806,Schools,Supplies & Services
30/06/2017,3875901,"1,645.00",Active and Fun PE,201804,Schools,Supplies & Services
10/08/2017,3881406,"3,344.20",Active and Fun PE,201805,Schools,Supplies & Services
13/09/2017,3883722,"4,360.00",Active Garden Ltd,201806,Schools,Supplies & Services
31/07/2017,3880288,780,ADCS Ltd,201804,Central Childrens Directorate Costs,Supplies & Services
07/07/2017,2417240,"147,313.06",Addaction,201804,Public Health,Third Party Payments
03/08/2017,2427973,"147,313.06",Addaction,201805,Public Health,Third Party Payments
07/09/2017,2439919,"147,313.06",Addaction,201806,Public Health,Third Party Payments
14/07/2017,3875849,"4,603.05",Adept Telecom PLC,201804,Communities,Supplies & Services
14/07/2017,3875850,"1,875.92",Adept Telecom PLC,201804,Communities,Supplies & Services
26/07/2017,3879861,"4,546.04",Adept Telecom PLC,201804,Communities,Supplies & Services
26/07/2017,3879862,"1,707.47",Adept Telecom PLC,201804,Communities,Supplies & Services
24/08/2017,3882345,"4,107.31",Adept Telecom PLC,201805,Communities,Supplies & Services
24/08/2017,3882346,"1,882.72",Adept Telecom PLC,201805,Communities,Supplies & Services
20/09/2017,3884603,"3,716.39",Adept Telecom PLC,201806,Communities,Supplies & Services
20/09/2017,3884604,"1,745.49",Adept Telecom PLC,201806,Communities,Supplies & Services
04/07/2017,3875771,856,Adult & Child Psychological Assessment Service,201804,Safeguarding and Family Support,Supplies & Services
23/08/2017,3882349,536.07,Advanced Legal Solutions Limited,201805,Communities,Supplies & Services
18/08/2017,3882063,"1,485.00",Aerial - Cam Ltd,201805,Environment and Place,Supplies & Services
18/08/2017,3882064,495,Aerial - Cam Ltd,201805,Environment and Place,Supplies & Services
14/09/2017,3883922,440,Age Concern UK Hereford & Worcester,201806,Physical Disabilities,Third Party Payments
14/09/2017,3883925,480,Age Concern UK Hereford & Worcester,201806,Physical Disabilities,Third Party Payments
03/07/2017,3876194,709.87,Age UK Hereford & Locatities,201804,Public Health,Transfer Payments
13/07/2017,3878057,"2,767.05",Age UK Hereford & Locatities,201804,Public Health,Transfer Payments
22/08/2017,3882180,500,Airey Consultancy Services Ltd,201805,Corporate,Supplies & Services
11/07/2017,3877583,960,Albion Computers PLC,201804,Schools,Supplies & Services
13/09/2017,3883762,871,Albion Computers PLC,201806,Schools,Supplies & Services
21/09/2017,3884732,"3,338.68",Albion Computers PLC,201806,Schools,Supplies & Services
21/09/2017,3884733,"3,350.00",Albion Computers PLC,201806,Schools,Supplies & Services
10/08/2017,3881420,820,Alderman Knight School,201805,Dedicated Schools Grant,Third Party Payments
26/07/2017,3879888,495,Alere  Forensics,201804,Communities,Supplies & Services
15/08/2017,3881801,"1,290.00",Alere  Forensics,201805,Communities,Supplies & Services
18/08/2017,3882072,495,Alere  Forensics,201805,Communities,Supplies & Services
28/09/2017,3885600,470,Alere  Forensics,201806,Communities,Supplies & Services
13/07/2017,3878164,691.32,Aligned Assets Ltd,201804,Communities,Supplies & Services
05/09/2017,3882961,"1,102.53",Aligned Assets Ltd,201806,Communities,Supplies & Services
12/07/2017,3877849,"1,260.00",Alison Lewis,201804,Schools,Supplies & Services
20/07/2017,3879307,583,all pump solutions LLP,201804,Schools,Premises-Related Expenditure
21/07/2017,3879520,600,All Safety Matters Ltd,201804,Schools,Employees
31/07/2017,3880248,440,All Safety Matters Ltd,201804,Schools,Employees
04/07/2017,3876272,775.8,Alliance In Partnership,201804,Schools,Supplies & Services
04/07/2017,3876325,643.5,Alliance In Partnership,201804,Schools,Supplies & Services
04/07/2017,3876326,"3,818.25",Alliance In Partnership,201804,Schools,Supplies & Services
04/07/2017,3876293,"2,501.40",Alliance In Partnership,201804,Schools,Supplies & Services
07/07/2017,3877187,653,Alliance In Partnership,201804,Schools,Supplies & Services
07/07/2017,3877191,"1,388.25",Alliance In Partnership,201804,Schools,Supplies & Services
10/07/2017,3877379,"1,280.00",Alliance In Partnership,201804,Schools,Supplies & Services
10/07/2017,3877413,658,Alliance In Partnership,201804,Schools,Supplies & Services
11/07/2017,3877678,"1,755.00",Alliance In Partnership,201804,Schools,Supplies & Services
11/07/2017,3877723,"1,295.30",Alliance In Partnership,201804,Schools,Supplies & Services
13/07/2017,3878072,"1,854.90",Alliance In Partnership,201804,Schools,Supplies & Services
13/07/2017,3878170,"3,261.20",Alliance In Partnership,201804,Schools,Supplies & Services
13/07/2017,3878170,"1,194.52",Alliance In Partnership,201804,Schools,Supplies & Services
14/07/2017,3878298,"1,572.90",Alliance In Partnership,201804,Schools,Supplies & Services
14/07/2017,3878298,483,Alliance In Partnership,201804,Schools,Supplies & Services
14/07/2017,3878346,"12,511.81",Alliance In Partnership,201804,Schools,Supplies & Services
14/07/2017,3878349,"2,337.75",Alliance In Partnership,201804,Schools,Supplies & Services
14/07/2017,3878059,791.2,Alliance In Partnership,201804,Schools,Supplies & Services
17/07/2017,3878452,"1,317.80",Alliance In Partnership,201804,Schools,Supplies & Services
17/07/2017,3878488,"3,591.30",Alliance In Partnership,201804,Schools,Supplies & Services
17/07/2017,3878563,"2,661.70",Alliance In Partnership,201804,Schools,Supplies & Services
17/07/2017,3878565,"3,175.40",Alliance In Partnership,201804,Schools,Supplies & Services
18/07/2017,3878748,"2,378.25",Alliance In Partnership,201804,Schools,Supplies & Services
18/07/2017,3878489,"2,376.90",Alliance In Partnership,201804,Schools,Supplies & Services
18/07/2017,3878541,"1,298.00",Alliance In Partnership,201804,Schools,Supplies & Services
19/07/2017,3879010,"1,842.75",Alliance In Partnership,201804,Schools,Supplies & Services
20/07/2017,3879170,992.25,Alliance In Partnership,201804,Schools,Supplies & Services
20/07/2017,3878668,"2,245.50",Alliance In Partnership,201804,Schools,Supplies & Services
20/07/2017,3879281,640,Alliance In Partnership,201804,Schools,Supplies & Services
21/07/2017,3879558,"1,606.35",Alliance In Partnership,201804,Schools,Supplies & Services
21/07/2017,3879580,"1,870.20",Alliance In Partnership,201804,Schools,Supplies & Services
24/07/2017,3879635,900,Alliance In Partnership,201804,Schools,Supplies & Services
25/07/2017,3879831,673.2,Alliance In Partnership,201804,Schools,Supplies & Services
26/07/2017,3879885,744.5,Alliance In Partnership,201804,Schools,Supplies & Services
27/07/2017,3879962,"1,042.80",Alliance In Partnership,201804,Schools,Supplies & Services
27/07/2017,3879967,"8,403.30",Alliance In Partnership,201804,Schools,Supplies & Services
27/07/2017,3879968,"1,930.00",Alliance In Partnership,201804,Schools,Supplies & Services
27/07/2017,3879930,866.25,Alliance In Partnership,201804,Schools,Supplies & Services
27/07/2017,3879931,"4,007.25",Alliance In Partnership,201804,Schools,Supplies & Services
27/07/2017,3879997,870.75,Alliance In Partnership,201804,Schools,Supplies & Services
27/07/2017,3879997,443.25,Alliance In Partnership,201804,Schools,Supplies & Services
27/07/2017,3879999,"1,725.75",Alliance In Partnership,201804,Schools,Supplies & Services
27/07/2017,3880026,"1,776.78",Alliance In Partnership,201804,Schools,Supplies & Services
27/07/2017,3880027,547.8,Alliance In Partnership,201804,Schools,Supplies & Services
27/07/2017,3880028,"2,866.60",Alliance In Partnership,201804,Schools,Supplies & Services
27/07/2017,3880029,779.2,Alliance In Partnership,201804,Schools,Supplies & Services
27/07/2017,3880035,"1,496.00",Alliance In Partnership,201804,Schools,Supplies & Services
28/07/2017,3880050,524.25,Alliance In Partnership,201804,Schools,Supplies & Services
28/07/2017,3880051,"1,851.75",Alliance In Partnership,201804,Schools,Supplies & Services
01/08/2017,3880534,900.8,Alliance In Partnership,201805,Schools,Supplies & Services
01/08/2017,3880539,"1,338.60",Alliance In Partnership,201805,Schools,Supplies & Services
02/08/2017,3880736,"6,218.74",Alliance In Partnership,201805,Schools,Supplies & Services
09/08/2017,3880935,"2,692.80",Alliance In Partnership,201805,Schools,Supplies & Services
09/08/2017,3880936,"1,432.20",Alliance In Partnership,201805,Schools,Supplies & Services
15/08/2017,3881751,495,Alliance In Partnership,201805,Schools,Supplies & Services
21/08/2017,3882145,"1,154.60",Alliance In Partnership,201805,Schools,Supplies & Services
22/08/2017,3882271,657.8,Alliance In Partnership,201805,Schools,Supplies & Services
23/08/2017,3882330,941.9,Alliance In Partnership,201805,Schools,Supplies & Services
23/08/2017,3882384,"1,534.50",Alliance In Partnership,201805,Schools,Supplies & Services
25/08/2017,3882469,"1,433.25",Alliance In Partnership,201805,Schools,Supplies & Services
25/08/2017,3882470,740.25,Alliance In Partnership,201805,Schools,Supplies & Services
25/08/2017,3882471,681.75,Alliance In Partnership,201805,Schools,Supplies & Services
30/08/2017,3880604,"1,163.25",Alliance In Partnership,201805,Schools,Supplies & Services
31/08/2017,3882754,"1,576.08",Alliance In Partnership,201806,Schools,Supplies & Services
06/09/2017,3883025,682.9,Alliance In Partnership,201806,Schools,Supplies & Services
07/09/2017,3882759,511.2,Alliance In Partnership,201806,Schools,Supplies & Services
08/09/2017,3883272,804.35,Alliance In Partnership,201806,Schools,Supplies & Services
11/09/2017,3883294,"1,977.80",Alliance In Partnership,201806,Schools,Supplies & Services
11/09/2017,3883294,"1,331.40",Alliance In Partnership,201806,Schools,Supplies & Services
11/09/2017,3883510,438.75,Alliance In Partnership,201806,Schools,Supplies & Services
13/09/2017,3883682,"4,141.00",Alliance In Partnership,201806,Schools,Supplies & Services
13/09/2017,3883683,"3,107.40",Alliance In Partnership,201806,Schools,Supplies & Services
13/09/2017,3883692,749.25,Alliance In Partnership,201806,Schools,Supplies & Services
20/09/2017,3884761,810,Alliance In Partnership,201806,Schools,Supplies & Services
21/09/2017,3884741,"1,028.25",Alliance In Partnership,201806,Schools,Supplies & Services
25/09/2017,3884638,569.25,Alliance In Partnership,201806,Schools,Supplies & Services
27/09/2017,3885416,"2,066.10",Alliance In Partnership,201806,Schools,Supplies & Services
27/09/2017,3885420,766.7,Alliance In Partnership,201806,Schools,Supplies & Services
29/09/2017,3885664,"1,810.80",Alliance In Partnership,201806,Schools,Supplies & Services
29/09/2017,3885665,886.8,Alliance In Partnership,201806,Schools,Supplies & Services
10/07/2017,3876604,449,Allpay Ltd  (Direct Debit only),201804,Environment and Place,Supplies & Services
10/07/2017,3877363,470.24,Allpay Ltd  (Direct Debit only),201804,Resources,Supplies & Services
10/08/2017,3880787,522.33,Allstar Business Solutions (Direct Debit only),201805,Environment and Place,Transport-Related Expenditure
04/07/2017,3876654,744.34,Allstar Business Solutions Ltd (Arval),201804,Environment and Place,Transport-Related Expenditure
31/07/2017,3880376,613.47,Allstar Business Solutions Ltd (Arval),201804,Environment and Place,Transport-Related Expenditure
07/08/2017,3881215,539.04,Allstar Business Solutions Ltd (Arval),201805,Environment and Place,Transport-Related Expenditure
21/08/2017,3882239,428.07,Allstar Business Solutions Ltd (Arval),201805,Environment and Place,Transport-Related Expenditure
25/09/2017,3885158,698.13,Allstar Business Solutions Ltd (Arval),201806,Environment and Place,Transport-Related Expenditure
29/09/2017,3885490,"4,955.00",Allwag Promotions Ltd,201806,Environment and Place,Supplies & Services
27/09/2017,3883662,659.46,ALS Environmental Ltd,201806,Environment and Place,Supplies & Services
27/09/2017,3883663,435.45,ALS Environmental Ltd,201806,Environment and Place,Supplies & Services
06/07/2017,3876849,"1,019.20",ALS Life Sciences Ltd (Direct Debit),201804,Environment and Place,Supplies & Services
13/07/2017,3877470,419.67,ALS Life Sciences Ltd (Direct Debit),201804,Environment and Place,Supplies & Services
26/07/2017,3879634,902.39,ALS Life Sciences Ltd (Direct Debit),201804,Environment and Place,Supplies & Services
31/07/2017,3879633,754.5,ALS Life Sciences Ltd (Direct Debit),201804,Environment and Place,Supplies & Services
07/08/2017,3881034,"1,132.86",ALS Life Sciences Ltd (Direct Debit),201805,Environment and Place,Supplies & Services
17/07/2017,3878345,"17,484.41",Altodigital Networks  Ltd,201804,Resources,Supplies & Services
19/09/2017,3884531,674.7,Altodigital Networks  Ltd,201806,Resources,Supplies & Services
27/09/2017,3881124,"58,094.15",Altodigital Networks  Ltd,201806,Resources,Supplies & Services
24/07/2017,3879609,458.68,Altodigital Networks  Ltd,201804,Schools,Supplies & Services
06/09/2017,3883023,"1,387.74",Altodigital Networks  Ltd,201806,Schools,Supplies & Services
06/09/2017,3883024,449.05,Altodigital Networks  Ltd,201806,Schools,Supplies & Services
20/07/2017,3879237,"376,367.87",Alun Griffiths  Contractors  Ltd,201804,Commissioning Capital,Capital Expenditure
08/08/2017,3881339,"656,634.09",Alun Griffiths  Contractors  Ltd,201805,Commissioning Capital,Capital Expenditure
05/09/2017,3882857,420,Anchor of Hope Counselling,201806,Education and Commissioning,Supplies & Services
18/07/2017,3878688,"5,145.00",Anglia Stairlifts Ltd,201804,Housing & Independent Living Capital,Capital Expenditure
21/07/2017,3879458,"3,745.00",Anglia Stairlifts Ltd,201804,Housing & Independent Living Capital,Capital Expenditure
04/08/2017,3880910,"3,695.00",Anglia Stairlifts Ltd,201805,Housing & Independent Living Capital,Capital Expenditure
08/08/2017,3881264,"3,715.00",Anglia Stairlifts Ltd,201805,Housing & Independent Living Capital,Capital Expenditure
11/07/2017,3877431,"4,019.57",Ann Skipper Planning,201804,Growth,Third Party Payments
03/07/2017,3876205,"1,012.54",Apogee Corporation Ltd,201804,Schools,Supplies & Services
07/07/2017,3877289,856.81,Apogee Corporation Ltd,201804,Schools,Supplies & Services
03/07/2017,3876287,"1,617.00",Aquaid (Midlands & South Wales),201804,Schools,Supplies & Services
14/09/2017,3883860,630,Aquaid (Midlands & South Wales),201806,Schools,Supplies & Services
10/07/2017,3877368,"2,042.00",Aquarium CMS Ltd (Direct Debit),201804,Integrated Commissioning,Capital Expenditure
26/09/2017,3885383,"4,408.25",Arc4 Ltd,201806,Growth,Supplies & Services
14/09/2017,3883898,"1,205.90",Arkle Finance Ltd,201806,Schools,Supplies & Services
14/09/2017,3883900,"1,055.90",Arkle Finance Ltd,201806,Schools,Supplies & Services
15/08/2017,3881725,"5,301.25",Arriva Trains Wales Ltd,201805,Environment and Place,Transport-Related Expenditure
23/08/2017,3882374,"7,412.70",Arriva Trains Wales Ltd,201805,Environment and Place,Transport-Related Expenditure
05/09/2017,3882248,"6,494.70",Arriva Trains Wales Ltd,201806,Environment and Place,Transport-Related Expenditure
05/09/2017,3882249,"5,480.95",Arriva Trains Wales Ltd,201806,Environment and Place,Transport-Related Expenditure
05/09/2017,3882251,"8,414.40",Arriva Trains Wales Ltd,201806,Environment and Place,Transport-Related Expenditure
05/09/2017,3882252,"5,336.70",Arriva Trains Wales Ltd,201806,Environment and Place,Transport-Related Expenditure
05/09/2017,3882253,"5,959.85",Arriva Trains Wales Ltd,201806,Environment and Place,Transport-Related Expenditure
05/09/2017,3882255,"7,215.00",Arriva Trains Wales Ltd,201806,Environment and Place,Transport-Related Expenditure
05/09/2017,3882256,"5,348.20",Arriva Trains Wales Ltd,201806,Environment and Place,Transport-Related Expenditure
19/09/2017,3884465,420,Ascari Catering,201806,Communities,Supplies & Services
11/07/2017,3877844,"1,052.05",Asda Stores Ltd,201804,Public Health,Supplies & Services
10/08/2017,3881514,466.95,Asda Stores Ltd,201805,Public Health,Supplies & Services
20/07/2017,2421513,650,Ashfield Park Primary School,201804,Children & Young People Capital,Capital Income
21/08/2017,2433518,650,Ashfield Park Primary School,201805,Children & Young People Capital,Capital Income
18/09/2017,2443051,650,Ashfield Park Primary School,201806,Children & Young People Capital,Capital Income
11/07/2017,3877843,"2,511.00",Ashfords LLP,201804,Communities,Supplies & Services
15/08/2017,3881743,"4,608.00",Ashfords LLP,201805,Communities,Supplies & Services
06/09/2017,3883035,"1,920.00",Ashfords LLP,201806,Communities,Supplies & Services
19/07/2017,2420731,475,Ashperton Primary Academy,201804,Dedicated Schools Grant,Support Services
19/07/2017,2420791,475,Ashperton Primary Academy,201804,Dedicated Schools Grant,Support Services
19/07/2017,2420855,475,Ashperton Primary Academy,201804,Dedicated Schools Grant,Support Services
19/07/2017,2420856,475,Ashperton Primary Academy,201804,Dedicated Schools Grant,Support Services
22/08/2017,2434035,475,Ashperton Primary Academy,201805,Dedicated Schools Grant,Support Services
22/08/2017,2434094,475,Ashperton Primary Academy,201805,Dedicated Schools Grant,Support Services
22/08/2017,2434145,475,Ashperton Primary Academy,201805,Dedicated Schools Grant,Support Services
22/08/2017,2434146,475,Ashperton Primary Academy,201805,Dedicated Schools Grant,Support Services
18/09/2017,2443172,475,Ashperton Primary Academy,201806,Dedicated Schools Grant,Support Services
18/09/2017,2443225,475,Ashperton Primary Academy,201806,Dedicated Schools Grant,Support Services
18/09/2017,2443264,475,Ashperton Primary Academy,201806,Dedicated Schools Grant,Support Services
06/07/2017,3877075,"1,400.00",Ashperton Primary Academy,201804,Schools,Supplies & Services
29/08/2017,3882494,"1,060.50",Aspire Living Ltd,201805,Commissioning Adults,Employees
19/09/2017,3884200,"1,060.50",Aspire Living Ltd,201806,Commissioning Adults,Employees
23/08/2017,3882350,"1,911.67",Aspire Living Ltd,201805,Public Health,Transfer Payments
24/08/2017,3882428,450,Association For Care Training (ACT),201805,Adults Operations,Supplies & Services
03/07/2017,3876240,"2,200.00",Association Of Directors Of Public Health (UK),201804,Public Health,Supplies & Services
23/08/2017,3882354,"1,759.53",Association Of Electoral Administrators,201805,Communities,Employees
14/08/2017,3881665,"1,585.00",Association Of Electoral Administrators,201805,Communities,Supplies & Services
10/07/2017,3877376,"4,576.00",Astons Coaches,201804,Environment and Place,Third Party Payments
20/07/2017,3879153,809.42,Astons Coaches,201804,Environment and Place,Third Party Payments
20/07/2017,3879160,"9,081.14",Astons Coaches,201804,Environment and Place,Third Party Payments
20/07/2017,3879161,580.82,Astons Coaches,201804,Environment and Place,Third Party Payments
17/08/2017,3881929,572.02,Astons Coaches,201805,Environment and Place,Third Party Payments
17/08/2017,3881931,"8,179.48",Astons Coaches,201805,Environment and Place,Third Party Payments
17/08/2017,3881942,879.53,Astons Coaches,201805,Environment and Place,Third Party Payments
14/09/2017,3883937,929.53,Astons Coaches,201806,Environment and Place,Third Party Payments
14/09/2017,3883946,"6,137.83",Astons Coaches,201806,Environment and Place,Third Party Payments
14/09/2017,3883947,700.35,Astons Coaches,201806,Environment and Place,Third Party Payments
03/07/2017,3876540,"16,659.00",Ategi Ltd,201804,Commissioning Adults,Third Party Payments
01/08/2017,3880537,"16,659.00",Ategi Ltd,201805,Commissioning Adults,Third Party Payments
11/09/2017,3883453,"16,659.00",Ategi Ltd,201806,Commissioning Adults,Third Party Payments
07/08/2017,3881028,"3,750.00",Audio Impressions,201805,Public Health,Supplies & Services
06/07/2017,3876954,560,B & B Services Ltd,201804,Housing & Independent Living Capital,Capital Expenditure
07/08/2017,3881173,"3,590.00",B & B Services Ltd,201805,Housing & Independent Living Capital,Capital Expenditure
18/08/2017,3882050,"3,685.00",B & B Services Ltd,201805,Housing & Independent Living Capital,Capital Expenditure
19/09/2017,3884451,"14,234.75",B & B Services Ltd,201806,Housing & Independent Living Capital,Capital Expenditure
05/07/2017,3876792,950,B & H Cars,201804,Learning Disabilities,Transport-Related Expenditure
06/07/2017,3876885,"1,050.00",B & H Cars,201804,Learning Disabilities,Transport-Related Expenditure
06/07/2017,3876886,"1,000.00",B & H Cars,201804,Learning Disabilities,Transport-Related Expenditure
06/07/2017,3876956,"1,710.00",B & H Cars,201804,Learning Disabilities,Transport-Related Expenditure
12/07/2017,3877930,"1,710.00",B & H Cars,201804,Learning Disabilities,Transport-Related Expenditure
19/07/2017,3878957,"1,000.00",B & H Cars,201804,Learning Disabilities,Transport-Related Expenditure
19/07/2017,3878982,"1,140.00",B & H Cars,201804,Learning Disabilities,Transport-Related Expenditure
08/09/2017,3883273,"1,050.00",B & H Cars,201806,Learning Disabilities,Transport-Related Expenditure
26/09/2017,3885331,"1,938.00",B & H Cars,201806,Learning Disabilities,Transport-Related Expenditure
28/09/2017,3885528,900,B & H Cars,201806,Learning Disabilities,Transport-Related Expenditure
19/07/2017,2420627,475,BAE Trust T/A The Hereford Academy,201804,Dedicated Schools Grant,Support Services
19/07/2017,2420707,475,BAE Trust T/A The Hereford Academy,201804,Dedicated Schools Grant,Support Services
19/07/2017,2420725,475,BAE Trust T/A The Hereford Academy,201804,Dedicated Schools Grant,Support Services
19/07/2017,2420868,764.17,BAE Trust T/A The Hereford Academy,201804,Dedicated Schools Grant,Support Services
19/07/2017,2420878,475,BAE Trust T/A The Hereford Academy,201804,Dedicated Schools Grant,Support Services
22/08/2017,2433931,475,BAE Trust T/A The Hereford Academy,201805,Dedicated Schools Grant,Support Services
22/08/2017,2434011,475,BAE Trust T/A The Hereford Academy,201805,Dedicated Schools Grant,Support Services
22/08/2017,2434157,764.17,BAE Trust T/A The Hereford Academy,201805,Dedicated Schools Grant,Support Services
22/08/2017,2434167,475,BAE Trust T/A The Hereford Academy,201805,Dedicated Schools Grant,Support Services
18/09/2017,2443150,475,BAE Trust T/A The Hereford Academy,201806,Dedicated Schools Grant,Support Services
18/09/2017,2443272,764.17,BAE Trust T/A The Hereford Academy,201806,Dedicated Schools Grant,Support Services
18/09/2017,2443281,475,BAE Trust T/A The Hereford Academy,201806,Dedicated Schools Grant,Support Services
18/09/2017,2443401,475,BAE Trust T/A The Hereford Academy,201806,Dedicated Schools Grant,Support Services
18/09/2017,2443407,475,BAE Trust T/A The Hereford Academy,201806,Dedicated Schools Grant,Support Services
18/09/2017,2443436,764.17,BAE Trust T/A The Hereford Academy,201806,Dedicated Schools Grant,Support Services
18/09/2017,2443442,475,BAE Trust T/A The Hereford Academy,201806,Dedicated Schools Grant,Support Services
19/07/2017,2421069,475,BAET T/A Bodenham St Michael's CE Primary School,201804,Dedicated Schools Grant,Support Services
22/08/2017,2434283,475,BAET T/A Bodenham St Michael's CE Primary School,201805,Dedicated Schools Grant,Support Services
18/09/2017,2443373,475,BAET T/A Bodenham St Michael's CE Primary School,201806,Dedicated Schools Grant,Support Services
18/09/2017,2443424,475,BAET T/A Bodenham St Michael's CE Primary School,201806,Dedicated Schools Grant,Support Services
11/07/2017,3877553,"3,809,028.97",Balfour Beatty Living Places Ltd,201804,Holding Codes,Holding Codes
10/08/2017,3881414,"1,960,762.75",Balfour Beatty Living Places Ltd,201805,Holding Codes,Holding Codes
11/09/2017,3883291,"2,646,839.37",Balfour Beatty Living Places Ltd,201806,Holding Codes,Holding Codes
31/07/2017,3880368,750,Barnsley Bate Ltd,201804,Environment and Place,Supplies & Services
08/08/2017,3880940,625.56,Barrettine Environmental Health,201805,Environment and Place,Supplies & Services
12/09/2017,3883482,784.84,Barrettine Environmental Health,201806,Environment and Place,Supplies & Services
19/07/2017,2420633,"1,079.17",Barrs Court Academy,201804,Dedicated Schools Grant,Support Services
19/07/2017,2420634,"1,079.17",Barrs Court Academy,201804,Dedicated Schools Grant,Support Services
19/07/2017,2420635,"1,079.17",Barrs Court Academy,201804,Dedicated Schools Grant,Support Services
19/07/2017,2420636,475,Barrs Court Academy,201804,Dedicated Schools Grant,Support Services
19/07/2017,2420637,764.17,Barrs Court Academy,201804,Dedicated Schools Grant,Support Services
19/07/2017,2420638,764.17,Barrs Court Academy,201804,Dedicated Schools Grant,Support Services
19/07/2017,2420639,475,Barrs Court Academy,201804,Dedicated Schools Grant,Support Services
19/07/2017,2420640,764.17,Barrs Court Academy,201804,Dedicated Schools Grant,Support Services
19/07/2017,2420641,"1,079.17",Barrs Court Academy,201804,Dedicated Schools Grant,Support Services
19/07/2017,2420642,"1,079.17",Barrs Court Academy,201804,Dedicated Schools Grant,Support Services
19/07/2017,2420643,764.17,Barrs Court Academy,201804,Dedicated Schools Grant,Support Services
19/07/2017,2420644,"1,079.17",Barrs Court Academy,201804,Dedicated Schools Grant,Support Services
19/07/2017,2420645,475,Barrs Court Academy,201804,Dedicated Schools Grant,Support Services
19/07/2017,2420646,"1,438.33",Barrs Court Academy,201804,Dedicated Schools Grant,Support Services
19/07/2017,2420647,764.17,Barrs Court Academy,201804,Dedicated Schools Grant,Support Services
19/07/2017,2420648,764.17,Barrs Court Academy,201804,Dedicated Schools Grant,Support Services
19/07/2017,2420649,"1,079.17",Barrs Court Academy,201804,Dedicated Schools Grant,Support Services
19/07/2017,2420650,764.17,Barrs Court Academy,201804,Dedicated Schools Grant,Support Services
19/07/2017,2420651,764.17,Barrs Court Academy,201804,Dedicated Schools Grant,Support Services
19/07/2017,2420652,475,Barrs Court Academy,201804,Dedicated Schools Grant,Support Services
19/07/2017,2420653,"1,079.17",Barrs Court Academy,201804,Dedicated Schools Grant,Support Services
19/07/2017,2420654,"1,079.17",Barrs Court Academy,201804,Dedicated Schools Grant,Support Services
19/07/2017,2420655,764.17,Barrs Court Academy,201804,Dedicated Schools Grant,Support Services
19/07/2017,2420656,764.17,Barrs Court Academy,201804,Dedicated Schools Grant,Support Services
19/07/2017,2420657,"1,079.17",Barrs Court Academy,201804,Dedicated Schools Grant,Support Services
19/07/2017,2420658,"1,079.17",Barrs Court Academy,201804,Dedicated Schools Grant,Support Services
19/07/2017,2420659,764.17,Barrs Court Academy,201804,Dedicated Schools Grant,Support Services
19/07/2017,2420660,"1,438.33",Barrs Court Academy,201804,Dedicated Schools Grant,Support Services
19/07/2017,2420661,"1,079.17",Barrs Court Academy,201804,Dedicated Schools Grant,Support Services
19/07/2017,2420662,475,Barrs Court Academy,201804,Dedicated Schools Grant,Support Services
19/07/2017,2420663,764.17,Barrs Court Academy,201804,Dedicated Schools Grant,Support Services
19/07/2017,2420664,475,Barrs Court Academy,201804,Dedicated Schools Grant,Support Services
19/07/2017,2420665,475,Barrs Court Academy,201804,Dedicated Schools Grant,Support Services
19/07/2017,2420666,475,Barrs Court Academy,201804,Dedicated Schools Grant,Support Services
19/07/2017,2420667,764.17,Barrs Court Academy,201804,Dedicated Schools Grant,Support Services
19/07/2017,2420668,764.17,Barrs Court Academy,201804,Dedicated Schools Grant,Support Services
19/07/2017,2420669,"1,079.17",Barrs Court Academy,201804,Dedicated Schools Grant,Support Services
19/07/2017,2420670,764.17,Barrs Court Academy,201804,Dedicated Schools Grant,Support Services
19/07/2017,2420671,764.17,Barrs Court Academy,201804,Dedicated Schools Grant,Support Services
19/07/2017,2420672,764.17,Barrs Court Academy,201804,Dedicated Schools Grant,Support Services
19/07/2017,2420673,"1,079.17",Barrs Court Academy,201804,Dedicated Schools Grant,Support Services
19/07/2017,2420674,"1,079.17",Barrs Court Academy,201804,Dedicated Schools Grant,Support Services
19/07/2017,2420675,"1,079.17",Barrs Court Academy,201804,Dedicated Schools Grant,Support Services
19/07/2017,2420676,"1,079.17",Barrs Court Academy,201804,Dedicated Schools Grant,Support Services
19/07/2017,2420677,"1,438.33",Barrs Court Academy,201804,Dedicated Schools Grant,Support Services
19/07/2017,2420678,"1,079.17",Barrs Court Academy,201804,Dedicated Schools Grant,Support Services
19/07/2017,2420679,"1,079.17",Barrs Court Academy,201804,Dedicated Schools Grant,Support Services
19/07/2017,2420680,"1,438.33",Barrs Court Academy,201804,Dedicated Schools Grant,Support Services
19/07/2017,2420681,764.17,Barrs Court Academy,201804,Dedicated Schools Grant,Support Services
19/07/2017,2420682,764.17,Barrs Court Academy,201804,Dedicated Schools Grant,Support Services
19/07/2017,2420683,764.17,Barrs Court Academy,201804,Dedicated Schools Grant,Support Services
19/07/2017,2420684,764.17,Barrs Court Academy,201804,Dedicated Schools Grant,Support Services
19/07/2017,2420710,475,Barrs Court Academy,201804,Dedicated Schools Grant,Support Services
19/07/2017,2420711,"1,079.17",Barrs Court Academy,201804,Dedicated Schools Grant,Support Services
19/07/2017,2420712,"1,438.33",Barrs Court Academy,201804,Dedicated Schools Grant,Support Services
19/07/2017,2420713,"1,079.17",Barrs Court Academy,201804,Dedicated Schools Grant,Support Services
19/07/2017,2420714,764.17,Barrs Court Academy,201804,Dedicated Schools Grant,Support Services
19/07/2017,2420715,764.17,Barrs Court Academy,201804,Dedicated Schools Grant,Support Services
19/07/2017,2420716,"1,079.17",Barrs Court Academy,201804,Dedicated Schools Grant,Support Services
19/07/2017,2420717,475,Barrs Court Academy,201804,Dedicated Schools Grant,Support Services
19/07/2017,2420718,475,Barrs Court Academy,201804,Dedicated Schools Grant,Support Services
19/07/2017,2420719,475,Barrs Court Academy,201804,Dedicated Schools Grant,Support Services
19/07/2017,2420720,475,Barrs Court Academy,201804,Dedicated Schools Grant,Support Services
19/07/2017,2420721,"1,079.17",Barrs Court Academy,201804,Dedicated Schools Grant,Support Services
19/07/2017,2420722,"1,079.17",Barrs Court Academy,201804,Dedicated Schools Grant,Support Services
19/07/2017,2420728,475,Barrs Court Academy,201804,Dedicated Schools Grant,Support Services
19/07/2017,2420729,764.17,Barrs Court Academy,201804,Dedicated Schools Grant,Support Services
19/07/2017,2420730,764.17,Barrs Court Academy,201804,Dedicated Schools Grant,Support Services
19/07/2017,2420736,475,Barrs Court Academy,201804,Dedicated Schools Grant,Support Services
19/07/2017,2420745,"1,079.17",Barrs Court Academy,201804,Dedicated Schools Grant,Support Services
19/07/2017,2420759,475,Barrs Court Academy,201804,Dedicated Schools Grant,Support Services
19/07/2017,2420760,475,Barrs Court Academy,201804,Dedicated Schools Grant,Support Services
19/07/2017,2420761,475,Barrs Court Academy,201804,Dedicated Schools Grant,Support Services
19/07/2017,2420762,"1,079.17",Barrs Court Academy,201804,Dedicated Schools Grant,Support Services
19/07/2017,2420767,475,Barrs Court Academy,201804,Dedicated Schools Grant,Support Services
19/07/2017,2420769,"1,079.17",Barrs Court Academy,201804,Dedicated Schools Grant,Support Services
19/07/2017,2420770,475,Barrs Court Academy,201804,Dedicated Schools Grant,Support Services
19/07/2017,2420771,475,Barrs Court Academy,201804,Dedicated Schools Grant,Support Services
19/07/2017,2420777,475,Barrs Court Academy,201804,Dedicated Schools Grant,Support Services
19/07/2017,2420778,764.17,Barrs Court Academy,201804,Dedicated Schools Grant,Support Services
19/07/2017,2420779,475,Barrs Court Academy,201804,Dedicated Schools Grant,Support Services
19/07/2017,2420780,475,Barrs Court Academy,201804,Dedicated Schools Grant,Support Services
19/07/2017,2420833,475,Barrs Court Academy,201804,Dedicated Schools Grant,Support Services
19/07/2017,2420847,475,Barrs Court Academy,201804,Dedicated Schools Grant,Support Services
19/07/2017,2420848,"1,079.17",Barrs Court Academy,201804,Dedicated Schools Grant,Support Services
19/07/2017,2420849,764.17,Barrs Court Academy,201804,Dedicated Schools Grant,Support Services
19/07/2017,2420872,475,Barrs Court Academy,201804,Dedicated Schools Grant,Support Services
19/07/2017,2420881,"1,438.33",Barrs Court Academy,201804,Dedicated Schools Grant,Support Services
19/07/2017,2420882,475,Barrs Court Academy,201804,Dedicated Schools Grant,Support Services
19/07/2017,2420901,764.17,Barrs Court Academy,201804,Dedicated Schools Grant,Support Services
19/07/2017,2420911,"1,079.17",Barrs Court Academy,201804,Dedicated Schools Grant,Support Services
19/07/2017,2420916,764.17,Barrs Court Academy,201804,Dedicated Schools Grant,Support Services
19/07/2017,2420917,764.17,Barrs Court Academy,201804,Dedicated Schools Grant,Support Services
19/07/2017,2420918,"1,079.17",Barrs Court Academy,201804,Dedicated Schools Grant,Support Services
19/07/2017,2420919,764.17,Barrs Court Academy,201804,Dedicated Schools Grant,Support Services
19/07/2017,2420920,"1,079.17",Barrs Court Academy,201804,Dedicated Schools Grant,Support Services
19/07/2017,2420921,"1,079.17",Barrs Court Academy,201804,Dedicated Schools Grant,Support Services
19/07/2017,2420922,"1,079.17",Barrs Court Academy,201804,Dedicated Schools Grant,Support Services
19/07/2017,2420923,764.17,Barrs Court Academy,201804,Dedicated Schools Grant,Support Services
19/07/2017,2420925,764.17,Barrs Court Academy,201804,Dedicated Schools Grant,Support Services
19/07/2017,2421034,"1,438.33",Barrs Court Academy,201804,Dedicated Schools Grant,Support Services
19/07/2017,2421044,764.17,Barrs Court Academy,201804,Dedicated Schools Grant,Support Services
19/07/2017,2421056,764.17,Barrs Court Academy,201804,Dedicated Schools Grant,Support Services
19/07/2017,2421068,475,Barrs Court Academy,201804,Dedicated Schools Grant,Support Services
19/07/2017,2421070,764.17,Barrs Court Academy,201804,Dedicated Schools Grant,Support Services
19/07/2017,2421073,"1,079.17",Barrs Court Academy,201804,Dedicated Schools Grant,Support Services
19/07/2017,2421074,"1,079.17",Barrs Court Academy,201804,Dedicated Schools Grant,Support Services
22/08/2017,2433937,"1,079.17",Barrs Court Academy,201805,Dedicated Schools Grant,Support Services
22/08/2017,2433938,"1,079.17",Barrs Court Academy,201805,Dedicated Schools Grant,Support Services
22/08/2017,2433939,"1,079.17",Barrs Court Academy,201805,Dedicated Schools Grant,Support Services
22/08/2017,2433940,475,Barrs Court Academy,201805,Dedicated Schools Grant,Support Services
22/08/2017,2433941,764.17,Barrs Court Academy,201805,Dedicated Schools Grant,Support Services
22/08/2017,2433942,764.17,Barrs Court Academy,201805,Dedicated Schools Grant,Support Services
22/08/2017,2433943,475,Barrs Court Academy,201805,Dedicated Schools Grant,Support Services
22/08/2017,2433944,764.17,Barrs Court Academy,201805,Dedicated Schools Grant,Support Services
22/08/2017,2433945,"1,079.17",Barrs Court Academy,201805,Dedicated Schools Grant,Support Services
22/08/2017,2433946,"1,079.17",Barrs Court Academy,201805,Dedicated Schools Grant,Support Services
22/08/2017,2433947,764.17,Barrs Court Academy,201805,Dedicated Schools Grant,Support Services
22/08/2017,2433948,"1,079.17",Barrs Court Academy,201805,Dedicated Schools Grant,Support Services
22/08/2017,2433949,475,Barrs Court Academy,201805,Dedicated Schools Grant,Support Services
22/08/2017,2433950,"1,438.33",Barrs Court Academy,201805,Dedicated Schools Grant,Support Services
22/08/2017,2433951,764.17,Barrs Court Academy,201805,Dedicated Schools Grant,Support Services
22/08/2017,2433952,764.17,Barrs Court Academy,201805,Dedicated Schools Grant,Support Services
22/08/2017,2433953,"1,079.17",Barrs Court Academy,201805,Dedicated Schools Grant,Support Services
22/08/2017,2433954,764.17,Barrs Court Academy,201805,Dedicated Schools Grant,Support Services
22/08/2017,2433955,764.17,Barrs Court Academy,201805,Dedicated Schools Grant,Support Services
22/08/2017,2433956,475,Barrs Court Academy,201805,Dedicated Schools Grant,Support Services
22/08/2017,2433957,"1,079.17",Barrs Court Academy,201805,Dedicated Schools Grant,Support Services
22/08/2017,2433958,"1,079.17",Barrs Court Academy,201805,Dedicated Schools Grant,Support Services
22/08/2017,2433959,764.17,Barrs Court Academy,201805,Dedicated Schools Grant,Support Services
22/08/2017,2433960,764.17,Barrs Court Academy,201805,Dedicated Schools Grant,Support Services
22/08/2017,2433961,"1,079.17",Barrs Court Academy,201805,Dedicated Schools Grant,Support Services
22/08/2017,2433962,"1,079.17",Barrs Court Academy,201805,Dedicated Schools Grant,Support Services
22/08/2017,2433963,764.17,Barrs Court Academy,201805,Dedicated Schools Grant,Support Services
22/08/2017,2433964,"1,438.33",Barrs Court Academy,201805,Dedicated Schools Grant,Support Services
22/08/2017,2433965,"1,079.17",Barrs Court Academy,201805,Dedicated Schools Grant,Support Services
22/08/2017,2433966,475,Barrs Court Academy,201805,Dedicated Schools Grant,Support Services
22/08/2017,2433967,764.17,Barrs Court Academy,201805,Dedicated Schools Grant,Support Services
22/08/2017,2433968,475,Barrs Court Academy,201805,Dedicated Schools Grant,Support Services
22/08/2017,2433969,475,Barrs Court Academy,201805,Dedicated Schools Grant,Support Services
22/08/2017,2433970,475,Barrs Court Academy,201805,Dedicated Schools Grant,Support Services
22/08/2017,2433971,764.17,Barrs Court Academy,201805,Dedicated Schools Grant,Support Services
22/08/2017,2433972,764.17,Barrs Court Academy,201805,Dedicated Schools Grant,Support Services
22/08/2017,2433973,"1,079.17",Barrs Court Academy,201805,Dedicated Schools Grant,Support Services
22/08/2017,2433974,764.17,Barrs Court Academy,201805,Dedicated Schools Grant,Support Services
22/08/2017,2433975,764.17,Barrs Court Academy,201805,Dedicated Schools Grant,Support Services
22/08/2017,2433976,764.17,Barrs Court Academy,201805,Dedicated Schools Grant,Support Services
22/08/2017,2433977,"1,079.17",Barrs Court Academy,201805,Dedicated Schools Grant,Support Services
22/08/2017,2433978,"1,079.17",Barrs Court Academy,201805,Dedicated Schools Grant,Support Services
22/08/2017,2433979,"1,079.17",Barrs Court Academy,201805,Dedicated Schools Grant,Support Services
22/08/2017,2433980,"1,079.17",Barrs Court Academy,201805,Dedicated Schools Grant,Support Services
22/08/2017,2433981,"1,438.33",Barrs Court Academy,201805,Dedicated Schools Grant,Support Services
22/08/2017,2433982,"1,079.17",Barrs Court Academy,201805,Dedicated Schools Grant,Support Services
22/08/2017,2433983,"1,079.17",Barrs Court Academy,201805,Dedicated Schools Grant,Support Services
22/08/2017,2433984,"1,438.33",Barrs Court Academy,201805,Dedicated Schools Grant,Support Services
22/08/2017,2433985,764.17,Barrs Court Academy,201805,Dedicated Schools Grant,Support Services
22/08/2017,2433986,764.17,Barrs Court Academy,201805,Dedicated Schools Grant,Support Services
22/08/2017,2433987,764.17,Barrs Court Academy,201805,Dedicated Schools Grant,Support Services
22/08/2017,2433988,764.17,Barrs Court Academy,201805,Dedicated Schools Grant,Support Services
22/08/2017,2434014,475,Barrs Court Academy,201805,Dedicated Schools Grant,Support Services
22/08/2017,2434015,"1,079.17",Barrs Court Academy,201805,Dedicated Schools Grant,Support Services
22/08/2017,2434016,"1,438.33",Barrs Court Academy,201805,Dedicated Schools Grant,Support Services
22/08/2017,2434017,"1,079.17",Barrs Court Academy,201805,Dedicated Schools Grant,Support Services
22/08/2017,2434018,764.17,Barrs Court Academy,201805,Dedicated Schools Grant,Support Services
22/08/2017,2434019,764.17,Barrs Court Academy,201805,Dedicated Schools Grant,Support Services
22/08/2017,2434020,"1,079.17",Barrs Court Academy,201805,Dedicated Schools Grant,Support Services
22/08/2017,2434021,475,Barrs Court Academy,201805,Dedicated Schools Grant,Support Services
22/08/2017,2434022,475,Barrs Court Academy,201805,Dedicated Schools Grant,Support Services
22/08/2017,2434023,475,Barrs Court Academy,201805,Dedicated Schools Grant,Support Services
22/08/2017,2434025,"1,079.17",Barrs Court Academy,201805,Dedicated Schools Grant,Support Services
22/08/2017,2434026,"1,079.17",Barrs Court Academy,201805,Dedicated Schools Grant,Support Services
22/08/2017,2434032,475,Barrs Court Academy,201805,Dedicated Schools Grant,Support Services
22/08/2017,2434033,764.17,Barrs Court Academy,201805,Dedicated Schools Grant,Support Services
22/08/2017,2434034,764.17,Barrs Court Academy,201805,Dedicated Schools Grant,Support Services
22/08/2017,2434040,475,Barrs Court Academy,201805,Dedicated Schools Grant,Support Services
22/08/2017,2434049,"1,079.17",Barrs Court Academy,201805,Dedicated Schools Grant,Support Services
22/08/2017,2434063,475,Barrs Court Academy,201805,Dedicated Schools Grant,Support Services
22/08/2017,2434064,475,Barrs Court Academy,201805,Dedicated Schools Grant,Support Services
22/08/2017,2434065,475,Barrs Court Academy,201805,Dedicated Schools Grant,Support Services
22/08/2017,2434066,"1,079.17",Barrs Court Academy,201805,Dedicated Schools Grant,Support Services
22/08/2017,2434071,475,Barrs Court Academy,201805,Dedicated Schools Grant,Support Services
22/08/2017,2434073,"1,079.17",Barrs Court Academy,201805,Dedicated Schools Grant,Support Services
22/08/2017,2434074,475,Barrs Court Academy,201805,Dedicated Schools Grant,Support Services
22/08/2017,2434075,475,Barrs Court Academy,201805,Dedicated Schools Grant,Support Services
22/08/2017,2434081,475,Barrs Court Academy,201805,Dedicated Schools Grant,Support Services
22/08/2017,2434082,764.17,Barrs Court Academy,201805,Dedicated Schools Grant,Support Services
22/08/2017,2434083,475,Barrs Court Academy,201805,Dedicated Schools Grant,Support Services
22/08/2017,2434084,475,Barrs Court Academy,201805,Dedicated Schools Grant,Support Services
22/08/2017,2434124,475,Barrs Court Academy,201805,Dedicated Schools Grant,Support Services
22/08/2017,2434137,475,Barrs Court Academy,201805,Dedicated Schools Grant,Support Services
22/08/2017,2434138,"1,079.17",Barrs Court Academy,201805,Dedicated Schools Grant,Support Services
22/08/2017,2434139,764.17,Barrs Court Academy,201805,Dedicated Schools Grant,Support Services
22/08/2017,2434161,475,Barrs Court Academy,201805,Dedicated Schools Grant,Support Services
22/08/2017,2434170,"1,438.33",Barrs Court Academy,201805,Dedicated Schools Grant,Support Services
22/08/2017,2434171,475,Barrs Court Academy,201805,Dedicated Schools Grant,Support Services
22/08/2017,2434188,764.17,Barrs Court Academy,201805,Dedicated Schools Grant,Support Services
22/08/2017,2434198,"1,079.17",Barrs Court Academy,201805,Dedicated Schools Grant,Support Services
22/08/2017,2434201,764.17,Barrs Court Academy,201805,Dedicated Schools Grant,Support Services
22/08/2017,2434202,764.17,Barrs Court Academy,201805,Dedicated Schools Grant,Support Services
22/08/2017,2434203,"1,079.17",Barrs Court Academy,201805,Dedicated Schools Grant,Support Services
22/08/2017,2434204,764.17,Barrs Court Academy,201805,Dedicated Schools Grant,Support Services
22/08/2017,2434205,"1,079.17",Barrs Court Academy,201805,Dedicated Schools Grant,Support Services
22/08/2017,2434206,"1,079.17",Barrs Court Academy,201805,Dedicated Schools Grant,Support Services
22/08/2017,2434207,"1,079.17",Barrs Court Academy,201805,Dedicated Schools Grant,Support Services
22/08/2017,2434208,764.17,Barrs Court Academy,201805,Dedicated Schools Grant,Support Services
22/08/2017,2434210,764.17,Barrs Court Academy,201805,Dedicated Schools Grant,Support Services
22/08/2017,2434252,"1,438.33",Barrs Court Academy,201805,Dedicated Schools Grant,Support Services
22/08/2017,2434261,764.17,Barrs Court Academy,201805,Dedicated Schools Grant,Support Services
22/08/2017,2434271,764.17,Barrs Court Academy,201805,Dedicated Schools Grant,Support Services
22/08/2017,2434282,475,Barrs Court Academy,201805,Dedicated Schools Grant,Support Services
22/08/2017,2434284,764.17,Barrs Court Academy,201805,Dedicated Schools Grant,Support Services
22/08/2017,2434286,"1,079.17",Barrs Court Academy,201805,Dedicated Schools Grant,Support Services
22/08/2017,2434287,"1,079.17",Barrs Court Academy,201805,Dedicated Schools Grant,Support Services
22/08/2017,2434298,"1,357.66",Barrs Court Academy,201805,Dedicated Schools Grant,Support Services
18/09/2017,3884121,"3,208.35",Barrs Court Academy,201806,Dedicated Schools Grant,Support Services
18/09/2017,2443091,"1,079.17",Barrs Court Academy,201806,Dedicated Schools Grant,Support Services
18/09/2017,2443092,"1,079.17",Barrs Court Academy,201806,Dedicated Schools Grant,Support Services
18/09/2017,2443093,"1,079.17",Barrs Court Academy,201806,Dedicated Schools Grant,Support Services
18/09/2017,2443094,475,Barrs Court Academy,201806,Dedicated Schools Grant,Support Services
18/09/2017,2443095,764.17,Barrs Court Academy,201806,Dedicated Schools Grant,Support Services
18/09/2017,2443096,764.17,Barrs Court Academy,201806,Dedicated Schools Grant,Support Services
18/09/2017,2443097,475,Barrs Court Academy,201806,Dedicated Schools Grant,Support Services
18/09/2017,2443098,764.17,Barrs Court Academy,201806,Dedicated Schools Grant,Support Services
18/09/2017,2443099,"1,079.17",Barrs Court Academy,201806,Dedicated Schools Grant,Support Services
18/09/2017,2443100,"1,079.17",Barrs Court Academy,201806,Dedicated Schools Grant,Support Services
18/09/2017,2443101,764.17,Barrs Court Academy,201806,Dedicated Schools Grant,Support Services
18/09/2017,2443102,"1,079.17",Barrs Court Academy,201806,Dedicated Schools Grant,Support Services
18/09/2017,2443103,475,Barrs Court Academy,201806,Dedicated Schools Grant,Support Services
18/09/2017,2443104,"1,438.33",Barrs Court Academy,201806,Dedicated Schools Grant,Support Services
18/09/2017,2443105,764.17,Barrs Court Academy,201806,Dedicated Schools Grant,Support Services
18/09/2017,2443106,764.17,Barrs Court Academy,201806,Dedicated Schools Grant,Support Services
18/09/2017,2443107,"1,079.17",Barrs Court Academy,201806,Dedicated Schools Grant,Support Services
18/09/2017,2443108,764.17,Barrs Court Academy,201806,Dedicated Schools Grant,Support Services
18/09/2017,2443109,764.17,Barrs Court Academy,201806,Dedicated Schools Grant,Support Services
18/09/2017,2443110,475,Barrs Court Academy,201806,Dedicated Schools Grant,Support Services
18/09/2017,2443111,"1,079.17",Barrs Court Academy,201806,Dedicated Schools Grant,Support Services
18/09/2017,2443112,764.17,Barrs Court Academy,201806,Dedicated Schools Grant,Support Services
18/09/2017,2443113,764.17,Barrs Court Academy,201806,Dedicated Schools Grant,Support Services
18/09/2017,2443114,"1,079.17",Barrs Court Academy,201806,Dedicated Schools Grant,Support Services
18/09/2017,2443115,"1,079.17",Barrs Court Academy,201806,Dedicated Schools Grant,Support Services
18/09/2017,2443116,"1,079.17",Barrs Court Academy,201806,Dedicated Schools Grant,Support Services
18/09/2017,2443117,764.17,Barrs Court Academy,201806,Dedicated Schools Grant,Support Services
18/09/2017,2443118,764.17,Barrs Court Academy,201806,Dedicated Schools Grant,Support Services
18/09/2017,2443119,764.17,Barrs Court Academy,201806,Dedicated Schools Grant,Support Services
18/09/2017,2443120,"1,079.17",Barrs Court Academy,201806,Dedicated Schools Grant,Support Services
18/09/2017,2443121,"1,079.17",Barrs Court Academy,201806,Dedicated Schools Grant,Support Services
18/09/2017,2443122,"1,079.17",Barrs Court Academy,201806,Dedicated Schools Grant,Support Services
18/09/2017,2443123,"1,079.17",Barrs Court Academy,201806,Dedicated Schools Grant,Support Services
18/09/2017,2443124,"1,438.33",Barrs Court Academy,201806,Dedicated Schools Grant,Support Services
18/09/2017,2443125,"1,079.17",Barrs Court Academy,201806,Dedicated Schools Grant,Support Services
18/09/2017,2443126,"1,079.17",Barrs Court Academy,201806,Dedicated Schools Grant,Support Services
18/09/2017,2443127,"1,438.33",Barrs Court Academy,201806,Dedicated Schools Grant,Support Services
18/09/2017,2443128,764.17,Barrs Court Academy,201806,Dedicated Schools Grant,Support Services
18/09/2017,2443129,764.17,Barrs Court Academy,201806,Dedicated Schools Grant,Support Services
18/09/2017,2443130,764.17,Barrs Court Academy,201806,Dedicated Schools Grant,Support Services
18/09/2017,2443131,764.17,Barrs Court Academy,201806,Dedicated Schools Grant,Support Services
18/09/2017,2443153,475,Barrs Court Academy,201806,Dedicated Schools Grant,Support Services
18/09/2017,2443154,"1,079.17",Barrs Court Academy,201806,Dedicated Schools Grant,Support Services
18/09/2017,2443155,"1,438.33",Barrs Court Academy,201806,Dedicated Schools Grant,Support Services
18/09/2017,2443156,"1,079.17",Barrs Court Academy,201806,Dedicated Schools Grant,Support Services
18/09/2017,2443157,764.17,Barrs Court Academy,201806,Dedicated Schools Grant,Support Services
18/09/2017,2443158,764.17,Barrs Court Academy,201806,Dedicated Schools Grant,Support Services
18/09/2017,2443159,"1,079.17",Barrs Court Academy,201806,Dedicated Schools Grant,Support Services
18/09/2017,2443160,475,Barrs Court Academy,201806,Dedicated Schools Grant,Support Services
18/09/2017,2443161,475,Barrs Court Academy,201806,Dedicated Schools Grant,Support Services
18/09/2017,2443162,475,Barrs Court Academy,201806,Dedicated Schools Grant,Support Services
18/09/2017,2443163,"1,079.17",Barrs Court Academy,201806,Dedicated Schools Grant,Support Services
18/09/2017,2443164,"1,079.17",Barrs Court Academy,201806,Dedicated Schools Grant,Support Services
18/09/2017,2443169,475,Barrs Court Academy,201806,Dedicated Schools Grant,Support Services
18/09/2017,2443170,764.17,Barrs Court Academy,201806,Dedicated Schools Grant,Support Services
18/09/2017,2443171,764.17,Barrs Court Academy,201806,Dedicated Schools Grant,Support Services
18/09/2017,2443177,475,Barrs Court Academy,201806,Dedicated Schools Grant,Support Services
18/09/2017,2443185,"1,079.17",Barrs Court Academy,201806,Dedicated Schools Grant,Support Services
18/09/2017,2443198,475,Barrs Court Academy,201806,Dedicated Schools Grant,Support Services
18/09/2017,2443199,475,Barrs Court Academy,201806,Dedicated Schools Grant,Support Services
18/09/2017,2443200,475,Barrs Court Academy,201806,Dedicated Schools Grant,Support Services
18/09/2017,2443201,"1,079.17",Barrs Court Academy,201806,Dedicated Schools Grant,Support Services
18/09/2017,2443206,475,Barrs Court Academy,201806,Dedicated Schools Grant,Support Services
18/09/2017,2443208,"1,079.17",Barrs Court Academy,201806,Dedicated Schools Grant,Support Services
18/09/2017,2443209,475,Barrs Court Academy,201806,Dedicated Schools Grant,Support Services
18/09/2017,2443210,475,Barrs Court Academy,201806,Dedicated Schools Grant,Support Services
18/09/2017,2443216,475,Barrs Court Academy,201806,Dedicated Schools Grant,Support Services
18/09/2017,2443217,475,Barrs Court Academy,201806,Dedicated Schools Grant,Support Services
18/09/2017,2443218,475,Barrs Court Academy,201806,Dedicated Schools Grant,Support Services
18/09/2017,2443246,475,Barrs Court Academy,201806,Dedicated Schools Grant,Support Services
18/09/2017,2443256,475,Barrs Court Academy,201806,Dedicated Schools Grant,Support Services
18/09/2017,2443257,"1,079.17",Barrs Court Academy,201806,Dedicated Schools Grant,Support Services
18/09/2017,2443258,764.17,Barrs Court Academy,201806,Dedicated Schools Grant,Support Services
18/09/2017,2443276,475,Barrs Court Academy,201806,Dedicated Schools Grant,Support Services
18/09/2017,2443284,"1,438.33",Barrs Court Academy,201806,Dedicated Schools Grant,Support Services
18/09/2017,2443285,475,Barrs Court Academy,201806,Dedicated Schools Grant,Support Services
18/09/2017,2443302,764.17,Barrs Court Academy,201806,Dedicated Schools Grant,Support Services
18/09/2017,2443311,"1,079.17",Barrs Court Academy,201806,Dedicated Schools Grant,Support Services
18/09/2017,2443314,764.17,Barrs Court Academy,201806,Dedicated Schools Grant,Support Services
18/09/2017,2443315,764.17,Barrs Court Academy,201806,Dedicated Schools Grant,Support Services
18/09/2017,2443316,"1,079.17",Barrs Court Academy,201806,Dedicated Schools Grant,Support Services
18/09/2017,2443317,764.17,Barrs Court Academy,201806,Dedicated Schools Grant,Support Services
18/09/2017,2443318,"1,079.17",Barrs Court Academy,201806,Dedicated Schools Grant,Support Services
18/09/2017,2443319,"1,079.17",Barrs Court Academy,201806,Dedicated Schools Grant,Support Services
18/09/2017,2443320,"1,079.17",Barrs Court Academy,201806,Dedicated Schools Grant,Support Services
18/09/2017,2443321,764.17,Barrs Court Academy,201806,Dedicated Schools Grant,Support Services
18/09/2017,2443351,"1,438.33",Barrs Court Academy,201806,Dedicated Schools Grant,Support Services
18/09/2017,2443356,764.17,Barrs Court Academy,201806,Dedicated Schools Grant,Support Services
18/09/2017,2443364,764.17,Barrs Court Academy,201806,Dedicated Schools Grant,Support Services
18/09/2017,2443372,475,Barrs Court Academy,201806,Dedicated Schools Grant,Support Services
18/09/2017,2443374,764.17,Barrs Court Academy,201806,Dedicated Schools Grant,Support Services
18/09/2017,2443376,"1,079.17",Barrs Court Academy,201806,Dedicated Schools Grant,Support Services
18/09/2017,2443377,"1,079.17",Barrs Court Academy,201806,Dedicated Schools Grant,Support Services
18/09/2017,2443388,"1,079.17",Barrs Court Academy,201806,Dedicated Schools Grant,Support Services
18/09/2017,2443393,475,Barrs Court Academy,201806,Dedicated Schools Grant,Support Services
18/09/2017,2443402,475,Barrs Court Academy,201806,Dedicated Schools Grant,Support Services
18/09/2017,2443414,475,Barrs Court Academy,201806,Dedicated Schools Grant,Support Services
18/09/2017,2443415,475,Barrs Court Academy,201806,Dedicated Schools Grant,Support Services
18/09/2017,2443416,475,Barrs Court Academy,201806,Dedicated Schools Grant,Support Services
18/09/2017,2443417,"1,079.17",Barrs Court Academy,201806,Dedicated Schools Grant,Support Services
18/09/2017,2443418,"1,079.17",Barrs Court Academy,201806,Dedicated Schools Grant,Support Services
18/09/2017,2443419,"1,079.17",Barrs Court Academy,201806,Dedicated Schools Grant,Support Services
18/09/2017,2443420,475,Barrs Court Academy,201806,Dedicated Schools Grant,Support Services
18/09/2017,2443421,475,Barrs Court Academy,201806,Dedicated Schools Grant,Support Services
18/09/2017,2443422,764.17,Barrs Court Academy,201806,Dedicated Schools Grant,Support Services
18/09/2017,2443438,"2,850.00",Barrs Court Academy,201806,Dedicated Schools Grant,Support Services
16/08/2017,3881789,"3,944.25",Barton Hyett Associates Ltd,201805,Environment and Place,Third Party Payments
17/08/2017,3881832,"3,926.25",Barton Hyett Associates Ltd,201805,Environment and Place,Third Party Payments
07/09/2017,3883117,"1,520.55",Barton Hyett Associates Ltd,201806,Environment and Place,Third Party Payments
11/07/2017,3877705,500,Be Bold Media Ltd,201804,Growth,Supplies & Services
08/08/2017,3880828,425,Be Bold Media Ltd,201805,Growth,Supplies & Services
07/08/2017,3881122,"1,200.00",Bearwood Associates Ltd,201805,Growth,Supplies & Services
26/09/2017,3885408,"2,175.60",Bedrock Learning Ltd,201806,Schools,Supplies & Services
03/08/2017,2427926,"1,045.00",Beech House Nursery School,201805,Dedicated Schools Grant,Transfer Payments
20/07/2017,3879314,750,Behaviour Support Team (BST),201804,Schools,Employees
13/09/2017,3883665,975,Behaviour Support Team (BST),201806,Schools,Supplies & Services
22/08/2017,3882263,"5,000.00",Belmont Medical Centre,201805,Public Health,Supplies & Services
03/07/2017,3876297,"1,190.70",Bemrose Booth,201804,Environment and Place,Supplies & Services
28/07/2017,2424022,441.7,Benefits Immediate Payments,201804,Corporate,Transfer Payments
01/09/2017,2438819,595,Benefits Immediate Payments,201805,Corporate,Transfer Payments
27/09/2017,3885426,"5,896.00",Berrymans Lace Mawer Llp,201806,Resources,Supplies & Services
06/07/2017,3877063,"10,341.22",Bertram Trading Ltd,201804,Communities,Supplies & Services
11/07/2017,3877718,"1,195.55",Bertram Trading Ltd,201804,Communities,Supplies & Services
11/07/2017,3877743,520.41,Bertram Trading Ltd,201804,Communities,Supplies & Services
11/07/2017,3877752,965.67,Bertram Trading Ltd,201804,Communities,Supplies & Services
04/08/2017,3881046,435.59,Bertram Trading Ltd,201805,Communities,Supplies & Services
04/08/2017,3881048,"5,539.65",Bertram Trading Ltd,201805,Communities,Supplies & Services
08/08/2017,3881315,"1,073.65",Bertram Trading Ltd,201805,Communities,Supplies & Services
05/09/2017,3882980,465.62,Bertram Trading Ltd,201806,Communities,Supplies & Services
05/09/2017,3882984,979.99,Bertram Trading Ltd,201806,Communities,Supplies & Services
05/09/2017,3882985,697.73,Bertram Trading Ltd,201806,Communities,Supplies & Services
05/09/2017,3882988,"14,660.36",Bertram Trading Ltd,201806,Communities,Supplies & Services
14/09/2017,3884033,"2,692.03",Besecure Protection Systems,201806,Schools Devolved Capital,Capital Expenditure
12/07/2017,3877995,"1,035.71",Bespoke Cleaning Services,201804,Schools,Premises-Related Expenditure
20/07/2017,3879309,"1,104.10",Bespoke Cleaning Services,201804,Schools,Premises-Related Expenditure
31/07/2017,3880267,759.14,Bespoke Cleaning Services,201804,Schools,Premises-Related Expenditure
31/07/2017,3880317,"3,843.18",Bespoke Cleaning Services,201804,Schools,Premises-Related Expenditure
19/09/2017,3884338,"3,843.18",Bespoke Cleaning Services,201806,Schools,Premises-Related Expenditure
19/09/2017,3884343,"3,843.18",Bespoke Cleaning Services,201806,Schools,Premises-Related Expenditure
19/09/2017,3884346,"1,104.10",Bespoke Cleaning Services,201806,Schools,Premises-Related Expenditure
19/09/2017,3884347,"1,104.10",Bespoke Cleaning Services,201806,Schools,Premises-Related Expenditure
19/09/2017,3884348,759.14,Bespoke Cleaning Services,201806,Schools,Premises-Related Expenditure
19/09/2017,3884349,759.14,Bespoke Cleaning Services,201806,Schools,Premises-Related Expenditure
22/09/2017,3884985,"1,035.71",Bespoke Cleaning Services,201806,Schools,Premises-Related Expenditure
22/09/2017,3884988,"1,035.71",Bespoke Cleaning Services,201806,Schools,Premises-Related Expenditure
22/09/2017,3885002,"1,035.71",Bespoke Cleaning Services,201806,Schools,Premises-Related Expenditure
29/09/2017,3885698,"2,250.00",Best Practice Network Ltd,201806,Schools,Employees
01/08/2017,3880686,568.01,Bikold Ltd,201805,Schools,Supplies & Services
11/09/2017,3883596,419.95,Bikold Ltd,201806,Schools,Supplies & Services
11/09/2017,3883597,419.95,Bikold Ltd,201806,Schools,Supplies & Services
08/08/2017,3880870,"1,600.00",Bishop Of Herefords Bluecoat School,201805,Dedicated Schools Grant,Support Services
08/08/2017,3880871,"1,070.00",Bishop Of Herefords Bluecoat School,201805,Dedicated Schools Grant,Support Services
04/09/2017,3882922,495,Black Mountain Mineral Water Co,201806,Resources,Supplies & Services
20/07/2017,3879219,749.8,Black Pepper (Ledbury) Ltd,201804,Schools,Supplies & Services
24/07/2017,3879658,"1,090.20",Black Pepper (Ledbury) Ltd,201804,Schools,Supplies & Services
22/09/2017,3879539,"4,011.20",Black Pepper (Ledbury) Ltd,201806,Schools,Supplies & Services
22/09/2017,3879546,"1,071.80",Black Pepper (Ledbury) Ltd,201806,Schools,Supplies & Services
04/07/2017,3876768,"10,000.00",Bloom Procurement Services Ltd,201804,Environment and Place,Third Party Payments
27/07/2017,3879998,"9,084.60",Bloom Procurement Services Ltd,201804,Growth,Employees
26/07/2017,3879184,"15,110.00",Bloom Procurement Services Ltd,201804,Growth,Third Party Payments
26/07/2017,3879185,"10,815.00",Bloom Procurement Services Ltd,201804,Growth,Third Party Payments
15/08/2017,3881521,"10,815.00",Bloom Procurement Services Ltd,201805,Growth,Third Party Payments
18/08/2017,3882099,"7,875.00",Bloom Procurement Services Ltd,201805,Growth,Third Party Payments
21/08/2017,3882097,"7,875.00",Bloom Procurement Services Ltd,201805,Growth,Third Party Payments
23/08/2017,3882098,"9,975.00",Bloom Procurement Services Ltd,201805,Growth,Third Party Payments
20/09/2017,3884447,"8,137.50",Bloom Procurement Services Ltd,201806,Growth,Third Party Payments
07/07/2017,3877262,"1,800.00",Blue Line Taxis,201804,Environment and Place,Transport-Related Expenditure
07/07/2017,3877263,"1,960.00",Blue Line Taxis,201804,Environment and Place,Transport-Related Expenditure
07/07/2017,3877265,"1,180.00",Blue Line Taxis,201804,Environment and Place,Transport-Related Expenditure
07/07/2017,3877266,"1,430.00",Blue Line Taxis,201804,Environment and Place,Transport-Related Expenditure
07/07/2017,3877267,520,Blue Line Taxis,201804,Environment and Place,Transport-Related Expenditure
07/07/2017,3877288,"1,700.00",Blue Line Taxis,201804,Environment and Place,Transport-Related Expenditure
07/07/2017,3877290,"2,400.00",Blue Line Taxis,201804,Environment and Place,Transport-Related Expenditure
07/07/2017,3877302,"3,200.00",Blue Line Taxis,201804,Environment and Place,Transport-Related Expenditure
07/07/2017,3877303,"1,440.00",Blue Line Taxis,201804,Environment and Place,Transport-Related Expenditure
07/07/2017,3877304,"2,200.00",Blue Line Taxis,201804,Environment and Place,Transport-Related Expenditure
07/07/2017,3877305,"2,400.00",Blue Line Taxis,201804,Environment and Place,Transport-Related Expenditure
07/07/2017,3877306,"3,200.00",Blue Line Taxis,201804,Environment and Place,Transport-Related Expenditure
07/07/2017,3877307,"1,600.00",Blue Line Taxis,201804,Environment and Place,Transport-Related Expenditure
07/07/2017,3877308,"2,300.00",Blue Line Taxis,201804,Environment and Place,Transport-Related Expenditure
07/07/2017,3877309,"3,800.00",Blue Line Taxis,201804,Environment and Place,Transport-Related Expenditure
07/07/2017,3877327,580,Blue Line Taxis,201804,Environment and Place,Transport-Related Expenditure
10/07/2017,3877320,"1,040.00",Blue Line Taxis,201804,Environment and Place,Transport-Related Expenditure
13/07/2017,3878039,960,Blue Line Taxis,201804,Environment and Place,Transport-Related Expenditure
13/07/2017,3878040,820,Blue Line Taxis,201804,Environment and Place,Transport-Related Expenditure
13/07/2017,3878041,"2,000.00",Blue Line Taxis,201804,Environment and Place,Transport-Related Expenditure
13/07/2017,3878042,640,Blue Line Taxis,201804,Environment and Place,Transport-Related Expenditure
13/07/2017,3878043,"1,400.00",Blue Line Taxis,201804,Environment and Place,Transport-Related Expenditure
13/07/2017,3878044,"1,560.00",Blue Line Taxis,201804,Environment and Place,Transport-Related Expenditure
13/07/2017,3878046,480,Blue Line Taxis,201804,Environment and Place,Transport-Related Expenditure
13/07/2017,3878047,540,Blue Line Taxis,201804,Environment and Place,Transport-Related Expenditure
13/07/2017,3878050,610,Blue Line Taxis,201804,Environment and Place,Transport-Related Expenditure
13/07/2017,3878053,440,Blue Line Taxis,201804,Environment and Place,Transport-Related Expenditure
19/07/2017,3878984,"2,240.00",Blue Line Taxis,201804,Environment and Place,Transport-Related Expenditure
01/08/2017,3880356,780,Blue Line Taxis,201805,Environment and Place,Transport-Related Expenditure
01/08/2017,3880698,"2,850.00",Blue Line Taxis,201805,Environment and Place,Transport-Related Expenditure
01/08/2017,3880699,"1,080.00",Blue Line Taxis,201805,Environment and Place,Transport-Related Expenditure
01/08/2017,3880715,420,Blue Line Taxis,201805,Environment and Place,Transport-Related Expenditure
01/08/2017,3880721,"1,725.00",Blue Line Taxis,201805,Environment and Place,Transport-Related Expenditure
01/08/2017,3880725,"1,800.00",Blue Line Taxis,201805,Environment and Place,Transport-Related Expenditure
02/08/2017,3880726,"1,200.00",Blue Line Taxis,201805,Environment and Place,Transport-Related Expenditure
02/08/2017,3880723,"3,040.00",Blue Line Taxis,201805,Environment and Place,Transport-Related Expenditure
02/08/2017,3880785,"1,680.00",Blue Line Taxis,201805,Environment and Place,Transport-Related Expenditure
02/08/2017,3880786,510,Blue Line Taxis,201805,Environment and Place,Transport-Related Expenditure
03/08/2017,3880846,"1,500.00",Blue Line Taxis,201805,Environment and Place,Transport-Related Expenditure
03/08/2017,3880847,"1,170.00",Blue Line Taxis,201805,Environment and Place,Transport-Related Expenditure
03/08/2017,3880849,900,Blue Line Taxis,201805,Environment and Place,Transport-Related Expenditure
03/08/2017,3880845,615,Blue Line Taxis,201805,Environment and Place,Transport-Related Expenditure
03/08/2017,3880848,"1,050.00",Blue Line Taxis,201805,Environment and Place,Transport-Related Expenditure
03/08/2017,3880850,"2,400.00",Blue Line Taxis,201805,Environment and Place,Transport-Related Expenditure
03/08/2017,3880852,"1,650.00",Blue Line Taxis,201805,Environment and Place,Transport-Related Expenditure
11/08/2017,3881567,435,Blue Line Taxis,201805,Environment and Place,Transport-Related Expenditure
11/08/2017,3881569,"1,500.00",Blue Line Taxis,201805,Environment and Place,Transport-Related Expenditure
11/08/2017,3881570,"1,180.00",Blue Line Taxis,201805,Environment and Place,Transport-Related Expenditure
11/08/2017,3881572,"1,469.99",Blue Line Taxis,201805,Environment and Place,Transport-Related Expenditure
11/08/2017,3881573,"1,350.00",Blue Line Taxis,201805,Environment and Place,Transport-Related Expenditure
11/08/2017,3881574,"1,900.00",Blue Line Taxis,201805,Environment and Place,Transport-Related Expenditure
11/08/2017,3881578,"1,275.00",Blue Line Taxis,201805,Environment and Place,Transport-Related Expenditure
21/08/2017,3882229,"2,400.02",Blue Line Taxis,201805,Environment and Place,Transport-Related Expenditure
13/07/2017,3878089,"1,232.00",Blue Line Taxis,201804,Learning Disabilities,Transport-Related Expenditure
13/07/2017,3878091,504,Blue Line Taxis,201804,Learning Disabilities,Transport-Related Expenditure
04/08/2017,3880892,448,Blue Line Taxis,201805,Learning Disabilities,Transport-Related Expenditure
04/08/2017,3880903,"1,176.00",Blue Line Taxis,201805,Learning Disabilities,Transport-Related Expenditure
07/08/2017,3881149,"7,479.01",Bolinda UK Ltd,201805,Communities,Supplies & Services
06/07/2017,3877077,570,Bookpoint Ltd,201804,Schools,Supplies & Services
06/07/2017,3877078,738.5,Bookpoint Ltd,201804,Schools,Supplies & Services
20/07/2017,3879246,783.5,Bookpoint Ltd,201804,Schools,Supplies & Services
31/07/2017,3880259,453.5,Bookpoint Ltd,201804,Schools,Supplies & Services
11/08/2017,3881541,719.5,Bookpoint Ltd,201805,Schools,Supplies & Services
17/08/2017,3881994,435.5,Bookpoint Ltd,201805,Schools,Supplies & Services
09/08/2017,3880681,951.12,Border Group Parish Council,201805,Environment and Place,Third Party Payments
29/08/2017,3882219,750,Boss,201805,Resources,Premises-Related Expenditure
16/08/2017,3881711,"32,824.00",Boss,201805,Resources,Supplies & Services
16/08/2017,3881716,885,Boss,201805,Resources,Supplies & Services
12/07/2017,3877758,430.62,Boss,201804,Schools,Supplies & Services
25/07/2017,3879698,573.77,Boss,201804,Schools,Supplies & Services
31/07/2017,3880402,566.45,Boss,201804,Schools,Supplies & Services
24/08/2017,3882433,709.81,Boss,201805,Schools,Supplies & Services
24/08/2017,3882434,520.7,Boss,201805,Schools,Supplies & Services
29/08/2017,3882593,"1,037.12",Boss,201805,Schools,Supplies & Services
07/09/2017,3883193,455,Boss,201806,Schools,Supplies & Services
19/09/2017,3884406,"2,116.79",Bourneheights Ltd,201806,Resources,Premises-Related Expenditure
03/07/2017,3876223,790.98,Bowyer's Coaches,201804,Environment and Place,Third Party Payments
20/07/2017,3879154,702.5,Bowyer's Coaches,201804,Environment and Place,Third Party Payments
17/08/2017,3881958,705.18,Bowyer's Coaches,201805,Environment and Place,Third Party Payments
15/09/2017,3883930,831.2,Bowyer's Coaches,201806,Environment and Place,Third Party Payments
15/09/2017,3883935,831.2,Bowyer's Coaches,201806,Environment and Place,Third Party Payments
06/07/2017,3876935,"2,000.00",Bowyer's Coaches,201804,Environment and Place,Transport-Related Expenditure
11/08/2017,3881587,"1,500.00",Bowyer's Coaches,201805,Environment and Place,Transport-Related Expenditure
27/09/2017,3885432,500,BPF (AV) Ltd,201806,Schools,Premises-Related Expenditure
20/07/2017,3879144,"1,869.00",BPF (AV) Ltd,201804,Schools,Supplies & Services
20/07/2017,3879146,"3,195.00",BPF (AV) Ltd,201804,Schools,Supplies & Services
21/07/2017,2421903,688.2,Brampton Abbotts CE School Imprest,201804,Schools,Supplies & Services
13/07/2017,3878140,"4,772.12",Brandon Trust,201804,Learning Disabilities,Third Party Payments
13/07/2017,3878141,"7,279.52",Brandon Trust,201804,Learning Disabilities,Third Party Payments
09/08/2017,3881367,"12,988.34",Brandon Trust,201805,Learning Disabilities,Third Party Payments
18/08/2017,3882052,"5,043.17",Brandon Trust,201805,Learning Disabilities,Third Party Payments
18/08/2017,3882053,"9,331.83",Brandon Trust,201805,Learning Disabilities,Third Party Payments
18/08/2017,3882054,"7,990.46",Brandon Trust,201805,Learning Disabilities,Third Party Payments
13/09/2017,3883685,"9,704.84",Brandon Trust,201806,Learning Disabilities,Third Party Payments
13/09/2017,3883686,"27,008.31",Brandon Trust,201806,Learning Disabilities,Third Party Payments
20/07/2017,3879338,509,Bridges Business Spaces LLP01 t/a Flexspace,201804,Growth,Premises-Related Expenditure
01/08/2017,3880625,"1,288.66",Bridges Business Spaces LLP01 t/a Flexspace,201805,Growth,Premises-Related Expenditure
26/09/2017,3885182,509,Bridges Business Spaces LLP01 t/a Flexspace,201806,Growth,Premises-Related Expenditure
26/09/2017,3885200,509,Bridges Business Spaces LLP01 t/a Flexspace,201806,Growth,Premises-Related Expenditure
26/09/2017,3885178,"1,159.00",Bridges Business Spaces LLP01 t/a Flexspace,201806,Growth,Premises-Related Expenditure
26/09/2017,3885198,"1,159.00",Bridges Business Spaces LLP01 t/a Flexspace,201806,Growth,Premises-Related Expenditure
12/09/2017,2441223,"1,045.00",Bridges Childcare,201806,Dedicated Schools Grant,Transfer Payments
22/08/2017,3882234,549.6,Bridstow Parish Council,201805,Environment and Place,Third Party Payments
30/08/2017,3882678,"5,974.56",Bright Futures 4 Youth,201805,Public Health,Supplies & Services
22/08/2017,3882235,602.5,Brimfield & Little Hereford G P C,201805,Environment and Place,Third Party Payments
27/07/2017,3880000,583.8,Bristol Zoo Gardens,201804,Schools,Supplies & Services
03/08/2017,2427927,"1,045.00",Broadlands Bright Sparks Playgroup,201805,Dedicated Schools Grant,Transfer Payments
19/07/2017,2420811,475,Brockhampton Primary School (Academy),201804,Dedicated Schools Grant,Support Services
22/08/2017,2434102,475,Brockhampton Primary School (Academy),201805,Dedicated Schools Grant,Support Services
18/09/2017,2443232,475,Brockhampton Primary School (Academy),201806,Dedicated Schools Grant,Support Services
07/07/2017,2417232,"1,261.91",Bromyard Community Transport Ltd,201804,Environment and Place,Supplies & Services
03/08/2017,2427965,"1,394.62",Bromyard Community Transport Ltd,201805,Environment and Place,Supplies & Services
07/09/2017,2439911,"1,394.62",Bromyard Community Transport Ltd,201806,Environment and Place,Supplies & Services
06/07/2017,3877101,"1,470.00",Bromyard Community Transport Ltd,201804,Environment and Place,Transport-Related Expenditure
06/07/2017,3877102,"1,850.86",Bromyard Community Transport Ltd,201804,Environment and Place,Transport-Related Expenditure
11/08/2017,3881607,912.73,Bromyard Community Transport Ltd,201805,Environment and Place,Transport-Related Expenditure
11/08/2017,3881611,"1,369.35",Bromyard Community Transport Ltd,201805,Environment and Place,Transport-Related Expenditure
14/07/2017,3876414,"3,203.55",BT Onebill (Direct Debit),201804,Communities,Supplies & Services
24/08/2017,3882424,"3,203.55",BT Onebill (Direct Debit),201805,Communities,Supplies & Services
01/09/2017,3882741,"2,979.66",BT PLC,201806,Resources Capital,Capital Expenditure
08/09/2017,3881397,"22,974.79",BT PLC,201806,Resources Capital,Capital Expenditure
07/07/2017,3877317,"2,800.00",Buchanans Coaches,201804,Environment and Place,Transport-Related Expenditure
07/07/2017,3877326,"4,000.00",Buchanans Coaches,201804,Environment and Place,Transport-Related Expenditure
04/08/2017,3881064,"2,100.00",Buchanans Coaches,201805,Environment and Place,Transport-Related Expenditure
14/08/2017,3881723,"3,000.00",Buchanans Coaches,201805,Environment and Place,Transport-Related Expenditure
27/09/2017,3885497,710,Buchanans Coaches,201806,Schools,Supplies & Services
18/07/2017,3878708,"1,050.00",Buchanans Coaches,201804,Schools,Transport-Related Expenditure
18/07/2017,3878709,640,Buchanans Coaches,201804,Schools,Transport-Related Expenditure
11/07/2017,3877658,"1,600.00",Builth Wells Primary School,201804,Dedicated Schools Grant,Support Services
19/07/2017,2421029,475,Burghill Community Academy,201804,Dedicated Schools Grant,Support Services
22/08/2017,2434247,475,Burghill Community Academy,201805,Dedicated Schools Grant,Support Services
18/09/2017,2443346,475,Burghill Community Academy,201806,Dedicated Schools Grant,Support Services
18/09/2017,2443389,475,Burghill Community Academy,201806,Dedicated Schools Grant,Support Services
16/08/2017,3881798,500,Business Angel Ltd,201805,Communities,Supplies & Services
17/07/2017,3878575,915.2,Business Angel Ltd,201804,Education and Commissioning,Supplies & Services
20/07/2017,3879302,"2,030.00",Business Angel Ltd,201804,Education and Commissioning,Supplies & Services
01/08/2017,3880536,"3,350.88",Business Angel Ltd,201805,Education and Commissioning,Supplies & Services
07/08/2017,3881218,628.16,Business Angel Ltd,201805,Education and Commissioning,Supplies & Services
23/08/2017,3882361,"2,520.00",Business Angel Ltd,201805,Education and Commissioning,Supplies & Services
26/09/2017,3885314,"2,577.60",Business Angel Ltd,201806,Education and Commissioning,Supplies & Services
03/07/2017,3876431,455,Butterflies Child Counselling & Play Therapy,201804,Schools,Supplies & Services
03/07/2017,3876442,455,Butterflies Child Counselling & Play Therapy,201804,Schools,Supplies & Services
13/09/2017,3880454,420,Butterflies Child Counselling & Play Therapy,201806,Schools,Supplies & Services
19/09/2017,3884414,420,Butterflies Child Counselling & Play Therapy,201806,Schools,Supplies & Services
27/09/2017,3885403,455,Butterflies Child Counselling & Play Therapy,201806,Schools,Supplies & Services
27/09/2017,3885404,560,Butterflies Child Counselling & Play Therapy,201806,Schools,Supplies & Services
27/09/2017,3885405,420,Butterflies Child Counselling & Play Therapy,201806,Schools,Supplies & Services
13/09/2017,3883740,"30,000.00",C V Rollers (TPP) Ltd,201806,Growth Capital,Capital Expenditure
27/09/2017,3885494,"15,000.00",C V Rollers (TPP) Ltd,201806,Growth Capital,Capital Expenditure
18/09/2017,3883647,606,Callcredit,201806,Corporate,Supplies & Services
18/09/2017,3883648,559,Callcredit,201806,Corporate,Supplies & Services
18/09/2017,3883651,543,Callcredit,201806,Corporate,Supplies & Services
18/09/2017,3883652,674,Callcredit,201806,Corporate,Supplies & Services
18/07/2017,3878521,"2,237.46",Callow Fuels,201804,Schools,Premises-Related Expenditure
24/07/2017,3879632,454.05,Calor Gas Ltd,201804,Schools,Premises-Related Expenditure
27/09/2017,3885456,422.46,Calor Gas Ltd,201806,Schools,Premises-Related Expenditure
23/08/2017,3882310,912.5,Cambium,201805,Schools,Supplies & Services
07/09/2017,3883205,475,Cambridge University Press,201806,Schools,Supplies & Services
19/07/2017,2420832,475,Canon Pyon CE Academy,201804,Dedicated Schools Grant,Support Services
19/07/2017,2421063,475,Canon Pyon CE Academy,201804,Dedicated Schools Grant,Support Services
22/08/2017,2434123,475,Canon Pyon CE Academy,201805,Dedicated Schools Grant,Support Services
22/08/2017,2434277,475,Canon Pyon CE Academy,201805,Dedicated Schools Grant,Support Services
18/09/2017,2443245,475,Canon Pyon CE Academy,201806,Dedicated Schools Grant,Support Services
18/09/2017,2443367,475,Canon Pyon CE Academy,201806,Dedicated Schools Grant,Support Services
12/09/2017,3883363,"1,560.17",Capita Business Services Ltd,201806,Communities,Supplies & Services
10/07/2017,3877098,"7,179.20",Capita Business Services Ltd,201804,Corporate,Supplies & Services
17/07/2017,3877097,"3,589.60",Capita Business Services Ltd,201804,Corporate,Supplies & Services
17/07/2017,3877099,"7,179.20",Capita Business Services Ltd,201804,Corporate,Supplies & Services
17/07/2017,3877828,"13,932.05",Capita Business Services Ltd,201804,Corporate,Supplies & Services
22/08/2017,3881341,"2,000.00",Capita Business Services Ltd,201805,Corporate,Supplies & Services
05/09/2017,3882866,"2,933.33",Capita Business Services Ltd,201806,Resources,Supplies & Services
05/09/2017,3882867,"12,382.00",Capita Business Services Ltd,201806,Resources,Supplies & Services
11/09/2017,3883284,"3,752.94",Capita Business Services Ltd,201806,Resources,Supplies & Services
03/07/2017,3876256,"2,000.00",Capita Business Services Ltd,201804,Resources Capital,Capital Expenditure
13/07/2017,3878227,435.6,Capita Business Services Ltd,201804,Schools,Supplies & Services
05/09/2017,3882886,490,Capita Business Services Ltd,201806,Schools,Supplies & Services
04/07/2017,3876412,"4,081.23",Capita Business Services Ltd (Direct Debit),201804,Resources,Supplies & Services
04/07/2017,3876413,"7,157.08",Capita Business Services Ltd (Direct Debit),201804,Resources,Supplies & Services
26/07/2017,3879351,"3,803.22",Capita Business Services Ltd (Direct Debit),201804,Resources,Supplies & Services
26/07/2017,3879352,"5,775.92",Capita Business Services Ltd (Direct Debit),201804,Resources,Supplies & Services
15/08/2017,3881697,"3,944.01",Capita Business Services Ltd (Direct Debit),201805,Resources,Supplies & Services
31/08/2017,3882681,"5,987.76",Capita Business Services Ltd (Direct Debit),201805,Resources,Supplies & Services
12/09/2017,3883645,"3,752.94",Capita Business Services Ltd (Direct Debit),201806,Resources,Supplies & Services
06/07/2017,3876727,625,Capita Education Services,201804,Schools,Supplies & Services
07/08/2017,3881152,"31,300.00",Caplor Energy Ltd,201805,Communities Capital,Capital Expenditure
31/08/2017,3882655,522.34,Caplor Energy Ltd,201805,Environment and Place,Premises-Related Expenditure
31/08/2017,3882656,"4,628.04",Caplor Energy Ltd,201805,Environment and Place,Premises-Related Expenditure
07/09/2017,3882999,"3,115.00",Caretech Community Services,201806,Education and Commissioning,Third Party Payments
07/09/2017,3883039,"1,335.00",Caretech Community Services,201806,Education and Commissioning,Third Party Payments
24/07/2017,3879682,525,Cattle Country Adventure Park,201804,Schools,Supplies & Services
14/09/2017,3883933,620.8,CF Corporate Finance Ltd,201806,Schools,Supplies & Services
03/07/2017,3876257,"1,211.60",CF Roberts (Electrical Contractors) Plc,201804,Schools,Premises-Related Expenditure
21/07/2017,3879476,918.76,CF Roberts (Electrical Contractors) Plc,201804,Schools,Premises-Related Expenditure
24/08/2017,3882408,"2,361.38",CHG-Meridian UK Limited,201805,Schools Devolved Capital,Capital Expenditure
03/07/2017,3876528,469.48,Child Protection Company.com,201804,Schools,Employees
19/09/2017,3884326,800,Children's Scrapstore,201806,Schools,Supplies & Services
27/09/2017,3885463,500,Children's Scrapstore,201806,Schools,Supplies & Services
14/07/2017,3878329,670.51,Chillipepper Signs,201804,Environment and Place,Supplies & Services
31/07/2017,3880381,"5,767.41",Cinderford Artspace Ltd,201804,Environment and Place,Supplies & Services
17/08/2017,3881918,"1,445.00",Cipfa Business Ltd,201805,Resources,Supplies & Services
10/07/2017,3877467,430.7,Cleanmy Ltd,201804,Schools,Premises-Related Expenditure
19/07/2017,3878943,473.65,Cleanmy Ltd,201804,Schools,Premises-Related Expenditure
21/09/2017,3884863,540.76,Cleanmy Ltd,201806,Schools,Supplies & Services
04/07/2017,3876704,975.79,Clearview Cleaning Services,201804,Schools,Premises-Related Expenditure
05/07/2017,3876831,"1,081.84",Clearview Cleaning Services,201804,Schools,Premises-Related Expenditure
12/07/2017,3877870,640.11,Clearview Cleaning Services,201804,Schools,Premises-Related Expenditure
16/08/2017,3881857,640.11,Clearview Cleaning Services,201805,Schools,Premises-Related Expenditure
07/09/2017,3883103,975.79,Clearview Cleaning Services,201806,Schools,Premises-Related Expenditure
11/09/2017,3883104,975.79,Clearview Cleaning Services,201806,Schools,Premises-Related Expenditure
15/09/2017,3883827,"1,081.84",Clearview Cleaning Services,201806,Schools,Premises-Related Expenditure
15/09/2017,3883826,"1,081.84",Clearview Cleaning Services,201806,Schools,Premises-Related Expenditure
19/09/2017,3884333,640.11,Clearview Cleaning Services,201806,Schools,Premises-Related Expenditure
05/09/2017,3882951,"1,064.94",Clearway Doors & Windows Ltd,201806,Growth Capital,Capital Expenditure
14/07/2017,3875123,"1,331.25",Climb On Bikes,201804,Holding Codes,Holding Codes
09/08/2017,3881369,"1,950.00",CLOSED ECHO,201805,Communities,Supplies & Services
12/07/2017,3877910,432.75,CLOSED Scholarpack,201804,Schools,Supplies & Services
11/09/2017,3883525,"1,084.58",Clubsport (Retail) Ltd,201806,Schools,Supplies & Services
12/07/2017,3877002,"2,058.60",Cobalt Telephone Technologies Ltd,201804,Environment and Place,Premises-Related Expenditure
08/08/2017,3881171,"2,141.10",Cobalt Telephone Technologies Ltd,201805,Environment and Place,Premises-Related Expenditure
07/09/2017,3883106,"2,102.40",Cobalt Telephone Technologies Ltd,201806,Environment and Place,Premises-Related Expenditure
25/09/2017,3883346,478.75,Colan Ltd,201806,Communities,Supplies & Services
26/09/2017,3885354,867,Collins Design & Build Ltd,201806,Environment and Place,Supplies & Services
06/07/2017,3877100,"8,500.00",Colomon Properties Ltd,201804,Resources,Premises-Related Expenditure
20/07/2017,2421530,483,Colwall C of E Primary School,201804,Children & Young People Capital,Capital Income
21/08/2017,2433535,483,Colwall C of E Primary School,201805,Children & Young People Capital,Capital Income
18/09/2017,2443068,483,Colwall C of E Primary School,201806,Children & Young People Capital,Capital Income
18/09/2017,3884243,750,Colwall Coaches,201806,Schools,Supplies & Services
16/08/2017,3880542,478.06,Colwall Parish Council,201805,Environment and Place,Third Party Payments
31/07/2017,3880243,"1,877.00",Complete Security & Fire Protection Ltd,201804,Schools,Supplies & Services
31/07/2017,3880244,"1,778.00",Complete Security & Fire Protection Ltd,201804,Schools,Supplies & Services
07/09/2017,3883160,"1,590.00",Connevans Ltd,201806,Schools Devolved Capital,Capital Expenditure
12/07/2017,3878024,468.5,Coordination Group Publications Ltd,201804,Schools,Supplies & Services
19/07/2017,3878965,428,Coordination Group Publications Ltd,201804,Schools,Supplies & Services
17/07/2017,3878415,435,Costello Occupational Therapy Ltd,201804,Schools,Supplies & Services
30/08/2017,3882057,443.1,Countryside Art Ltd,201805,Communities,Supplies & Services
31/08/2017,3882056,536.64,Countryside Art Ltd,201805,Communities,Supplies & Services
08/08/2017,3881311,600,County Community Projects,201805,Mental Health,Supplies & Services
20/09/2017,3884577,430.03,Coventry City Council,201806,Communities,Supplies & Services
20/09/2017,3884581,803,Coventry City Council,201806,Communities,Supplies & Services
09/08/2017,3880682,"2,079.77",Cradley Parish Council,201805,Environment and Place,Third Party Payments
24/07/2017,2422114,"1,115.80",Cradley Primary School Imprest,201804,Schools,Supplies & Services
29/09/2017,2448315,430.83,Cradley Primary School Imprest,201806,Schools,Supplies & Services
15/09/2017,3884026,600,Create Safer Organisations,201806,Schools,Supplies & Services
20/07/2017,3879234,"1,650.00",Creative Edge Design Ltd,201804,Communities,Supplies & Services
28/09/2017,3885500,"1,565.00",Creative Edge Design Ltd,201806,Communities,Supplies & Services
19/07/2017,3879018,551.52,Crossroads Care-Forest Of Dean & Hfds,201804,Education and Commissioning,Third Party Payments
20/07/2017,3879221,"1,378.80",Crossroads Care-Forest Of Dean & Hfds,201804,Education and Commissioning,Third Party Payments
31/07/2017,3880388,"1,424.76",Crossroads Care-Forest Of Dean & Hfds,201804,Education and Commissioning,Third Party Payments
16/08/2017,3881877,"1,378.80",Crossroads Care-Forest Of Dean & Hfds,201805,Education and Commissioning,Third Party Payments
16/08/2017,3881880,"1,792.44",Crossroads Care-Forest Of Dean & Hfds,201805,Education and Commissioning,Third Party Payments
16/08/2017,3881882,919.2,Crossroads Care-Forest Of Dean & Hfds,201805,Education and Commissioning,Third Party Payments
16/08/2017,3881890,"1,378.80",Crossroads Care-Forest Of Dean & Hfds,201805,Education and Commissioning,Third Party Payments
17/08/2017,3881871,756,Crossroads Care-Forest Of Dean & Hfds,201805,Education and Commissioning,Third Party Payments
17/08/2017,3881872,576,Crossroads Care-Forest Of Dean & Hfds,201805,Education and Commissioning,Third Party Payments
17/08/2017,3881873,528.54,Crossroads Care-Forest Of Dean & Hfds,201805,Education and Commissioning,Third Party Payments
17/08/2017,3881892,624,Crossroads Care-Forest Of Dean & Hfds,201805,Education and Commissioning,Third Party Payments
18/09/2017,3884151,620.46,Crossroads Care-Forest Of Dean & Hfds,201806,Education and Commissioning,Third Party Payments
18/09/2017,3884153,"1,240.92",Crossroads Care-Forest Of Dean & Hfds,201806,Education and Commissioning,Third Party Payments
19/09/2017,3884271,850.26,Crossroads Care-Forest Of Dean & Hfds,201806,Education and Commissioning,Third Party Payments
19/09/2017,3884283,"1,976.28",Crossroads Care-Forest Of Dean & Hfds,201806,Education and Commissioning,Third Party Payments
19/09/2017,3884296,"2,596.74",Crossroads Care-Forest Of Dean & Hfds,201806,Education and Commissioning,Third Party Payments
19/09/2017,3884147,552,Crossroads Care-Forest Of Dean & Hfds,201806,Education and Commissioning,Third Party Payments
19/09/2017,3884154,528.54,Crossroads Care-Forest Of Dean & Hfds,201806,Education and Commissioning,Third Party Payments
20/09/2017,3884299,"2,122.64",Crossroads Care-Forest Of Dean & Hfds,201806,Education and Commissioning,Third Party Payments
20/09/2017,3884265,"1,608.60",Crossroads Care-Forest Of Dean & Hfds,201806,Education and Commissioning,Third Party Payments
20/09/2017,3884278,576,Crossroads Care-Forest Of Dean & Hfds,201806,Education and Commissioning,Third Party Payments
20/09/2017,3884297,"1,240.92",Crossroads Care-Forest Of Dean & Hfds,201806,Education and Commissioning,Third Party Payments
03/08/2017,2427929,418,Cut & Paste Childcare,201805,Dedicated Schools Grant,Transfer Payments
11/07/2017,3877661,"1,200.00",CVA Ledbury & District,201804,Environment and Place,Transport-Related Expenditure
11/07/2017,3877662,"1,866.00",CVA Ledbury & District,201804,Environment and Place,Transport-Related Expenditure
11/07/2017,3877839,"1,699.60",CVA Ledbury & District,201804,Environment and Place,Transport-Related Expenditure
11/08/2017,3881604,"1,306.20",CVA Ledbury & District,201805,Environment and Place,Transport-Related Expenditure
11/08/2017,3881605,900,CVA Ledbury & District,201805,Environment and Place,Transport-Related Expenditure
11/08/2017,3881608,"1,274.70",CVA Ledbury & District,201805,Environment and Place,Transport-Related Expenditure
07/07/2017,2417233,"1,554.05",CVS Ledbury & District (Ledbury Ring & Ride)Standing Order,201804,Environment and Place,Supplies & Services
03/08/2017,2427966,"1,768.13",CVS Ledbury & District (Ledbury Ring & Ride)Standing Order,201805,Environment and Place,Supplies & Services
07/09/2017,2439912,"1,768.13",CVS Ledbury & District (Ledbury Ring & Ride)Standing Order,201806,Environment and Place,Supplies & Services
19/07/2017,3878985,"1,036.00",Cygnet (Surrey) Ltd,201804,Dedicated Schools Grant,Support Services
19/07/2017,3878986,740,Cygnet (Surrey) Ltd,201804,Dedicated Schools Grant,Support Services
20/07/2017,3879127,"2,664.00",Cygnet (Surrey) Ltd,201804,Dedicated Schools Grant,Support Services
09/08/2017,3881389,"8,531.00",Cylix Ltd,201805,Integrated Commissioning,Capital Expenditure
12/07/2017,3877884,417.49,D & D Network Services Ltd,201804,Schools,Supplies & Services
12/07/2017,3877886,"1,622.89",D & D Network Services Ltd,201804,Schools,Supplies & Services
12/07/2017,3877501,"2,224.32",D & D Network Services Ltd,201804,Schools,Supplies & Services
14/07/2017,3878430,"1,117.85",D & D Network Services Ltd,201804,Schools,Supplies & Services
19/07/2017,3878954,757.8,D & D Network Services Ltd,201804,Schools,Supplies & Services
20/07/2017,3879340,500,D & D Network Services Ltd,201804,Schools,Supplies & Services
20/07/2017,3879348,"1,125.00",D & D Network Services Ltd,201804,Schools,Supplies & Services
20/07/2017,3879413,"3,766.65",D & D Network Services Ltd,201804,Schools,Supplies & Services
01/09/2017,3882798,528.24,D & D Network Services Ltd,201806,Schools,Supplies & Services
13/09/2017,3883699,500,D & D Network Services Ltd,201806,Schools,Supplies & Services
20/09/2017,3884597,430.76,D & D Network Services Ltd,201806,Schools,Supplies & Services
20/09/2017,3884669,"9,216.72",D & D Network Services Ltd,201806,Schools,Supplies & Services
22/09/2017,3885001,"3,334.00",D & D Network Services Ltd,201806,Schools,Supplies & Services
26/09/2017,3885298,827.94,D & D Network Services Ltd,201806,Schools,Supplies & Services
29/09/2017,3885696,"4,065.15",D & D Network Services Ltd,201806,Schools,Supplies & Services
29/09/2017,3885747,"2,920.00",D & D Network Services Ltd,201806,Schools,Supplies & Services
29/09/2017,3885816,750.1,D & D Network Services Ltd,201806,Schools,Supplies & Services
20/09/2017,3884564,"2,370.00",D & D Network Services Ltd,201806,Schools,Support Services
04/07/2017,3876700,"2,494.96",D & D Network Services Ltd,201804,Schools Devolved Capital,Capital Expenditure
21/07/2017,3879553,"3,440.72",D & D Network Services Ltd,201804,Schools Devolved Capital,Capital Expenditure
16/08/2017,3881833,"33,000.00",Daisy Communications Limited,201805,Communities,Supplies & Services
18/07/2017,3878568,419.5,Dancefest,201804,Schools,Supplies & Services
03/07/2017,3876238,"1,965.60",Data Orchard C.I.C.,201804,Communities,Supplies & Services
17/08/2017,3881863,"1,891.89",Data Orchard C.I.C.,201805,Communities,Supplies & Services
25/07/2017,3879252,"2,221.62",Dell Corporation Ltd,201804,Schools Devolved Capital,Capital Expenditure
06/07/2017,3877128,619.05,Dell Financial Services,201804,Schools,Supplies & Services
22/09/2017,3884963,619.05,Dell Financial Services,201806,Schools,Supplies & Services
22/09/2017,3884964,619.05,Dell Financial Services,201806,Schools,Supplies & Services
14/09/2017,3883977,700,Denim Nation Hereford Ltd,201806,Schools,Employees
31/07/2017,3880398,660,Denim Nation Hereford Ltd,201804,Schools,Supplies & Services
06/07/2017,3877122,"8,901.00",Derwen College,201804,Dedicated Schools Grant,Support Services
19/07/2017,2420792,"1,078.01",Derwen College,201804,Dedicated Schools Grant,Support Services
19/07/2017,2420793,"1,104.35",Derwen College,201804,Dedicated Schools Grant,Support Services
19/07/2017,2420794,"1,136.31",Derwen College,201804,Dedicated Schools Grant,Support Services
19/07/2017,2420795,"1,104.35",Derwen College,201804,Dedicated Schools Grant,Support Services
19/07/2017,2420796,"1,136.31",Derwen College,201804,Dedicated Schools Grant,Support Services
19/07/2017,2420797,"1,136.31",Derwen College,201804,Dedicated Schools Grant,Support Services
19/07/2017,2420798,"1,136.31",Derwen College,201804,Dedicated Schools Grant,Support Services
19/07/2017,2420799,629.49,Derwen College,201804,Dedicated Schools Grant,Support Services
19/07/2017,2420800,629.49,Derwen College,201804,Dedicated Schools Grant,Support Services
19/07/2017,2420801,629.49,Derwen College,201804,Dedicated Schools Grant,Support Services
19/07/2017,2420802,629.49,Derwen College,201804,Dedicated Schools Grant,Support Services
19/07/2017,2420803,629.49,Derwen College,201804,Dedicated Schools Grant,Support Services
19/07/2017,2420897,576.75,Derwen College,201804,Dedicated Schools Grant,Support Services
19/07/2017,2420898,"1,015.83",Derwen College,201804,Dedicated Schools Grant,Support Services
19/09/2017,3884443,"1,250.00",Designumbrella,201806,Environment and Place,Supplies & Services
31/07/2017,3880383,"4,294.84",Desperate Men Ltd,201804,Environment and Place,Supplies & Services
07/07/2017,3877274,"1,375.00",Dfe Uk Ltd,201804,Schools,Premises-Related Expenditure
03/07/2017,3876039,"1,429.77",Digital ID Ltd,201804,Resources,Supplies & Services
03/07/2017,3876219,793.78,Discovery Education Europe Ltd,201804,Schools,Supplies & Services
12/07/2017,3877873,"3,192.50",Discovery Education Europe Ltd,201804,Schools,Supplies & Services
28/07/2017,3880233,"1,404.30",Discovery Education Europe Ltd,201804,Schools,Supplies & Services
31/07/2017,3880452,"1,016.50",Discovery Education Europe Ltd,201804,Schools,Supplies & Services
01/08/2017,3880558,"1,145.35",Discovery Education Europe Ltd,201805,Schools,Supplies & Services
11/09/2017,3883311,770.7,Discovery Education Europe Ltd,201806,Schools,Supplies & Services
11/09/2017,3883481,"1,011.60",Discovery Education Europe Ltd,201806,Schools,Supplies & Services
14/09/2017,3883911,"5,089.70",DNS Planning & Design Ltd,201806,Commissioning Capital,Capital Expenditure
25/09/2017,2444813,615,Dolly Mixtures Pre School,201806,Dedicated Schools Grant,Transfer Payments
07/07/2017,2417234,"1,286.36",Dore Community Transport,201804,Environment and Place,Supplies & Services
03/08/2017,2427967,"1,426.29",Dore Community Transport,201805,Environment and Place,Supplies & Services
07/09/2017,2439913,"1,426.29",Dore Community Transport,201806,Environment and Place,Supplies & Services
11/07/2017,3877382,985.86,Dormington & Mordiford G.P.C.,201804,Environment and Place,Third Party Payments
03/07/2017,3876225,"16,753.27",DRM (Bromyard) Ltd,201804,Environment and Place,Third Party Payments
20/07/2017,3879151,"16,704.34",DRM (Bromyard) Ltd,201804,Environment and Place,Third Party Payments
17/08/2017,3881934,"16,775.55",DRM (Bromyard) Ltd,201805,Environment and Place,Third Party Payments
21/09/2017,3884855,"15,407.45",DRM (Bromyard) Ltd,201806,Environment and Place,Third Party Payments
06/07/2017,3876907,"30,437.20",DRM (Bromyard) Ltd,201804,Environment and Place,Transport-Related Expenditure
14/08/2017,3881726,"22,107.90",DRM (Bromyard) Ltd,201805,Environment and Place,Transport-Related Expenditure
18/07/2017,3878767,"1,600.00",DRM (Bromyard) Ltd,201804,Schools,Transport-Related Expenditure
07/07/2017,3877237,"2,525.00",Dudley Fencing,201804,Schools Devolved Capital,Capital Expenditure
14/08/2017,3881653,"3,393.65",Dudley Metropolitan Borough,201805,Dedicated Schools Grant,Support Services
30/08/2017,3882624,531.95,E.On,201805,Environment and Place,Premises-Related Expenditure
20/07/2017,2421495,"1,107.00",Earl Mortimer College & Sixth Form HCC,201804,Children & Young People Capital,Capital Income
21/08/2017,2433500,"1,107.00",Earl Mortimer College & Sixth Form HCC,201805,Children & Young People Capital,Capital Income
18/09/2017,2443033,"1,107.00",Earl Mortimer College & Sixth Form HCC,201806,Children & Young People Capital,Capital Income
01/08/2017,3880718,521.5,Earl Mortimer College & Sixth Form HCC,201805,Dedicated Schools Grant,Employees
05/07/2017,3876805,"1,900.00",Earl Mortimer College & Sixth Form HCC,201804,Schools,Support Services
06/07/2017,3876881,"1,900.00",Earl Mortimer College & Sixth Form HCC,201804,Schools,Support Services
07/08/2017,3881128,937.87,ECHO,201805,Commissioning Adults,Employees
11/09/2017,3883455,937.87,ECHO,201806,Commissioning Adults,Employees
20/07/2017,3879207,"1,540.00",ECHO,201804,Education and Commissioning,Supplies & Services
20/07/2017,3879208,"1,680.00",ECHO,201804,Education and Commissioning,Supplies & Services
17/08/2017,3881965,"2,940.00",ECHO,201805,Education and Commissioning,Supplies & Services
20/07/2017,3879220,"2,920.00",Eclipse Access Solutions Ltd,201804,Housing & Independent Living Capital,Capital Expenditure
16/08/2017,3881841,"18,000.00",Eclipse Access Solutions Ltd,201805,Housing & Independent Living Capital,Capital Expenditure
16/08/2017,3881859,"1,800.00",Eclipse Access Solutions Ltd,201805,Housing & Independent Living Capital,Capital Expenditure
30/08/2017,3882615,"1,790.00",Eclipse Access Solutions Ltd,201805,Housing & Independent Living Capital,Capital Expenditure
04/07/2017,3876405,"1,000.00",Ecoteric Ltd,201804,Growth,Supplies & Services
09/08/2017,3881267,"1,000.00",Ecoteric Ltd,201805,Growth,Supplies & Services
09/08/2017,3881328,"1,000.00",Ecoteric Ltd,201805,Growth,Supplies & Services
21/08/2017,3882043,"1,000.00",Ecoteric Ltd,201805,Growth,Supplies & Services
21/08/2017,3882044,700,Ecoteric Ltd,201805,Growth,Supplies & Services
12/07/2017,3877871,684,Education City Ltd,201804,Schools,Supplies & Services
15/08/2017,3881646,950,Education Property Partnership Ltd,201805,Schools,Supplies & Services
01/08/2017,3880514,559.3,Education Umbrella Ltd,201805,Schools,Supplies & Services
03/07/2017,3876445,450,Edutech Solutions Ltd,201804,Schools,Supplies & Services
07/07/2017,3877297,"2,695.00",Edutech Solutions Ltd,201804,Schools,Supplies & Services
11/07/2017,3877578,510,Edutech Solutions Ltd,201804,Schools,Supplies & Services
12/07/2017,3877936,"3,020.00",Edutech Solutions Ltd,201804,Schools,Supplies & Services
12/07/2017,3877940,"2,415.00",Edutech Solutions Ltd,201804,Schools,Supplies & Services
17/07/2017,3878437,"2,458.00",Edutech Solutions Ltd,201804,Schools,Supplies & Services
17/07/2017,3878473,510,Edutech Solutions Ltd,201804,Schools,Supplies & Services
19/07/2017,3878835,"2,158.00",Edutech Solutions Ltd,201804,Schools,Supplies & Services
19/07/2017,3878895,794,Edutech Solutions Ltd,201804,Schools,Supplies & Services
13/09/2017,3883720,"1,605.00",Edutech Solutions Ltd,201806,Schools,Supplies & Services
28/09/2017,3885516,"1,828.00",Edutech Solutions Ltd,201806,Schools,Supplies & Services
03/07/2017,3876453,"2,350.00",Edutech Solutions Ltd,201804,Schools,Support Services
03/07/2017,3876496,"2,687.00",Edutech Solutions Ltd,201804,Schools,Support Services
19/07/2017,3878989,450,Edutech Solutions Ltd,201804,Schools,Support Services
20/09/2017,3884645,980,Edutech Solutions Ltd,201806,Schools,Support Services
19/07/2017,3878861,"1,805.00",Edutech Solutions Ltd,201804,Schools Devolved Capital,Capital Expenditure
23/08/2017,3882262,"6,750.00",Edward Cousins,201805,Growth,Third Party Payments
26/07/2017,3879778,"1,349.05",EG People Development,201804,Adults Operations,Employees
26/07/2017,3879783,"4,501.85",EG People Development,201804,Adults Operations,Employees
14/09/2017,3884094,"1,100.00",Elgar Coaches,201806,Schools,Supplies & Services
10/07/2017,3877461,556,Elite Catering,201804,Schools,Supplies & Services
07/08/2017,3880761,564,Elite Catering,201805,Schools,Supplies & Services
07/08/2017,3881081,516,Elite Catering,201805,Schools,Supplies & Services
07/08/2017,3881084,548,Elite Catering,201805,Schools,Supplies & Services
21/08/2017,3882199,576,Elite Catering,201805,Schools,Supplies & Services
18/09/2017,3884264,464.2,Elite Catering,201806,Schools,Supplies & Services
20/09/2017,3884664,574.2,Elite Catering,201806,Schools,Supplies & Services
15/08/2017,3881669,600,Elklan,201805,Education and Commissioning,Supplies & Services
11/07/2017,3877644,523,Elmwood Education Ltd,201804,Schools,Supplies & Services
11/09/2017,3883290,"2,000.00",Encore Enterprises,201806,Communities,Transfer Payments
07/07/2017,3877195,"1,170.00",Encore Enterprises,201804,Schools,Supplies & Services
17/07/2017,3878504,600,Encore Enterprises,201804,Schools,Supplies & Services
19/09/2017,3884316,660,Encore Enterprises,201806,Schools,Supplies & Services
10/08/2017,3881476,"6,910.83",Enigma CCTV Ltd,201805,Environment and Place,Third Party Payments
07/09/2017,3883107,"6,910.83",Enigma CCTV Ltd,201806,Environment and Place,Third Party Payments
07/09/2017,3883109,"6,910.83",Enigma CCTV Ltd,201806,Environment and Place,Third Party Payments
14/09/2017,3883799,"6,910.83",Enigma CCTV Ltd,201806,Environment and Place,Third Party Payments
06/07/2017,3877133,"1,650.00",Enterprise Rent A Car UK T/A Flex E Rent,201804,Environment and Place,Transport-Related Expenditure
06/07/2017,3877134,"1,166.00",Enterprise Rent A Car UK T/A Flex E Rent,201804,Environment and Place,Transport-Related Expenditure
03/08/2017,3880880,"1,575.00",Enterprise Rent A Car UK T/A Flex E Rent,201805,Environment and Place,Transport-Related Expenditure
04/08/2017,3880890,"1,113.00",Enterprise Rent A Car UK T/A Flex E Rent,201805,Environment and Place,Transport-Related Expenditure
26/09/2017,3885333,906.96,Enterprise Rent A Car UK T/A Flex E Rent,201806,Environment and Place,Transport-Related Expenditure
12/07/2017,3877848,"18,000.00",Environment Agency,201804,Commissioning Capital,Capital Income
10/07/2017,3877473,"19,891.00",Environment Agency,201804,Resources,Third Party Payments
03/08/2017,3880792,"1,089.80",Environmental Scientifics Group Ltd,201805,Environment and Place,Supplies & Services
06/07/2017,3876830,"9,000.00",Ernst & Young LLP,201804,Commissioning Capital,Capital Expenditure
25/07/2017,3879725,630.49,ESPO,201804,Schools,Supplies & Services
25/07/2017,3879727,648.63,ESPO,201804,Schools,Supplies & Services
12/07/2017,3877931,"2,000.00",ET GDS Ltd T/A Energy Trust,201804,Environment and Place,Employees
06/07/2017,3877055,"1,139.70",Euclid Limited,201804,Environment and Place,Supplies & Services
21/09/2017,3884879,988.9,Euclid Limited,201806,Environment and Place,Supplies & Services
08/08/2017,3881145,"63,161.30",European Electronique Limited,201805,Communities,Supplies & Services
20/07/2017,2421519,433,Ewyas Harold Primary School-A/C 63712842,201804,Children & Young People Capital,Capital Income
21/08/2017,2433524,433,Ewyas Harold Primary School-A/C 63712842,201805,Children & Young People Capital,Capital Income
18/09/2017,2443057,433,Ewyas Harold Primary School-A/C 63712842,201806,Children & Young People Capital,Capital Income
07/09/2017,3883172,"6,957.00",Exhall Grange School & Science College,201806,Education and Commissioning,Supplies & Services
05/07/2017,3876642,580.33,Facultatieve Technologies Limited,201804,Resources,Premises-Related Expenditure
20/07/2017,3878752,"2,086.37",Facultatieve Technologies Limited,201804,Resources,Premises-Related Expenditure
20/07/2017,3878753,933.61,Facultatieve Technologies Limited,201804,Resources,Premises-Related Expenditure
19/07/2017,2420815,475,Fairfield High School (Academy),201804,Dedicated Schools Grant,Support Services
19/07/2017,2420852,475,Fairfield High School (Academy),201804,Dedicated Schools Grant,Support Services
19/07/2017,2421030,475,Fairfield High School (Academy),201804,Dedicated Schools Grant,Support Services
22/08/2017,2434106,475,Fairfield High School (Academy),201805,Dedicated Schools Grant,Support Services
22/08/2017,2434142,475,Fairfield High School (Academy),201805,Dedicated Schools Grant,Support Services
22/08/2017,2434248,475,Fairfield High School (Academy),201805,Dedicated Schools Grant,Support Services
18/09/2017,2443261,475,Fairfield High School (Academy),201806,Dedicated Schools Grant,Support Services
18/09/2017,2443347,475,Fairfield High School (Academy),201806,Dedicated Schools Grant,Support Services
18/09/2017,2443392,475,Fairfield High School (Academy),201806,Dedicated Schools Grant,Support Services
31/07/2017,3880305,550,Fairfield High School (Academy),201804,Schools,Employees
13/07/2017,3878183,"12,776.28",Fairfield High School (Academy),201804,Schools,Supplies & Services
27/07/2017,3879938,"2,612.25",Falcon Document Solutions Limited,201804,Schools,Supplies & Services
13/09/2017,3883700,907.83,Falcon Document Solutions Limited,201806,Schools,Supplies & Services
04/07/2017,3876561,700,Falconry Services,201804,Environment and Place,Premises-Related Expenditure
25/07/2017,3879604,"1,400.00",Falconry Services,201804,Environment and Place,Premises-Related Expenditure
09/08/2017,3881272,700,Falconry Services,201805,Environment and Place,Premises-Related Expenditure
24/07/2017,3879600,"324,594.65",Fcc Environment Services (uk) Ltd,201804,Environment and Place,Third Party Payments
18/08/2017,3882114,"321,933.97",Fcc Environment Services (uk) Ltd,201805,Environment and Place,Third Party Payments
19/09/2017,3884268,"317,757.13",Fcc Environment Services (uk) Ltd,201806,Environment and Place,Third Party Payments
03/07/2017,3876236,"4,833.33",Festival Housing Group,201804,Physical Disabilities,Third Party Payments
19/07/2017,3879115,"4,833.33",Festival Housing Group,201804,Physical Disabilities,Third Party Payments
24/08/2017,3882416,"4,833.33",Festival Housing Group,201805,Physical Disabilities,Third Party Payments
18/09/2017,3884201,"4,833.33",Festival Housing Group,201806,Physical Disabilities,Third Party Payments
07/09/2017,3883141,449,Fiction Express for Schools,201806,Schools,Supplies & Services
21/07/2017,3879548,644,Field Studies Council,201804,Schools,Supplies & Services
13/07/2017,3878174,549.98,Findel Education Limited,201804,Schools,Supplies & Services
17/07/2017,3878496,533,Firepower Graphic Design,201804,Schools,Supplies & Services
20/07/2017,3879267,806,Firepower Graphic Design,201804,Schools,Supplies & Services
04/08/2017,3881032,497.89,First Midland Red Bus Ltd,201805,Environment and Place,Third Party Payments
21/08/2017,3882115,"33,609.00",Fiscal Technologies Ltd,201805,Resources,Supplies & Services
26/09/2017,3885245,450,Flat Stan First Aid Ltd,201806,Schools,Supplies & Services
07/09/2017,3883194,"1,131.00",Focus Flooring Ltd,201806,Schools,Premises-Related Expenditure
03/07/2017,3876285,"9,698.24",Forest Of Dean District Council,201804,Environment and Place,Support Services
20/09/2017,3884747,688,Forest Of Dean Gymnastics Fitness Centre,201806,Schools,Premises-Related Expenditure
11/07/2017,3876878,516.45,Forward Products,201804,Schools,Supplies & Services
20/07/2017,3879195,570,Forward Products,201804,Schools,Supplies & Services
28/07/2017,3880144,685.82,Forward Products,201804,Schools,Supplies & Services
31/07/2017,3880385,750,Four Acre Trust,201804,Schools,Employees
08/08/2017,3881273,445.5,Freeths LLP,201805,Communities,Supplies & Services
21/09/2017,3884765,500,Freeths LLP,201806,Communities,Supplies & Services
14/07/2017,3878081,"2,176.55",Friends of Herefordshire Archives,201804,Growth,Transfer Payments
05/07/2017,3876866,"1,960.00",Frome Private Hire Cars,201804,Environment and Place,Transport-Related Expenditure
05/07/2017,3876867,"1,020.00",Frome Private Hire Cars,201804,Environment and Place,Transport-Related Expenditure
11/08/2017,3881560,"1,560.00",Frome Private Hire Cars,201805,Environment and Place,Transport-Related Expenditure
11/08/2017,3881561,765,Frome Private Hire Cars,201805,Environment and Place,Transport-Related Expenditure
03/07/2017,3876253,701.12,Front Foot Sports,201804,Schools,Supplies & Services
04/07/2017,3876564,840,Front Foot Sports,201804,Schools,Supplies & Services
17/07/2017,3878474,511.8,Front Foot Sports,201804,Schools,Supplies & Services
28/09/2017,3885581,679.4,Front Foot Sports,201806,Schools,Supplies & Services
10/08/2017,3881403,"2,171.40",Fronting The Challenge Projects Ltd,201805,Dedicated Schools Grant,Supplies & Services
11/08/2017,3881634,845,Fronting The Challenge Projects Ltd,201805,Schools,Employees
20/09/2017,3884689,"6,333.25",Fronting The Challenge Projects Ltd,201806,Schools,Employees
07/08/2017,3881216,565.88,Fuelgenie Business Account,201805,Communities,Transport-Related Expenditure
07/09/2017,3883176,427.28,Fuelgenie Business Account,201806,Communities,Transport-Related Expenditure
07/07/2017,3877311,"1,923.50",G B Electrical And Building Services Ltd,201804,Housing & Independent Living Capital,Capital Expenditure
10/07/2017,3877361,678.86,G4S Cash Service (Direct Debit),201804,Resources,Third Party Payments
26/07/2017,3879350,678.86,G4S Cash Service (Direct Debit),201804,Resources,Third Party Payments
15/08/2017,3881695,693.02,G4S Cash Service (Direct Debit),201805,Resources,Third Party Payments
18/09/2017,3884105,693.02,G4S Cash Service (Direct Debit),201806,Resources,Third Party Payments
19/07/2017,3878918,560,GB Liners,201804,Communities,Premises-Related Expenditure
30/08/2017,3882609,960,GB Liners,201805,Resources,Transport-Related Expenditure
12/09/2017,3883612,"1,920.00",GB Liners,201806,Resources,Transport-Related Expenditure
31/08/2017,3882720,530,GB Liners,201805,Resources Capital,Capital Expenditure
11/07/2017,3877480,600,GDR Gates & Doors Ltd,201804,Schools,Premises-Related Expenditure
11/07/2017,3877480,445,GDR Gates & Doors Ltd,201804,Schools Devolved Capital,Capital Expenditure
20/07/2017,3879149,"2,583.85",George Youngs Coaches Ltd,201804,Environment and Place,Third Party Payments
07/07/2017,3877323,"26,664.61",George Youngs Coaches Ltd,201804,Environment and Place,Transport-Related Expenditure
11/08/2017,3881610,"20,572.20",George Youngs Coaches Ltd,201805,Environment and Place,Transport-Related Expenditure
20/07/2017,3879346,"1,050.00",George Youngs Coaches Ltd (Factor A/C),201804,Schools,Supplies & Services
25/07/2017,3879853,420,George Youngs Coaches Ltd (Factor A/C),201804,Schools,Transport-Related Expenditure
27/07/2017,3880003,"1,275.00",George Youngs Coaches Ltd (Factor A/C),201804,Schools,Transport-Related Expenditure
27/07/2017,3880009,700,George Youngs Coaches Ltd (Factor A/C),201804,Schools,Transport-Related Expenditure
27/07/2017,3880010,550,George Youngs Coaches Ltd (Factor A/C),201804,Schools,Transport-Related Expenditure
21/09/2017,3884736,755,George Youngs Coaches Ltd (Factor A/C),201806,Schools,Transport-Related Expenditure
21/09/2017,3884743,570,George Youngs Coaches Ltd (Factor A/C),201806,Schools,Transport-Related Expenditure
05/09/2017,3882918,"17,834.60",Geotechnical Engineering Ltd,201806,Commissioning Capital,Capital Expenditure
21/08/2017,3882036,"4,200.00",Geotechnical Instruments (UK) Ltd,201805,Environment and Place,Premises-Related Expenditure
04/09/2017,3882495,515,Geotechnical Instruments (UK) Ltd,201806,Environment and Place,Supplies & Services
29/09/2017,2448287,"754,380.43",Gigaclear PLC,201806,Communities Capital,Capital Income
20/09/2017,3884647,535.5,GL Education Group Ltd,201806,Schools,Supplies & Services
19/07/2017,2420993,958.33,Gloucestershire College,201804,Dedicated Schools Grant,Support Services
08/08/2017,3880869,"1,066.00",Gloucestershire County Council,201805,Dedicated Schools Grant,Support Services
19/07/2017,3879073,420,Go Active Group,201804,Schools,Supplies & Services
24/07/2017,3879593,"2,015.00",Go Active Group,201804,Schools,Supplies & Services
25/07/2017,3879733,"2,500.00",Go Active Group,201804,Schools,Supplies & Services
18/07/2017,2419400,635.75,Goodrich C E Primary Sch Imprest,201804,Schools,Supplies & Services
04/09/2017,2438920,890.62,Goodrich C E Primary Sch Imprest,201806,Schools,Supplies & Services
19/09/2017,2443777,450.3,Goodrich C E Primary Sch Imprest,201806,Schools,Supplies & Services
04/09/2017,2438920,699,Goodrich C E Primary Sch Imprest,201806,Schools Devolved Capital,Capital Expenditure
11/07/2017,3877827,"2,991.20",Goodrich School Meals Ass.,201804,Schools,Supplies & Services
20/09/2017,3884653,"4,586.90",Goodrich School Meals Ass.,201806,Schools,Supplies & Services
05/07/2017,3876850,"12,000.00",Grant Thornton,201804,Growth,Supplies & Services
01/08/2017,3880614,"31,102.00",Grant Thornton,201805,Resources,Supplies & Services
08/08/2017,3881236,760,Greenfield Creations Ltd,201805,Environment and Place,Supplies & Services
03/07/2017,3876241,"1,142.58",Grenke Leasing Ltd,201804,Schools,Supplies & Services
11/07/2017,3877671,897,Grenke Leasing Ltd,201804,Schools,Supplies & Services
17/07/2017,3878470,"1,549.98",Grenke Leasing Ltd,201804,Schools,Supplies & Services
15/09/2017,3883875,"2,085.00",H & G Healthcare Ltd,201806,Public Health,Third Party Payments
25/07/2017,3879166,476,H & H Motors,201804,Environment and Place,Third Party Payments
25/07/2017,3879167,570.4,H & H Motors,201804,Environment and Place,Third Party Payments
17/08/2017,3881932,476,H & H Motors,201805,Environment and Place,Third Party Payments
11/07/2017,3877554,720,H & H Motors,201804,Environment and Place,Transport-Related Expenditure
11/07/2017,3877555,"3,180.00",H & H Motors,201804,Environment and Place,Transport-Related Expenditure
11/07/2017,3877556,"2,500.00",H & H Motors,201804,Environment and Place,Transport-Related Expenditure
11/07/2017,3877557,"3,180.00",H & H Motors,201804,Environment and Place,Transport-Related Expenditure
11/07/2017,3877559,"3,120.00",H & H Motors,201804,Environment and Place,Transport-Related Expenditure
11/08/2017,3881565,"2,340.00",H & H Motors,201805,Environment and Place,Transport-Related Expenditure
11/08/2017,3881597,900,H & H Motors,201805,Environment and Place,Transport-Related Expenditure
11/08/2017,3881599,"1,375.00",H & H Motors,201805,Environment and Place,Transport-Related Expenditure
11/08/2017,3881600,"2,385.00",H & H Motors,201805,Environment and Place,Transport-Related Expenditure
14/08/2017,3881722,"2,225.98",H & H Motors,201805,Environment and Place,Transport-Related Expenditure
03/08/2017,3880837,637,H & H Motors,201805,Schools,Transport-Related Expenditure
08/09/2017,3882916,990,H & H Motors,201806,Schools,Transport-Related Expenditure
17/07/2017,2418477,"1,546.12",H C Westfield School Imprest,201804,Schools,Supplies & Services
25/09/2017,2444812,"1,623.96",H C Westfield School Imprest,201806,Schools,Supplies & Services
17/07/2017,2418477,"1,133.54",H C Westfield School Imprest,201804,Schools,Transport-Related Expenditure
07/07/2017,2417242,"16,524.00","H3 (The Hub, Hospital & Home Teaching Team)",201804,Dedicated Schools Grant,Third Party Payments
03/08/2017,2427975,"16,524.00","H3 (The Hub, Hospital & Home Teaching Team)",201805,Dedicated Schools Grant,Third Party Payments
07/09/2017,2439921,"16,524.00","H3 (The Hub, Hospital & Home Teaching Team)",201806,Dedicated Schools Grant,Third Party Payments
20/09/2017,3884785,555.83,Halfords Ltd,201806,Holding Codes,Holding Codes
07/08/2017,3881112,"9,102.95",Halo Leisure Services Ltd,201805,Communities,Premises-Related Expenditure
24/08/2017,3882392,"4,500.00",Halo Leisure Services Ltd,201805,Communities,Premises-Related Expenditure
06/07/2017,3877058,"30,000.00",Halo Leisure Services Ltd,201804,Environment and Place,Third Party Payments
06/07/2017,3877059,"5,000.00",Halo Leisure Services Ltd,201804,Environment and Place,Third Party Payments
07/09/2017,3883179,"1,000.00",Halo Leisure Services Ltd,201806,Environment and Place,Transfer Payments
05/07/2017,3876825,486.99,Halo Leisure Services Ltd,201804,Public Health,Supplies & Services
11/07/2017,3877748,"2,012.45",Halo Leisure Services Ltd,201804,Public Health,Supplies & Services
11/07/2017,3877545,799.4,Halo Leisure Services Ltd,201804,Schools,Premises-Related Expenditure
11/07/2017,3877546,519.6,Halo Leisure Services Ltd,201804,Schools,Premises-Related Expenditure
11/07/2017,3877672,624,Halo Leisure Services Ltd,201804,Schools,Premises-Related Expenditure
11/07/2017,3877769,433,Halo Leisure Services Ltd,201804,Schools,Premises-Related Expenditure
11/07/2017,3877776,433,Halo Leisure Services Ltd,201804,Schools,Premises-Related Expenditure
11/07/2017,3877779,624,Halo Leisure Services Ltd,201804,Schools,Premises-Related Expenditure
13/07/2017,3878268,433,Halo Leisure Services Ltd,201804,Schools,Premises-Related Expenditure
14/07/2017,3878311,476.3,Halo Leisure Services Ltd,201804,Schools,Premises-Related Expenditure
17/07/2017,3878466,624,Halo Leisure Services Ltd,201804,Schools,Premises-Related Expenditure
04/08/2017,3880925,624,Halo Leisure Services Ltd,201805,Schools,Premises-Related Expenditure
23/08/2017,3882382,519.6,Halo Leisure Services Ltd,201805,Schools,Premises-Related Expenditure
14/09/2017,3883869,476.3,Halo Leisure Services Ltd,201806,Schools,Premises-Related Expenditure
21/07/2017,3879531,951.5,Halo Leisure Services Ltd,201804,Schools,Supplies & Services
25/07/2017,3879695,845.8,Halo Leisure Services Ltd,201804,Schools,Supplies & Services
25/07/2017,3879696,"1,124.50",Halo Leisure Services Ltd,201804,Schools,Supplies & Services
07/08/2017,3881182,624,Halo Leisure Services Ltd,201805,Schools,Supplies & Services
21/09/2017,3884820,"2,729.10",Haptic Networks Ltd,201806,Schools,Supplies & Services
14/09/2017,3883846,"3,333.33",Harrison Clark Rickerbys Ltd,201806,Growth,Supplies & Services
07/07/2017,2417235,590.8,Hay & District Dial a Ride,201804,Environment and Place,Supplies & Services
03/08/2017,2427968,684.47,Hay & District Dial a Ride,201805,Environment and Place,Supplies & Services
07/09/2017,2439914,684.47,Hay & District Dial a Ride,201806,Environment and Place,Supplies & Services
12/07/2017,3877690,675,HCT Construction Consultants Ltd,201804,Growth,Supplies & Services
08/08/2017,3881010,"1,687.50",HCT Construction Consultants Ltd,201805,Growth,Supplies & Services
12/09/2017,3883614,"2,430.00",HCT Construction Consultants Ltd,201806,Growth,Supplies & Services
27/09/2017,3885326,"1,949.50",HCT Construction Consultants Ltd,201806,Growth,Supplies & Services
19/07/2017,3879101,"35,000.00",Healthwatch Herefordshire,201804,Commissioning Adults,Third Party Payments
23/08/2017,3882359,"12,743.00",Healthwatch Herefordshire,201805,Commissioning Adults,Third Party Payments
07/08/2017,3881129,"2,800.00",Healthwatch Worcestershire,201805,Commissioning Adults,Supplies & Services
22/08/2017,3882240,"1,017.00",Heart Of England NHS Foundation Trust,201805,Safeguarding and Family Support,Supplies & Services
20/07/2017,3878754,"16,750.00",Heineken UK Ltd,201804,Resources,Premises-Related Expenditure
10/07/2017,3877387,"16,750.00",Heineken UK Ltd (Scottish & Newcastle UK),201804,Resources,Premises-Related Expenditure
06/07/2017,3876939,"15,876.60",Herdman Coaches Ltd,201804,Environment and Place,Transport-Related Expenditure
31/07/2017,3880229,420,Herdman Coaches Ltd,201804,Schools,Transport-Related Expenditure
01/09/2017,3882766,420,Herdman Coaches Ltd,201806,Schools,Transport-Related Expenditure
03/07/2017,3876380,"543,608.56",Hereford & Worc Fire & Rescue Service,201804,Collection Fund,Collection Fund Accounts
08/08/2017,3881304,"543,608.56",Hereford & Worc Fire & Rescue Service,201805,Collection Fund,Collection Fund Accounts
13/09/2017,3883734,"543,608.56",Hereford & Worc Fire & Rescue Service,201806,Collection Fund,Collection Fund Accounts
03/07/2017,3876383,"41,305.00",Hereford & Worc Fire & Rescue Service,201804,Consolidated Revenue Account,Supplies & Services
20/07/2017,3879341,"41,305.00",Hereford & Worc Fire & Rescue Service,201804,Consolidated Revenue Account,Supplies & Services
22/08/2017,3882282,"36,716.00",Hereford & Worc Fire & Rescue Service,201805,Consolidated Revenue Account,Supplies & Services
20/09/2017,3884724,"36,716.00",Hereford & Worc Fire & Rescue Service,201806,Consolidated Revenue Account,Supplies & Services
13/07/2017,3878087,"13,246.58",Hereford BID Ltd,201804,Growth,Supplies & Services
13/07/2017,3878088,"51,985.52",Hereford BID Ltd,201804,Growth,Supplies & Services
19/07/2017,3879074,795,Hereford Diocesan Board of Finance,201804,Schools,Supplies & Services
15/08/2017,3881788,"2,738.80",Hereford Diocesan Board Of Finance-Ust A/C,201805,Schools,Premises-Related Expenditure
21/08/2017,3882148,"1,989.50",Hereford Diocesan Board Of Finance-Ust A/C,201805,Schools,Premises-Related Expenditure
31/08/2017,3882688,784.93,Hereford Diocesan Board Of Finance-Ust A/C,201805,Schools,Supplies & Services
15/09/2017,3883956,550,Hereford Diocesan Board Of Finance-Ust A/C,201806,Schools,Supplies & Services
07/07/2017,2417243,"60,000.00",Hereford Integrated Behaviour Outreach Service,201804,Dedicated Schools Grant,Third Party Payments
07/07/2017,2417244,"30,875.00",Hereford Integrated Behaviour Outreach Service,201804,Dedicated Schools Grant,Third Party Payments
03/08/2017,2427976,"60,000.00",Hereford Integrated Behaviour Outreach Service,201805,Dedicated Schools Grant,Third Party Payments
03/08/2017,2427977,"30,875.00",Hereford Integrated Behaviour Outreach Service,201805,Dedicated Schools Grant,Third Party Payments
07/09/2017,2439922,"60,000.00",Hereford Integrated Behaviour Outreach Service,201806,Dedicated Schools Grant,Third Party Payments
07/09/2017,2439923,"30,875.00",Hereford Integrated Behaviour Outreach Service,201806,Dedicated Schools Grant,Third Party Payments
04/07/2017,3876658,675,Hereford Integrated Behaviour Outreach Service,201804,Schools,Employees
19/09/2017,3884495,487.5,Hereford Integrated Behaviour Outreach Service,201806,Schools,Supplies & Services
02/08/2017,3880610,"1,174.03",Hereford Market Auctioneers,201805,Environment and Place,Premises-Related Expenditure
31/08/2017,3882717,865,Hereford Market Auctioneers,201805,Resources,Premises-Related Expenditure
05/07/2017,3876786,"2,683.00",Hereford Mobility Centre,201804,Housing & Independent Living Capital,Capital Expenditure
16/08/2017,3881840,"3,591.00",Hereford Mobility Centre,201805,Housing & Independent Living Capital,Capital Expenditure
18/08/2017,3882042,"1,400.00",Hereford Mobility Centre,201805,Housing & Independent Living Capital,Capital Expenditure
22/08/2017,3882243,"3,591.00",Hereford Mobility Centre,201805,Housing & Independent Living Capital,Capital Expenditure
29/08/2017,3882541,"3,350.00",Hereford Mobility Centre,201805,Housing & Independent Living Capital,Capital Expenditure
07/09/2017,3883075,759.4,Hereford Museum Support Group,201806,Growth,Transfer Payments
06/07/2017,3877060,"2,125.00",Hereford Pedicabs Ltd,201804,Communities,Supplies & Services
31/07/2017,3880423,"2,125.00",Hereford Pedicabs Ltd,201804,Communities,Supplies & Services
04/09/2017,3882855,"2,125.00",Hereford Pedicabs Ltd,201806,Communities,Supplies & Services
19/07/2017,2420983,543.57,Hereford Sixth Form College Academy Trust,201804,Dedicated Schools Grant,Support Services
19/07/2017,2420949,958.33,Herefordshire & Ludlow College,201804,Dedicated Schools Grant,Support Services
19/07/2017,2420950,958.33,Herefordshire & Ludlow College,201804,Dedicated Schools Grant,Support Services
19/07/2017,2420951,609.17,Herefordshire & Ludlow College,201804,Dedicated Schools Grant,Support Services
19/07/2017,2420952,609.17,Herefordshire & Ludlow College,201804,Dedicated Schools Grant,Support Services
19/07/2017,2420953,958.33,Herefordshire & Ludlow College,201804,Dedicated Schools Grant,Support Services
19/07/2017,2420954,609.17,Herefordshire & Ludlow College,201804,Dedicated Schools Grant,Support Services
19/07/2017,2420955,609.17,Herefordshire & Ludlow College,201804,Dedicated Schools Grant,Support Services
19/07/2017,2420956,"1,219.17",Herefordshire & Ludlow College,201804,Dedicated Schools Grant,Support Services
19/07/2017,2420957,"1,219.17",Herefordshire & Ludlow College,201804,Dedicated Schools Grant,Support Services
19/07/2017,2420958,958.33,Herefordshire & Ludlow College,201804,Dedicated Schools Grant,Support Services
19/07/2017,2420959,609.17,Herefordshire & Ludlow College,201804,Dedicated Schools Grant,Support Services
19/07/2017,2420960,609.17,Herefordshire & Ludlow College,201804,Dedicated Schools Grant,Support Services
19/07/2017,2420961,609.17,Herefordshire & Ludlow College,201804,Dedicated Schools Grant,Support Services
19/07/2017,2420962,458.33,Herefordshire & Ludlow College,201804,Dedicated Schools Grant,Support Services
19/07/2017,2420964,"1,219.17",Herefordshire & Ludlow College,201804,Dedicated Schools Grant,Support Services
19/07/2017,2420965,609.17,Herefordshire & Ludlow College,201804,Dedicated Schools Grant,Support Services
19/07/2017,2420986,609.17,Herefordshire & Ludlow College,201804,Dedicated Schools Grant,Support Services
19/07/2017,2420988,958.33,Herefordshire & Ludlow College,201804,Dedicated Schools Grant,Support Services
03/07/2017,3876351,"1,438.83",Herefordshire & Ludlow College,201804,Education and Commissioning,Supplies & Services
11/07/2017,3877604,"1,232.83",Herefordshire & Ludlow College,201804,Education and Commissioning,Supplies & Services
20/07/2017,3879291,"3,300.00",Herefordshire & Ludlow College,201804,Education and Commissioning,Supplies & Services
24/07/2017,3879603,"5,400.00",Herefordshire & Ludlow College,201804,Education and Commissioning,Supplies & Services
16/08/2017,3881810,"1,641.33",Herefordshire & Ludlow College,201805,Education and Commissioning,Supplies & Services
01/08/2017,3878028,"40,000.00",Herefordshire Carers Support Ltd,201805,Commissioning Adults,Supplies & Services
29/09/2017,3885764,"40,000.00",Herefordshire Carers Support Ltd,201806,Commissioning Adults,Supplies & Services
17/07/2017,3878517,506.3,Herefordshire Fire Protection Services,201804,Schools,Premises-Related Expenditure
06/07/2017,3877110,466,Herefordshire Governors Association,201804,Schools,Employees
07/07/2017,3877194,533.6,Herefordshire Governors Association,201804,Schools,Supplies & Services
17/07/2017,3878493,457,Herefordshire Governors Association,201804,Schools,Supplies & Services
03/07/2017,3875294,729.01,Herefordshire Group Training Assoc Ltd,201804,Environment and Place,Premises-Related Expenditure
03/07/2017,3876349,"20,750.00",Herefordshire Group Training Assoc Ltd,201804,Resources,Premises-Related Expenditure
25/07/2017,3879770,760.3,Herefordshire Group Training Assoc Ltd,201804,Resources,Premises-Related Expenditure
25/07/2017,3879183,"35,000.00",Herefordshire Housing Ltd,201804,Commissioning Adults,Third Party Payments
03/08/2017,3879120,"35,000.00",Herefordshire Housing Ltd,201805,Commissioning Adults,Third Party Payments
25/07/2017,3879649,"1,834.64",Herefordshire Housing Ltd,201804,Education and Commissioning,Supplies & Services
26/07/2017,3879844,"2,108.60",Herefordshire Housing Ltd,201804,Education and Commissioning,Supplies & Services
31/07/2017,3880374,"4,202.10",Herefordshire Housing Ltd,201804,Education and Commissioning,Supplies & Services
11/07/2017,3877417,495.32,Herefordshire Housing Ltd,201804,Schools,Premises-Related Expenditure
20/09/2017,3884641,946.04,Herefordshire Housing Ltd,201806,Schools,Premises-Related Expenditure
25/07/2017,3879567,"2,930.45",Herefordshire Housing Ltd,201804,Transformation and Safeguarding,Supplies & Services
25/07/2017,3879568,"2,385.64",Herefordshire Housing Ltd,201804,Transformation and Safeguarding,Supplies & Services
21/09/2017,3884791,500,Herefordshire Lore,201806,Environment and Place,Supplies & Services
19/07/2017,2420887,475,Herefordshire Marches Federation Sutton Primary Academy,201804,Dedicated Schools Grant,Support Services
19/07/2017,2421013,475,Herefordshire Marches Federation Sutton Primary Academy,201804,Dedicated Schools Grant,Support Services
19/07/2017,2421062,475,Herefordshire Marches Federation Sutton Primary Academy,201804,Dedicated Schools Grant,Support Services
22/08/2017,2434176,475,Herefordshire Marches Federation Sutton Primary Academy,201805,Dedicated Schools Grant,Support Services
22/08/2017,2434235,475,Herefordshire Marches Federation Sutton Primary Academy,201805,Dedicated Schools Grant,Support Services
22/08/2017,2434276,475,Herefordshire Marches Federation Sutton Primary Academy,201805,Dedicated Schools Grant,Support Services
18/09/2017,2443290,475,Herefordshire Marches Federation Sutton Primary Academy,201806,Dedicated Schools Grant,Support Services
18/09/2017,2443340,475,Herefordshire Marches Federation Sutton Primary Academy,201806,Dedicated Schools Grant,Support Services
18/09/2017,2443435,475,Herefordshire Marches Federation Sutton Primary Academy,201806,Dedicated Schools Grant,Support Services
27/07/2017,3880043,"1,007.20",Herefordshire Marches Federation Sutton Primary Academy,201804,Schools,Support Services
26/09/2017,3885251,530.4,Herefordshire Marches Federation Sutton Primary Academy,201806,Schools,Support Services
19/07/2017,2420748,475,Herefordshire Marches Federation-Kings Caple,201804,Dedicated Schools Grant,Support Services
22/08/2017,2434052,475,Herefordshire Marches Federation-Kings Caple,201805,Dedicated Schools Grant,Support Services
18/09/2017,2443187,475,Herefordshire Marches Federation-Kings Caple,201806,Dedicated Schools Grant,Support Services
19/07/2017,2420734,475,Herefordshire Marches Federation-Lord Scudamore,201804,Dedicated Schools Grant,Support Services
19/07/2017,2420865,475,Herefordshire Marches Federation-Lord Scudamore,201804,Dedicated Schools Grant,Support Services
19/07/2017,2421022,475,Herefordshire Marches Federation-Lord Scudamore,201804,Dedicated Schools Grant,Support Services
22/08/2017,2434038,475,Herefordshire Marches Federation-Lord Scudamore,201805,Dedicated Schools Grant,Support Services
22/08/2017,2434154,475,Herefordshire Marches Federation-Lord Scudamore,201805,Dedicated Schools Grant,Support Services
22/08/2017,2434241,475,Herefordshire Marches Federation-Lord Scudamore,201805,Dedicated Schools Grant,Support Services
18/09/2017,2443175,475,Herefordshire Marches Federation-Lord Scudamore,201806,Dedicated Schools Grant,Support Services
18/09/2017,2443403,475,Herefordshire Marches Federation-Lord Scudamore,201806,Dedicated Schools Grant,Support Services
03/08/2017,2427936,"1,045.00",Herefordshire Marches Federation-Lord Scudamore,201805,Dedicated Schools Grant,Transfer Payments
25/09/2017,3885187,635.65,Herefordshire Marches Federation-Lord Scudamore,201806,Schools,Supplies & Services
01/08/2017,3880615,"1,000.00",Herefordshire Means Business,201805,Growth,Supplies & Services
30/08/2017,3882633,"3,000.00",Herefordshire Oak Buildings,201805,Housing & Independent Living Capital,Capital Expenditure
30/08/2017,3882637,"18,000.00",Herefordshire Oak Buildings,201805,Housing & Independent Living Capital,Capital Expenditure
03/07/2017,3876429,930,Herefordshire Riding For The Disabled,201804,Schools,Supplies & Services
20/09/2017,3884673,440,Herefordshire Riding For The Disabled,201806,Schools,Supplies & Services
04/07/2017,3876661,"21,458.00",Herefordshire Vennture-Hereford Family Pastors,201804,Growth,Transfer Payments
05/07/2017,3876600,"8,660.16",Herefordshire Vision Links,201804,Commissioning Adults,Supplies & Services
08/08/2017,3880793,"8,660.16",Herefordshire Vision Links,201805,Commissioning Adults,Supplies & Services
08/08/2017,3880794,"8,660.16",Herefordshire Vision Links,201805,Commissioning Adults,Supplies & Services
08/08/2017,3880912,"8,660.16",Herefordshire Vision Links,201805,Commissioning Adults,Supplies & Services
08/08/2017,3880913,"8,660.16",Herefordshire Vision Links,201805,Commissioning Adults,Supplies & Services
28/09/2017,3885566,"1,839.00",Herefordshire Vision Links,201806,Commissioning Adults,Supplies & Services
28/07/2017,2424008,"122,552.52",Hesley Group Ltd,201804,Learning Disabilities,Third Party Payments
08/09/2017,3883249,"8,331.42",Hesley Group Ltd,201806,Learning Disabilities,Third Party Payments
08/09/2017,3883250,"8,331.42",Hesley Group Ltd,201806,Learning Disabilities,Third Party Payments
09/08/2017,3881354,"10,000.00",Hfds & Worcs Chamber of Commerce,201805,Growth,Supplies & Services
25/09/2017,3885055,"2,650.00",Hfds & Worcs Chamber of Commerce,201806,Growth,Supplies & Services
13/07/2017,3878101,800,High Town Radio Taxi Group,201804,Environment and Place,Transport-Related Expenditure
13/07/2017,3878103,468,High Town Radio Taxi Group,201804,Environment and Place,Transport-Related Expenditure
11/08/2017,3881558,600,High Town Radio Taxi Group,201805,Environment and Place,Transport-Related Expenditure
04/07/2017,3876286,"1,492.16",Highground Maintenance Limited,201804,Schools,Premises-Related Expenditure
18/07/2017,3878515,678.45,Highground Maintenance Limited,201804,Schools,Premises-Related Expenditure
25/07/2017,3879702,511.38,Highground Maintenance Limited,201804,Schools,Premises-Related Expenditure
25/07/2017,3879703,511.38,Highground Maintenance Limited,201804,Schools,Premises-Related Expenditure
25/07/2017,3879704,511.38,Highground Maintenance Limited,201804,Schools,Premises-Related Expenditure
25/07/2017,3879705,511.38,Highground Maintenance Limited,201804,Schools,Premises-Related Expenditure
31/07/2017,3880311,968.98,Highground Maintenance Limited,201804,Schools,Premises-Related Expenditure
14/08/2017,3881543,678.45,Highground Maintenance Limited,201805,Schools,Premises-Related Expenditure
19/09/2017,3884352,968.98,Highground Maintenance Limited,201806,Schools,Premises-Related Expenditure
19/09/2017,3884353,968.98,Highground Maintenance Limited,201806,Schools,Premises-Related Expenditure
21/09/2017,3884818,511.38,Highground Maintenance Limited,201806,Schools,Premises-Related Expenditure
27/09/2017,3885441,511.38,Highground Maintenance Limited,201806,Schools,Premises-Related Expenditure
21/09/2017,3884919,"2,500.00",Highways England Company Ltd,201806,Commissioning Capital,Capital Expenditure
25/07/2017,3876743,"16,714.28",Highwell House,201804,Physical Disabilities,Third Party Payments
22/09/2017,3884934,"2,400.00",HM Courts & Tribunals Service,201806,Environment and Place,Supplies & Services
17/08/2017,3882018,"2,895.00",HM Courts & Tribunals Service,201805,Corporate,Supplies & Services
14/09/2017,3884036,"1,938.00",HM Courts & Tribunals Service,201806,Corporate,Supplies & Services
19/09/2017,3884344,681,HM Courts & Tribunals Service (Direct Debit),201806,Environment and Place,Supplies & Services
19/07/2017,3878941,"22,050.00",HM Revenue & Customs,201804,Holding Codes,Holding Codes
18/08/2017,3882075,"22,377.00",HM Revenue & Customs,201805,Holding Codes,Holding Codes
20/09/2017,2443881,"23,089.00",HM Revenue & Customs,201806,Holding Codes,Holding Codes
19/07/2017,3878937,"26,665.20",HM Revenue & Customs,201804,Communities,Employees
14/07/2017,3878306,"2,400.00",HMCTS,201804,Environment and Place,Supplies & Services
07/08/2017,3880830,"1,176.12",HMRC on behalf of Valuation Office Agency,201805,Resources,Supplies & Services
19/09/2017,3884180,426.11,Holdsworth,201806,Schools,Supplies & Services
19/07/2017,2420614,475,Holmer C of E Academy,201804,Dedicated Schools Grant,Support Services
19/07/2017,2420860,475,Holmer C of E Academy,201804,Dedicated Schools Grant,Support Services
19/07/2017,2420907,764.17,Holmer C of E Academy,201804,Dedicated Schools Grant,Support Services
22/08/2017,2433918,475,Holmer C of E Academy,201805,Dedicated Schools Grant,Support Services
22/08/2017,2434150,475,Holmer C of E Academy,201805,Dedicated Schools Grant,Support Services
22/08/2017,2434194,764.17,Holmer C of E Academy,201805,Dedicated Schools Grant,Support Services
18/09/2017,2443268,475,Holmer C of E Academy,201806,Dedicated Schools Grant,Support Services
18/09/2017,2443308,764.17,Holmer C of E Academy,201806,Dedicated Schools Grant,Support Services
05/07/2017,3876771,420,Holmer PCC,201804,Communities,Premises-Related Expenditure
22/09/2017,3884481,658.33,Home Choice Flooring Ltd,201806,Resources,Premises-Related Expenditure
14/07/2017,3878068,"16,625.00",Home Start Herefordshire,201804,Education and Commissioning,Third Party Payments
17/07/2017,3878229,641.5,Hoople Ltd,201804,Adults Operations,Supplies & Services
08/08/2017,3881295,948,Hoople Ltd,201805,Commissioning Adults,Supplies & Services
05/07/2017,3876022,"3,270.94",Hoople Ltd,201804,Communities,Supplies & Services
01/08/2017,3880436,"2,768.30",Hoople Ltd,201805,Communities,Supplies & Services
24/07/2017,3879597,"88,633.00",Hoople Ltd,201804,Corporate,Transfer Payments
11/08/2017,3881553,949,Hoople Ltd,201805,Corporate,Transfer Payments
19/07/2017,2420977,"1,033.33",Hoople Ltd,201804,Dedicated Schools Grant,Support Services
19/07/2017,2420979,"1,219.17",Hoople Ltd,201804,Dedicated Schools Grant,Support Services
19/07/2017,2420980,958.33,Hoople Ltd,201804,Dedicated Schools Grant,Support Services
19/07/2017,2421006,"1,219.17",Hoople Ltd,201804,Dedicated Schools Grant,Support Services
02/08/2017,3880632,"2,200.00",Hoople Ltd,201805,Dedicated Schools Grant,Third Party Payments
21/08/2017,3882102,"2,200.00",Hoople Ltd,201805,Dedicated Schools Grant,Third Party Payments
31/08/2017,3882692,"25,000.00",Hoople Ltd,201805,Director and Management,Third Party Payments
20/07/2017,3877657,900,Hoople Ltd,201804,Directors,Supplies & Services
29/09/2017,3885234,500,Hoople Ltd,201806,Education and Commissioning,Premises-Related Expenditure
28/09/2017,3885235,"20,000.00",Hoople Ltd,201806,Education and Commissioning,Support Services
27/09/2017,3885238,"1,000.00",Hoople Ltd,201806,Environment and Place,Employees
13/07/2017,3877610,880.5,Hoople Ltd,201804,Environment and Place,Supplies & Services
20/09/2017,3884546,884,Hoople Ltd,201806,Environment and Place,Supplies & Services
21/09/2017,3884547,"2,880.00",Hoople Ltd,201806,Environment and Place,Supplies & Services
13/07/2017,3876021,450.1,Hoople Ltd,201804,Holding Codes,Supplies & Services
06/09/2017,3882868,"3,842.50",Hoople Ltd,201806,Resources,Supplies & Services
12/09/2017,3883577,"3,047.50",Hoople Ltd,201806,Resources,Supplies & Services
13/09/2017,3883578,"1,311.33",Hoople Ltd,201806,Resources,Supplies & Services
20/09/2017,3884544,675,Hoople Ltd,201806,Resources,Supplies & Services
08/08/2017,3881210,"6,800.00",Hoople Ltd,201805,Resources,Third Party Payments
12/09/2017,3883576,"1,387,750.00",Hoople Ltd,201806,Resources,Third Party Payments
24/08/2017,3867538,"4,403.00",Hoople Ltd,201805,Resources Capital,Capital Expenditure
12/09/2017,3883579,"31,000.00",Hoople Ltd,201806,Resources Capital,Capital Expenditure
02/08/2017,3879802,"21,944.00",Hoople Ltd,201805,Safeguarding and Family Support,Third Party Payments
17/07/2017,3878324,872.4,Hoople Ltd,201804,Schools,Employees
03/07/2017,3876323,"2,260.00",Hoople Ltd,201804,Schools,Supplies & Services
11/07/2017,3877537,"7,664.80",Hoople Ltd,201804,Schools,Supplies & Services
17/07/2017,3878324,"2,098.80",Hoople Ltd,201804,Schools,Supplies & Services
18/07/2017,3878781,"1,895.50",Hoople Ltd,201804,Schools,Supplies & Services
04/08/2017,3880963,"8,481.25",Hoople Ltd,201805,Schools,Supplies & Services
12/09/2017,3883507,"1,233.00",Hoople Ltd,201806,Schools,Supplies & Services
03/07/2017,3876323,"6,184.80",Hoople Ltd,201804,Schools,Support Services
03/07/2017,3876419,591.21,Hoople Ltd,201804,Schools,Support Services
03/07/2017,3876421,"1,206.00",Hoople Ltd,201804,Schools,Support Services
07/07/2017,3877211,"5,358.18",Hoople Ltd,201804,Schools,Support Services
11/07/2017,3877537,"14,199.80",Hoople Ltd,201804,Schools,Support Services
11/07/2017,3877537,891,Hoople Ltd,201804,Schools,Support Services
11/07/2017,3877537,"1,650.00",Hoople Ltd,201804,Schools,Support Services
11/07/2017,3877537,"2,016.30",Hoople Ltd,201804,Schools,Support Services
17/07/2017,3878324,"4,874.10",Hoople Ltd,201804,Schools,Support Services
04/08/2017,3880963,"1,148.65",Hoople Ltd,201805,Schools,Support Services
21/08/2017,3882186,926.25,Hoople Ltd,201805,Schools,Support Services
11/09/2017,3883508,479.2,Hoople Ltd,201806,Schools,Support Services
22/09/2017,3884973,454,Hoople Ltd,201806,Schools,Support Services
25/09/2017,3884859,454,Hoople Ltd,201806,Schools,Support Services
05/09/2017,3882869,"4,427.50",Hoople Ltd  -,201806,Adults Operations,Third Party Payments
14/07/2017,3878067,"22,500.00",Hope For Children & Their Families Ltd,201804,Education and Commissioning,Third Party Payments
08/08/2017,3880832,"4,220.05",Hope For Children & Their Families Ltd,201805,Resources,Premises-Related Expenditure
03/08/2017,2427938,"1,045.00",Hopeswood Nursery,201805,Dedicated Schools Grant,Transfer Payments
11/07/2017,3877773,"4,136.00",Hulse Yazdi Professional Services,201804,Communities,Supplies & Services
13/07/2017,3878241,"5,720.40",Hulse Yazdi Professional Services,201804,Communities,Supplies & Services
31/07/2017,3880286,945,Hulse Yazdi Professional Services,201804,Communities,Supplies & Services
31/07/2017,3880378,490,Hulse Yazdi Professional Services,201804,Communities,Supplies & Services
01/08/2017,3880644,600,Hulse Yazdi Professional Services,201805,Communities,Supplies & Services
11/08/2017,3881498,"3,212.42",Hulse Yazdi Professional Services,201805,Communities,Supplies & Services
11/08/2017,3881499,"7,176.22",Hulse Yazdi Professional Services,201805,Communities,Supplies & Services
18/08/2017,3882002,600,Hulse Yazdi Professional Services,201805,Communities,Supplies & Services
18/08/2017,3882004,600,Hulse Yazdi Professional Services,201805,Communities,Supplies & Services
25/09/2017,3885054,"4,359.70",Hulse Yazdi Professional Services,201806,Communities,Supplies & Services
25/09/2017,3885134,695,Hulse Yazdi Professional Services,201806,Communities,Supplies & Services
25/09/2017,3885146,695,Hulse Yazdi Professional Services,201806,Communities,Supplies & Services
26/09/2017,3885413,"5,236.40",Hulse Yazdi Professional Services,201806,Communities,Supplies & Services
25/09/2017,2444816,"1,184.00",Hunderton Neighbourhood Nursery,201806,Dedicated Schools Grant,Transfer Payments
07/07/2017,2417236,"2,745.50",HVOSS,201804,Environment and Place,Supplies & Services
03/08/2017,2427969,"3,092.60",HVOSS,201805,Environment and Place,Supplies & Services
07/09/2017,2439915,"3,092.60",HVOSS,201806,Environment and Place,Supplies & Services
29/08/2017,3882558,"1,688.00",HVOSS,201805,Learning Disabilities,Transport-Related Expenditure
29/08/2017,3882560,"1,391.00",HVOSS,201805,Learning Disabilities,Transport-Related Expenditure
29/08/2017,3882561,"1,688.00",HVOSS,201805,Learning Disabilities,Transport-Related Expenditure
29/08/2017,3882562,"1,094.00",HVOSS,201805,Learning Disabilities,Transport-Related Expenditure
07/07/2017,3877324,"2,773.00",I & S Coaches,201804,Environment and Place,Transport-Related Expenditure
07/07/2017,3877325,"2,920.00",I & S Coaches,201804,Environment and Place,Transport-Related Expenditure
11/08/2017,3881598,"2,289.75",I & S Coaches,201805,Environment and Place,Transport-Related Expenditure
14/08/2017,3881724,"2,400.00",I & S Coaches,201805,Environment and Place,Transport-Related Expenditure
19/07/2017,3878916,"7,180.92",ICAS Ltd,201804,Environment and Place,Supplies & Services
19/07/2017,3878917,"1,353.55",ICAS Ltd,201804,Environment and Place,Supplies & Services
14/07/2017,3878245,"2,719.00",IDN Supplies Ltd,201804,Schools,Supplies & Services
01/08/2017,3880515,"2,953.00",IDN Supplies Ltd,201805,Schools,Supplies & Services
14/07/2017,3878245,"6,321.00",IDN Supplies Ltd,201804,Schools Devolved Capital,Capital Expenditure
01/09/2017,3882699,"1,180.00",Ignite CIC,201806,Environment and Place,Supplies & Services
06/07/2017,3877127,"1,362.00",Image Data Group Ltd,201804,Communities,Supplies & Services
19/09/2017,3884483,"1,462.50",Impero Solutions Ltd,201806,Schools,Supplies & Services
30/08/2017,3882218,"5,000.00",Improvement & Development Agency (IDEA),201805,Communities,Supplies & Services
11/08/2017,3881555,"1,151.15",Independent Clinical Services Ltd T/A Thornbury Nursing Services,201805,Dedicated Schools Grant,Third Party Payments
01/08/2017,3880329,"1,200.00",Insight Direct (UK) Ltd,201805,Resources,Supplies & Services
01/08/2017,3880330,480,Insight Direct (UK) Ltd,201805,Resources,Supplies & Services
08/08/2017,3881312,720,Insight Direct (UK) Ltd,201805,Resources,Supplies & Services
11/07/2017,3877624,"1,784.99",Insight Direct (UK) Ltd,201804,Resources Capital,Capital Expenditure
31/07/2017,3880328,"4,121.59",Insight Direct (UK) Ltd,201804,Resources Capital,Capital Expenditure
20/07/2017,3879209,705,Insight Direct (UK) Ltd,201804,Schools Devolved Capital,Capital Expenditure
20/07/2017,3879216,"5,062.05",Insight Direct (UK) Ltd,201804,Schools Devolved Capital,Capital Expenditure
07/09/2017,3883136,453.8,Insignia Limited,201806,Environment and Place,Supplies & Services
29/09/2017,3885484,"2,046.60",In-Situ Europe Ltd,201806,Environment and Place,Premises-Related Expenditure
20/07/2017,3878392,"460,240.76",Integral UK Ltd,201804,Holding Codes,Holding Codes
21/08/2017,3881276,"1,339,550.34",Integral UK Ltd,201805,Holding Codes,Holding Codes
21/07/2017,3879079,"1,155.00",Intermedical (UK) Ltd,201804,Public Health,Supplies & Services
13/07/2017,3876174,"55,939.55",Interserve FS (UK) Ltd,201804,Holding Codes,Holding Codes
14/08/2017,3881269,"55,015.18",Interserve FS (UK) Ltd,201805,Holding Codes,Holding Codes
07/09/2017,3883101,"55,270.19",Interserve FS (UK) Ltd,201806,Holding Codes,Holding Codes
11/09/2017,3883581,450,Invar Mapping Surveys Ltd,201806,Growth Capital,Capital Expenditure
06/09/2017,3883089,"1,435.00",Investec Asset Finance,201806,Schools,Supplies & Services
28/09/2017,3885493,"1,435.00",Investec Asset Finance,201806,Schools,Supplies & Services
21/08/2017,3882169,830.7,IPE Associates UK Ltd,201805,Mental Health,Supplies & Services
28/09/2017,3885510,520.16,Ironbridge Gorge Museum Trust Ltd,201806,Schools,Supplies & Services
05/07/2017,3876793,"22,700.00",Ivington School Governors,201804,Schools,Supplies & Services
03/07/2017,3876198,974,J P Catering,201804,Schools,Supplies & Services
03/07/2017,3876312,"1,221.00",J P Catering,201804,Schools,Supplies & Services
03/07/2017,3876268,981.2,J P Catering,201804,Schools,Supplies & Services
04/07/2017,3876245,"1,652.20",J P Catering,201804,Schools,Supplies & Services
12/07/2017,3877909,853.6,J P Catering,201804,Schools,Supplies & Services
19/07/2017,3878966,827.2,J P Catering,201804,Schools,Supplies & Services
20/07/2017,3879103,"1,265.00",J P Catering,201804,Schools,Supplies & Services
21/07/2017,3879164,638,J P Catering,201804,Schools,Supplies & Services
28/07/2017,3880201,782,J P Catering,201804,Schools,Supplies & Services
28/07/2017,3880202,992.2,J P Catering,201804,Schools,Supplies & Services
17/08/2017,3881997,"1,287.00",J P Catering,201805,Schools,Supplies & Services
26/09/2017,3885207,"1,724.80",J P Catering,201806,Schools,Supplies & Services
11/08/2017,3881516,"3,118.41",Jacobs UK Ltd,201805,Commissioning Capital,Capital Expenditure
11/08/2017,3881378,"1,472.50",Jacobs UK Ltd,201805,Environment and Place,Supplies & Services
11/08/2017,3881377,"1,385.75",Jacobs UK Ltd,201805,Environment and Place,Supplies & Services
26/09/2017,3885295,"6,000.00",Jadu Limited,201806,Communities,Supplies & Services
19/07/2017,2420819,764.17,John Kyrle High School,201804,Dedicated Schools Grant,Support Services
19/07/2017,2420820,475,John Kyrle High School,201804,Dedicated Schools Grant,Support Services
19/07/2017,2421031,475,John Kyrle High School,201804,Dedicated Schools Grant,Support Services
19/07/2017,2421047,764.17,John Kyrle High School,201804,Dedicated Schools Grant,Support Services
22/08/2017,2434110,764.17,John Kyrle High School,201805,Dedicated Schools Grant,Support Services
22/08/2017,2434111,475,John Kyrle High School,201805,Dedicated Schools Grant,Support Services
22/08/2017,2434249,475,John Kyrle High School,201805,Dedicated Schools Grant,Support Services
22/08/2017,2434263,764.17,John Kyrle High School,201805,Dedicated Schools Grant,Support Services
04/09/2017,3882850,"2,140.00",John Kyrle High School,201806,Dedicated Schools Grant,Support Services
18/09/2017,2443348,475,John Kyrle High School,201806,Dedicated Schools Grant,Support Services
18/09/2017,2443358,764.17,John Kyrle High School,201806,Dedicated Schools Grant,Support Services
18/09/2017,2443441,764.17,John Kyrle High School,201806,Dedicated Schools Grant,Support Services
08/08/2017,3880978,500,John Kyrle High School,201805,Education and Commissioning,Supplies & Services
18/07/2017,3878716,831.23,John Masefield High School (Academy),201804,Dedicated Schools Grant,Employees
04/09/2017,3882841,790.73,John Masefield High School (Academy),201806,Dedicated Schools Grant,Employees
26/09/2017,3885324,"2,552.37",John Masefield High School (Academy),201806,Dedicated Schools Grant,Employees
19/07/2017,2420700,475,John Masefield High School (Academy),201804,Dedicated Schools Grant,Support Services
19/07/2017,2420776,475,John Masefield High School (Academy),201804,Dedicated Schools Grant,Support Services
19/07/2017,2420810,475,John Masefield High School (Academy),201804,Dedicated Schools Grant,Support Services
19/07/2017,2420838,475,John Masefield High School (Academy),201804,Dedicated Schools Grant,Support Services
19/07/2017,2420894,475,John Masefield High School (Academy),201804,Dedicated Schools Grant,Support Services
19/07/2017,2421048,"1,079.17",John Masefield High School (Academy),201804,Dedicated Schools Grant,Support Services
19/07/2017,2421082,"1,848.80",John Masefield High School (Academy),201804,Dedicated Schools Grant,Support Services
22/08/2017,2434004,475,John Masefield High School (Academy),201805,Dedicated Schools Grant,Support Services
22/08/2017,2434080,475,John Masefield High School (Academy),201805,Dedicated Schools Grant,Support Services
22/08/2017,2434101,475,John Masefield High School (Academy),201805,Dedicated Schools Grant,Support Services
22/08/2017,2434128,475,John Masefield High School (Academy),201805,Dedicated Schools Grant,Support Services
22/08/2017,2434183,475,John Masefield High School (Academy),201805,Dedicated Schools Grant,Support Services
22/08/2017,2434264,"1,079.17",John Masefield High School (Academy),201805,Dedicated Schools Grant,Support Services
22/08/2017,2434295,764.17,John Masefield High School (Academy),201805,Dedicated Schools Grant,Support Services
18/09/2017,2443143,475,John Masefield High School (Academy),201806,Dedicated Schools Grant,Support Services
18/09/2017,2443215,475,John Masefield High School (Academy),201806,Dedicated Schools Grant,Support Services
18/09/2017,2443250,475,John Masefield High School (Academy),201806,Dedicated Schools Grant,Support Services
18/09/2017,2443297,475,John Masefield High School (Academy),201806,Dedicated Schools Grant,Support Services
18/09/2017,2443359,"1,079.17",John Masefield High School (Academy),201806,Dedicated Schools Grant,Support Services
18/09/2017,2443385,764.17,John Masefield High School (Academy),201806,Dedicated Schools Grant,Support Services
18/09/2017,2443400,475,John Masefield High School (Academy),201806,Dedicated Schools Grant,Support Services
18/09/2017,2443409,475,John Masefield High School (Academy),201806,Dedicated Schools Grant,Support Services
18/09/2017,2443410,475,John Masefield High School (Academy),201806,Dedicated Schools Grant,Support Services
18/09/2017,2443411,475,John Masefield High School (Academy),201806,Dedicated Schools Grant,Support Services
26/07/2017,3879923,799.2,John Masefield High School (Academy),201804,Environment and Place,Transport-Related Expenditure
27/07/2017,3880018,600,John Masefield High School (Academy),201804,Schools,Employees
06/07/2017,3876908,"1,650.00",Jones Coaches Ltd,201804,Environment and Place,Transport-Related Expenditure
06/07/2017,3876910,"3,390.00",Jones Coaches Ltd,201804,Environment and Place,Transport-Related Expenditure
06/07/2017,3876911,"4,200.00",Jones Coaches Ltd,201804,Environment and Place,Transport-Related Expenditure
06/07/2017,3876912,"3,351.00",Jones Coaches Ltd,201804,Environment and Place,Transport-Related Expenditure
19/07/2017,3878978,"2,100.00",Jones Coaches Ltd,201804,Environment and Place,Transport-Related Expenditure
24/07/2017,3879615,"1,237.50",Jones Coaches Ltd,201804,Environment and Place,Transport-Related Expenditure
24/07/2017,3879616,"2,513.25",Jones Coaches Ltd,201804,Environment and Place,Transport-Related Expenditure
24/07/2017,3879617,"2,542.50",Jones Coaches Ltd,201804,Environment and Place,Transport-Related Expenditure
07/07/2017,3877225,510,Jones Coaches Ltd,201804,Schools,Supplies & Services
27/07/2017,3880024,460,Jones Coaches Ltd,201804,Schools,Supplies & Services
22/09/2017,3879543,"1,900.00",Jones Coaches Ltd,201806,Schools,Supplies & Services
04/07/2017,3876734,750,Jones Coaches Ltd,201804,Schools,Transport-Related Expenditure
14/07/2017,3878294,"2,310.00",Jones Coaches Ltd,201804,Schools,Transport-Related Expenditure
20/07/2017,3879211,"1,000.00",Jones Coaches Ltd,201804,Schools,Transport-Related Expenditure
03/07/2017,3876206,"1,186.28",JP Mechanical Services,201804,Schools,Premises-Related Expenditure
04/07/2017,3876410,"1,010.20",Keltic Ltd,201804,Environment and Place,Supplies & Services
01/08/2017,2424428,615,Kes Nursery And Creche,201805,Dedicated Schools Grant,Transfer Payments
23/08/2017,3882173,"85,144.01",Kier Construction - Central Div of Kier Construction Ltd,201805,Children & Young People Capital,Capital Expenditure
30/08/2017,3882606,"27,010.69",Kier Construction - Central Div of Kier Construction Ltd,201805,Children & Young People Capital,Capital Expenditure
14/09/2017,3883729,"234,742.21",Kier Construction - Central Div of Kier Construction Ltd,201806,Children & Young People Capital,Capital Expenditure
27/09/2017,3885380,"498,304.46",Kier Construction - Central Div of Kier Construction Ltd,201806,Children & Young People Capital,Capital Expenditure
18/07/2017,3878747,"252,497.49",Kier Construction - Central Div of Kier Construction Ltd,201804,Resources Capital,Capital Expenditure
12/09/2017,3883145,"216,093.55",Kier Construction - Central Div of Kier Construction Ltd,201806,Resources Capital,Capital Expenditure
11/07/2017,3877249,"1,306.34",Killgerm Chemicals Ltd,201804,Environment and Place,Supplies & Services
11/09/2017,3883307,600,Kimbolton Parish Council,201806,Schools,Supplies & Services
01/09/2017,3882771,"40,000.00",Kimbolton School Governors Fund,201806,Schools,Premises-Related Expenditure
08/09/2017,3883230,"45,000.00",Kimbolton School Governors Fund,201806,Schools,Premises-Related Expenditure
28/07/2017,3880102,"1,275.08",Kingsland Millennium Green Trust,201804,Commissioning Capital,Capital Income
25/07/2017,2422898,"1,283.97",Kingsland School Imprest,201804,Schools,Supplies & Services
19/07/2017,2420944,475,Kingstone & Thruxton Primary School (Academy),201804,Dedicated Schools Grant,Support Services
22/08/2017,2434215,475,Kingstone & Thruxton Primary School (Academy),201805,Dedicated Schools Grant,Support Services
18/09/2017,2443434,475,Kingstone & Thruxton Primary School (Academy),201806,Dedicated Schools Grant,Support Services
18/09/2017,2443439,475,Kingstone & Thruxton Primary School (Academy),201806,Dedicated Schools Grant,Support Services
17/07/2017,3878472,"11,890.65",Kingstone & Thruxton Primary School (Academy),201804,Schools,Supplies & Services
25/07/2017,3879724,580.88,Kingstone & Thruxton Primary School (Academy),201804,Schools,Supplies & Services
19/07/2017,2421024,475,Kingstone High School (Academy),201804,Dedicated Schools Grant,Support Services
22/08/2017,2434243,475,Kingstone High School (Academy),201805,Dedicated Schools Grant,Support Services
26/09/2017,3885318,"1,250.00",Kingstone High School (Academy),201806,Education and Commissioning,Premises-Related Expenditure
26/09/2017,3885319,"1,250.00",Kingstone High School (Academy),201806,Education and Commissioning,Premises-Related Expenditure
21/07/2017,3879437,"1,653.00",Kingswood Colomendy Ltd,201804,Schools,Supplies & Services
12/07/2017,2417586,524.9,Kington Primary School Imprest A/C,201804,Schools,Supplies & Services
03/08/2017,2427964,420.65,Kington Primary School Imprest A/C,201805,Schools,Supplies & Services
20/09/2017,2443944,476.23,Kington Primary School Imprest A/C,201806,Schools,Supplies & Services
20/09/2017,3884624,525,Knipe Whiting Heath & Associates Ltd,201806,Schools,Supplies & Services
05/07/2017,3876597,421.37,Knockhundred Translations Ltd,201804,Safeguarding and Family Support,Supplies & Services
19/07/2017,2420620,475,Lady Hawkins School (Academy),201804,Dedicated Schools Grant,Support Services
19/07/2017,2420735,475,Lady Hawkins School (Academy),201804,Dedicated Schools Grant,Support Services
19/07/2017,2420903,475,Lady Hawkins School (Academy),201804,Dedicated Schools Grant,Support Services
22/08/2017,2433924,475,Lady Hawkins School (Academy),201805,Dedicated Schools Grant,Support Services
22/08/2017,2434039,475,Lady Hawkins School (Academy),201805,Dedicated Schools Grant,Support Services
22/08/2017,2434190,475,Lady Hawkins School (Academy),201805,Dedicated Schools Grant,Support Services
18/09/2017,2443084,475,Lady Hawkins School (Academy),201806,Dedicated Schools Grant,Support Services
18/09/2017,2443176,475,Lady Hawkins School (Academy),201806,Dedicated Schools Grant,Support Services
18/09/2017,2443304,475,Lady Hawkins School (Academy),201806,Dedicated Schools Grant,Support Services
13/07/2017,3878123,"2,708.60",Lady Hawkins School Caterers,201804,Schools,Supplies & Services
13/09/2017,3883723,"1,743.30",Lady Hawkins School Caterers,201806,Schools,Supplies & Services
25/09/2017,2444814,615,Lake View Nursery Ltd,201806,Dedicated Schools Grant,Transfer Payments
22/09/2017,3884910,450,Land Data CIC,201806,Communities,Supplies & Services
01/08/2017,3880344,"14,544.38",Land Use Consultants Ltd,201805,Growth,Supplies & Services
01/09/2017,3882789,"14,544.38",Land Use Consultants Ltd,201806,Growth,Supplies & Services
02/08/2017,3880513,"1,001.00",Laughology Limited,201805,Schools,Supplies & Services
02/08/2017,3880602,"3,069.70",LB Planning,201805,Growth,Third Party Payments
06/07/2017,3877033,440,Le Club Francais,201804,Schools,Supplies & Services
27/09/2017,2446616,550,Ledbury Primary School Imprest,201806,Schools,Employees
20/07/2017,2421857,"9,517.71",Ledbury Primary School Imprest,201804,Schools,Supplies & Services
27/09/2017,2446616,"10,891.88",Ledbury Primary School Imprest,201806,Schools,Supplies & Services
22/09/2017,3884994,"4,449.71",Ledbury Rugby Football Club Ltd,201806,Resources,Premises-Related Expenditure
08/09/2017,3883257,"2,500.00",Ledbury Youth Activities Support,201806,Growth,Transfer Payments
11/09/2017,3883582,545.15,Leominster Building Supplies,201806,Schools,Premises-Related Expenditure
11/07/2017,3877782,517.79,Leominster Pharmacy,201804,Public Health,Supplies & Services
14/09/2017,3883929,"1,358.20",Leominster Sunrise Co-operative,201806,Schools,Premises-Related Expenditure
05/07/2017,3876800,"3,660.00",Leominster Taxis & Travel,201804,Environment and Place,Transport-Related Expenditure
05/07/2017,3876801,"2,200.00",Leominster Taxis & Travel,201804,Environment and Place,Transport-Related Expenditure
06/07/2017,3876906,"1,000.00",Leominster Taxis & Travel,201804,Environment and Place,Transport-Related Expenditure
25/07/2017,3879806,750,Leominster Taxis & Travel,201804,Environment and Place,Transport-Related Expenditure
26/07/2017,3879805,"1,042.50",Leominster Taxis & Travel,201804,Environment and Place,Transport-Related Expenditure
26/07/2017,3879807,"1,390.00",Leominster Taxis & Travel,201804,Environment and Place,Transport-Related Expenditure
01/08/2017,3880589,"2,745.00",Leominster Taxis & Travel,201805,Environment and Place,Transport-Related Expenditure
01/08/2017,3880618,"1,650.00",Leominster Taxis & Travel,201805,Environment and Place,Transport-Related Expenditure
21/07/2017,3879429,"5,042.67",Level Access Bathrooms,201804,Housing & Independent Living Capital,Capital Expenditure
08/08/2017,3881263,"4,970.50",Level Access Bathrooms,201805,Housing & Independent Living Capital,Capital Expenditure
11/09/2017,3883293,"4,206.88",Level Access Bathrooms,201806,Housing & Independent Living Capital,Capital Expenditure
26/09/2017,3885372,448.2,Liberty Services (AR & RF Redding) Ltd,201806,Environment and Place,Supplies & Services
01/08/2017,3880562,500,Life Cycle UK,201805,Environment and Place,Third Party Payments
17/07/2017,3878433,"3,628.00",Linton Parish Council,201804,Environment and Place,Third Party Payments
20/07/2017,2421501,426,Little Dewchurch CE Primary School,201804,Children & Young People Capital,Capital Income
21/08/2017,2433506,426,Little Dewchurch CE Primary School,201805,Children & Young People Capital,Capital Income
18/09/2017,2443039,426,Little Dewchurch CE Primary School,201806,Children & Young People Capital,Capital Income
03/08/2017,2427931,487,Little Leintwardine Nursery CIC,201805,Dedicated Schools Grant,Transfer Payments
25/09/2017,2444817,697,Little Orchard Day Nursery Ltd,201806,Dedicated Schools Grant,Transfer Payments
29/08/2017,3882511,"32,737.36",Livability,201805,Physical Disabilities,Third Party Payments
29/08/2017,3882512,"34,170.99",Livability,201805,Physical Disabilities,Third Party Payments
11/07/2017,3877641,"6,178.56",Llangattock School Ltd,201804,Dedicated Schools Grant,Supplies & Services
19/07/2017,2421057,475,LLangrove CE Academy,201804,Dedicated Schools Grant,Support Services
22/08/2017,2434272,475,LLangrove CE Academy,201805,Dedicated Schools Grant,Support Services
26/09/2017,3885254,"2,290.41",LLangrove CE Academy,201806,Schools,Supplies & Services
28/07/2017,2424009,"300,000.00",Loan & Interest Payments,201804,Growth Capital,Capital Expenditure
08/08/2017,3881102,450,Local Government Association,201805,Director and Management,Supplies & Services
18/09/2017,3883772,603.33,Longtown Group Parish Council,201806,Environment and Place,Third Party Payments
28/07/2017,3880090,477.32,Lord Combustion Services Ltd,201804,Schools,Premises-Related Expenditure
01/08/2017,3880074,468.66,Lord Combustion Services Ltd,201805,Schools,Premises-Related Expenditure
01/08/2017,3880352,541.06,Lord Combustion Services Ltd,201805,Schools,Premises-Related Expenditure
03/08/2017,3880807,433.83,Lord Combustion Services Ltd,201805,Schools,Premises-Related Expenditure
06/09/2017,3882749,438.86,Lord Combustion Services Ltd,201806,Schools,Premises-Related Expenditure
12/09/2017,3883319,"1,248.20",Lord Combustion Services Ltd,201806,Schools,Premises-Related Expenditure
14/09/2017,3883885,647.62,Lord Combustion Services Ltd,201806,Schools,Premises-Related Expenditure
19/09/2017,3884360,495,Luctonians Sports Club Ltd,201806,Schools,Supplies & Services
20/09/2017,3883560,914,Ludlow & District RDA,201806,Schools,Supplies & Services
27/09/2017,3885434,504,Ludlow & District RDA,201806,Schools,Supplies & Services
03/07/2017,3876228,601.25,Lugg Valley Primrose Travel Ltd,201804,Environment and Place,Third Party Payments
03/07/2017,3876230,873,Lugg Valley Primrose Travel Ltd,201804,Environment and Place,Third Party Payments
03/07/2017,3876237,"2,079.90",Lugg Valley Primrose Travel Ltd,201804,Environment and Place,Third Party Payments
11/07/2017,3877704,"4,187.72",Lugg Valley Primrose Travel Ltd,201804,Environment and Place,Third Party Payments
20/07/2017,3879155,"12,499.60",Lugg Valley Primrose Travel Ltd,201804,Environment and Place,Third Party Payments
31/07/2017,3880427,"2,126.70",Lugg Valley Primrose Travel Ltd,201804,Environment and Place,Third Party Payments
01/08/2017,3880672,757.4,Lugg Valley Primrose Travel Ltd,201805,Environment and Place,Third Party Payments
17/08/2017,3881909,"13,102.10",Lugg Valley Primrose Travel Ltd,201805,Environment and Place,Third Party Payments
17/08/2017,3881935,"2,185.20",Lugg Valley Primrose Travel Ltd,201805,Environment and Place,Third Party Payments
18/08/2017,3881936,774.3,Lugg Valley Primrose Travel Ltd,201805,Environment and Place,Third Party Payments
18/08/2017,3881938,590.15,Lugg Valley Primrose Travel Ltd,201805,Environment and Place,Third Party Payments
13/09/2017,3883759,871.3,Lugg Valley Primrose Travel Ltd,201806,Environment and Place,Third Party Payments
15/09/2017,3883932,"13,417.85",Lugg Valley Primrose Travel Ltd,201806,Environment and Place,Third Party Payments
15/09/2017,3883934,"13,417.85",Lugg Valley Primrose Travel Ltd,201806,Environment and Place,Third Party Payments
21/09/2017,3884838,844.7,Lugg Valley Primrose Travel Ltd,201806,Environment and Place,Third Party Payments
22/09/2017,3884839,585.55,Lugg Valley Primrose Travel Ltd,201806,Environment and Place,Third Party Payments
06/07/2017,3876981,"34,083.20",Lugg Valley Primrose Travel Ltd,201804,Environment and Place,Transport-Related Expenditure
11/08/2017,3881575,"24,904.80",Lugg Valley Primrose Travel Ltd,201805,Environment and Place,Transport-Related Expenditure
26/09/2017,3885329,577.5,Lugg Valley Primrose Travel Ltd,201806,Environment and Place,Transport-Related Expenditure
07/07/2017,3877234,758,Lugg Valley Primrose Travel Ltd,201804,Schools,Supplies & Services
21/07/2017,3879445,558,Lugg Valley Primrose Travel Ltd,201804,Schools,Supplies & Services
25/07/2017,3879840,750,Lugg Valley Primrose Travel Ltd,201804,Schools,Transport-Related Expenditure
19/07/2017,2421023,764.17,Lugwardine Primary Academy,201804,Dedicated Schools Grant,Support Services
22/08/2017,2434242,764.17,Lugwardine Primary Academy,201805,Dedicated Schools Grant,Support Services
19/09/2017,2443778,"1,659.73",Luston C P School Imprest,201806,Schools,Premises-Related Expenditure
12/07/2017,2417718,"1,026.43",Luston C P School Imprest,201804,Schools,Supplies & Services
21/07/2017,2421985,"1,382.73",Luston C P School Imprest,201804,Schools,Supplies & Services
19/09/2017,2443778,"1,805.69",Luston C P School Imprest,201806,Schools,Supplies & Services
03/07/2017,3876487,800,Lyndon Scaffolding Plc,201804,Environment and Place,Premises-Related Expenditure
31/07/2017,3879925,"1,835.76",Lyonshall Parish Council,201804,Environment and Place,Third Party Payments
20/07/2017,3878975,"3,300.00",M & J Travel,201804,Environment and Place,Transport-Related Expenditure
20/07/2017,3878976,"2,860.00",M & J Travel,201804,Environment and Place,Transport-Related Expenditure
05/09/2017,3882965,"2,475.00",M & J Travel,201806,Environment and Place,Transport-Related Expenditure
11/09/2017,3883255,"2,145.00",M & J Travel,201806,Environment and Place,Transport-Related Expenditure
04/07/2017,3876644,599,M & M Productions,201804,Schools,Supplies & Services
15/09/2017,3884086,725,M & M Productions,201806,Schools,Supplies & Services
07/07/2017,3877169,"3,389.00",M J Plumbing Services,201804,Housing & Independent Living Capital,Capital Expenditure
10/08/2017,3881432,"1,449.60",M J Plumbing Services,201805,Housing & Independent Living Capital,Capital Expenditure
06/07/2017,3876927,"2,700.00",M&S Coaches Of Hereford Limited,201804,Environment and Place,Transport-Related Expenditure
06/07/2017,3876928,"2,760.00",M&S Coaches Of Hereford Limited,201804,Environment and Place,Transport-Related Expenditure
06/07/2017,3876929,"3,000.00",M&S Coaches Of Hereford Limited,201804,Environment and Place,Transport-Related Expenditure
06/07/2017,3876931,"2,760.00",M&S Coaches Of Hereford Limited,201804,Environment and Place,Transport-Related Expenditure
06/07/2017,3876932,"3,400.00",M&S Coaches Of Hereford Limited,201804,Environment and Place,Transport-Related Expenditure
06/07/2017,3876934,"3,000.00",M&S Coaches Of Hereford Limited,201804,Environment and Place,Transport-Related Expenditure
25/07/2017,3879808,"2,025.00",M&S Coaches Of Hereford Limited,201804,Environment and Place,Transport-Related Expenditure
25/07/2017,3879810,"2,070.00",M&S Coaches Of Hereford Limited,201804,Environment and Place,Transport-Related Expenditure
25/07/2017,3879811,"2,550.00",M&S Coaches Of Hereford Limited,201804,Environment and Place,Transport-Related Expenditure
25/07/2017,3879821,"2,250.00",M&S Coaches Of Hereford Limited,201804,Environment and Place,Transport-Related Expenditure
25/07/2017,3879824,"2,070.00",M&S Coaches Of Hereford Limited,201804,Environment and Place,Transport-Related Expenditure
25/07/2017,3879825,"2,250.00",M&S Coaches Of Hereford Limited,201804,Environment and Place,Transport-Related Expenditure
31/08/2017,3882750,960,M&S Coaches Of Hereford Limited,201806,Schools,Supplies & Services
25/07/2017,3879841,505,M&S Coaches Of Hereford Limited,201804,Schools,Transport-Related Expenditure
14/09/2017,3883791,429,Madley Parish Hall,201806,Schools,Supplies & Services
13/07/2017,2418224,764.85,Madley Primary School Imprest A/C,201804,Schools,Supplies & Services
12/09/2017,2441227,"1,587.89",Madley Primary School Imprest A/C,201806,Schools,Supplies & Services
28/07/2017,3880175,500,Make Your Own History,201804,Schools,Supplies & Services
03/07/2017,3876493,"3,397.50",Malvern Hills Outdoor Education Co Ltd,201804,Schools,Supplies & Services
29/09/2017,3885714,960,Malvern Hills Outdoor Education Co Ltd,201806,Schools,Supplies & Services
28/09/2017,3885556,"3,778.52",Malvern Theatres Trust Ltd,201806,Schools,Supplies & Services
28/09/2017,3885571,"89,625.29",Marches Centre of Manufacturing & Technology CIC,201806,Growth Capital,Capital Expenditure
01/08/2017,3880711,"2,000.00",Marches Energy Agency,201805,Environment and Place,Third Party Payments
10/07/2017,3877429,"4,280.62",Marches Energy Agency,201804,Integrated Commissioning,Capital Expenditure
07/08/2017,3881015,"2,916.67",Marches Family Network,201805,Education and Commissioning,Third Party Payments
16/08/2017,3881757,630,Marches Family Network,201805,Education and Commissioning,Third Party Payments
03/08/2017,2427932,426,Marden Playgroup,201805,Dedicated Schools Grant,Transfer Payments
25/09/2017,2444818,836,Marden Playgroup,201806,Dedicated Schools Grant,Transfer Payments
20/07/2017,2421507,816,Marlbrook  Primary School,201804,Children & Young People Capital,Capital Income
21/08/2017,2433512,816,Marlbrook  Primary School,201805,Children & Young People Capital,Capital Income
18/09/2017,2443045,816,Marlbrook  Primary School,201806,Children & Young People Capital,Capital Income
22/09/2017,3884867,"3,085.74",Marlowe Child & Family Services Ltd,201806,Dedicated Schools Grant,Supplies & Services
22/09/2017,3884868,"2,628.58",Marlowe Child & Family Services Ltd,201806,Dedicated Schools Grant,Supplies & Services
31/08/2017,3882533,987,Marmax Products Ltd,201805,Environment and Place,Supplies & Services
18/09/2017,3884250,642.31,Mastercraft Cycles,201806,Environment and Place,Supplies & Services
27/09/2017,3885177,"3,449.46",Mastercraft Cycles,201806,Environment and Place,Supplies & Services
22/08/2017,3882236,591.5,Mathon Parish Council,201805,Environment and Place,Third Party Payments
06/07/2017,2415637,"5,811.74",Matrix SCM Ltd,201804,Adults Operations,Employees
06/07/2017,2415638,"5,811.74",Matrix SCM Ltd,201804,Adults Operations,Employees
13/07/2017,2417802,"8,902.76",Matrix SCM Ltd,201804,Adults Operations,Employees
20/07/2017,2421357,"26,523.85",Matrix SCM Ltd,201804,Adults Operations,Employees
27/07/2017,2423844,"10,717.59",Matrix SCM Ltd,201804,Adults Operations,Employees
03/08/2017,2427940,"10,828.94",Matrix SCM Ltd,201805,Adults Operations,Employees
10/08/2017,2429078,"5,113.33",Matrix SCM Ltd,201805,Adults Operations,Employees
17/08/2017,2433057,"2,981.29",Matrix SCM Ltd,201805,Adults Operations,Employees
24/08/2017,2435737,"10,034.19",Matrix SCM Ltd,201805,Adults Operations,Employees
31/08/2017,2438635,"7,823.60",Matrix SCM Ltd,201805,Adults Operations,Employees
07/09/2017,2439560,"12,582.20",Matrix SCM Ltd,201806,Adults Operations,Employees
14/09/2017,2442714,"9,734.22",Matrix SCM Ltd,201806,Adults Operations,Employees
21/09/2017,2444473,"4,421.21",Matrix SCM Ltd,201806,Adults Operations,Employees
28/09/2017,2446807,"8,494.99",Matrix SCM Ltd,201806,Adults Operations,Employees
06/07/2017,2415637,627.08,Matrix SCM Ltd,201804,Communities,Employees
06/07/2017,2415638,627.08,Matrix SCM Ltd,201804,Communities,Employees
03/08/2017,2427940,418.05,Matrix SCM Ltd,201805,Communities,Employees
13/07/2017,2417802,"2,081.23",Matrix SCM Ltd,201804,Education and Commissioning,Employees
20/07/2017,2421357,930,Matrix SCM Ltd,201804,Education and Commissioning,Employees
27/07/2017,2423844,936.75,Matrix SCM Ltd,201804,Education and Commissioning,Employees
03/08/2017,2427940,490.24,Matrix SCM Ltd,201805,Education and Commissioning,Employees
17/08/2017,2433057,"1,973.85",Matrix SCM Ltd,201805,Education and Commissioning,Employees
24/08/2017,2435737,932.7,Matrix SCM Ltd,201805,Education and Commissioning,Employees
31/08/2017,2438635,919.2,Matrix SCM Ltd,201805,Education and Commissioning,Employees
27/07/2017,2423844,"1,140.60",Matrix SCM Ltd,201804,Environment and Place,Employees
03/08/2017,2427940,"1,798.56",Matrix SCM Ltd,201805,Mental Health,Employees
10/08/2017,2429078,955.08,Matrix SCM Ltd,201805,Mental Health,Employees
17/08/2017,2433057,"1,619.54",Matrix SCM Ltd,201805,Mental Health,Employees
24/08/2017,2435737,"3,382.92",Matrix SCM Ltd,201805,Mental Health,Employees
07/09/2017,2439560,"3,625.02",Matrix SCM Ltd,201806,Mental Health,Employees
21/09/2017,2444473,"7,421.77",Matrix SCM Ltd,201806,Mental Health,Employees
21/09/2017,2444473,"4,300.15",Matrix SCM Ltd,201806,Public Health,Employees
06/07/2017,2415637,"5,438.37",Matrix SCM Ltd,201804,Safeguarding and Family Support,Employees
06/07/2017,2415638,"5,438.37",Matrix SCM Ltd,201804,Safeguarding and Family Support,Employees
13/07/2017,2417802,"4,561.19",Matrix SCM Ltd,201804,Safeguarding and Family Support,Employees
20/07/2017,2421357,"4,324.70",Matrix SCM Ltd,201804,Safeguarding and Family Support,Employees
27/07/2017,2423844,"3,424.14",Matrix SCM Ltd,201804,Safeguarding and Family Support,Employees
03/08/2017,2427940,"1,649.18",Matrix SCM Ltd,201805,Safeguarding and Family Support,Employees
17/08/2017,2433057,"4,116.51",Matrix SCM Ltd,201805,Safeguarding and Family Support,Employees
31/08/2017,2438635,"1,360.26",Matrix SCM Ltd,201805,Safeguarding and Family Support,Employees
07/09/2017,2439560,"1,512.52",Matrix SCM Ltd,201806,Safeguarding and Family Support,Employees
14/09/2017,2442714,"1,352.07",Matrix SCM Ltd,201806,Safeguarding and Family Support,Employees
28/09/2017,2446807,"2,725.02",Matrix SCM Ltd,201806,Safeguarding and Family Support,Employees
03/07/2017,3876308,420,Mayglothling Waste  Disposal Ltd,201804,Schools,Premises-Related Expenditure
31/07/2017,3880284,527.52,MBE Books Ltd,201804,Schools,Supplies & Services
19/09/2017,3884429,865,MBL Seminars Ltd,201806,Communities,Supplies & Services
06/07/2017,3876870,420,MBMASOSO Ltd,201804,Mental Health,Supplies & Services
06/07/2017,3876871,420,MBMASOSO Ltd,201804,Mental Health,Supplies & Services
06/07/2017,3876872,420,MBMASOSO Ltd,201804,Mental Health,Supplies & Services
06/07/2017,3876873,420,MBMASOSO Ltd,201804,Mental Health,Supplies & Services
28/07/2017,3880076,420,MBMASOSO Ltd,201804,Mental Health,Supplies & Services
28/07/2017,3880079,420,MBMASOSO Ltd,201804,Mental Health,Supplies & Services
28/07/2017,3880081,420,MBMASOSO Ltd,201804,Mental Health,Supplies & Services
28/07/2017,3880075,420,MBMASOSO Ltd,201804,Mental Health,Supplies & Services
28/07/2017,3880080,420,MBMASOSO Ltd,201804,Mental Health,Supplies & Services
09/08/2017,3881282,420,MBMASOSO Ltd,201805,Mental Health,Supplies & Services
09/08/2017,3881278,420,MBMASOSO Ltd,201805,Mental Health,Supplies & Services
09/08/2017,3881279,420,MBMASOSO Ltd,201805,Mental Health,Supplies & Services
16/08/2017,3881759,420,MBMASOSO Ltd,201805,Mental Health,Supplies & Services
16/08/2017,3881761,420,MBMASOSO Ltd,201805,Mental Health,Supplies & Services
16/08/2017,3881763,420,MBMASOSO Ltd,201805,Mental Health,Supplies & Services
16/08/2017,3881764,420,MBMASOSO Ltd,201805,Mental Health,Supplies & Services
22/08/2017,3882161,420,MBMASOSO Ltd,201805,Mental Health,Supplies & Services
22/08/2017,3882162,420,MBMASOSO Ltd,201805,Mental Health,Supplies & Services
22/08/2017,3882166,420,MBMASOSO Ltd,201805,Mental Health,Supplies & Services
22/08/2017,3882167,420,MBMASOSO Ltd,201805,Mental Health,Supplies & Services
30/08/2017,3882538,420,MBMASOSO Ltd,201805,Mental Health,Supplies & Services
30/08/2017,3882539,420,MBMASOSO Ltd,201805,Mental Health,Supplies & Services
30/08/2017,3882540,420,MBMASOSO Ltd,201805,Mental Health,Supplies & Services
30/08/2017,3882546,420,MBMASOSO Ltd,201805,Mental Health,Supplies & Services
30/08/2017,3882547,420,MBMASOSO Ltd,201805,Mental Health,Supplies & Services
12/09/2017,3883627,420,MBMASOSO Ltd,201806,Mental Health,Supplies & Services
12/09/2017,3883628,420,MBMASOSO Ltd,201806,Mental Health,Supplies & Services
12/09/2017,3883629,420,MBMASOSO Ltd,201806,Mental Health,Supplies & Services
21/09/2017,3884754,420,MBMASOSO Ltd,201806,Mental Health,Supplies & Services
21/09/2017,3884757,420,MBMASOSO Ltd,201806,Mental Health,Supplies & Services
21/09/2017,3884758,420,MBMASOSO Ltd,201806,Mental Health,Supplies & Services
29/08/2017,3882607,839.96,McLarens,201805,Resources,Premises-Related Expenditure
11/07/2017,3877700,691.6,MDR Theatre Services,201804,Schools,Premises-Related Expenditure
14/09/2017,3883981,"1,028.00",Melcon Hereford Ltd,201806,Schools,Premises-Related Expenditure
14/09/2017,3883983,503,Melcon Hereford Ltd,201806,Schools,Premises-Related Expenditure
26/07/2017,3879875,700,Melton Support Services Ltd,201804,Schools,Premises-Related Expenditure
13/07/2017,3877929,"1,600.00",Meltwater (UK) Ltd,201804,Communities,Supplies & Services
12/09/2017,3883422,500,Meltwater (UK) Ltd,201806,Communities,Supplies & Services
15/09/2017,3883839,"1,250.00",Meltwater (UK) Ltd,201806,Communities,Supplies & Services
11/09/2017,3883355,645,Meritec Ltd,201806,Schools,Supplies & Services
03/08/2017,2427933,"1,471.00",Merry Go Round Day Nursery @ Riverside,201805,Dedicated Schools Grant,Transfer Payments
25/09/2017,2444815,615,Merry Go Round Day Nursery @ Riverside,201806,Dedicated Schools Grant,Transfer Payments
26/07/2017,3879860,"32,500.00",Merry Go Round Day Nursery @ Riverside,201804,Schools,Premises-Related Expenditure
05/07/2017,3876592,"1,932.63",Metric Group Ltd,201804,Environment and Place,Supplies & Services
05/07/2017,3876593,"1,643.94",Metric Group Ltd,201804,Environment and Place,Supplies & Services
20/07/2017,3879113,456,Metric Group Ltd,201804,Environment and Place,Supplies & Services
06/09/2017,3882962,"2,671.92",Metric Group Ltd,201806,Environment and Place,Supplies & Services
06/09/2017,3882963,"1,794.00",Metric Group Ltd,201806,Environment and Place,Supplies & Services
11/07/2017,3877629,428.64,Midshire Business Systems Ltd,201804,Schools,Supplies & Services
12/07/2017,3877809,918.17,Midshire Business Systems Ltd,201804,Schools,Supplies & Services
12/07/2017,3877811,506.58,Midshire Business Systems Ltd,201804,Schools,Supplies & Services
08/09/2017,3883248,481.61,Midshire Business Systems Ltd,201806,Schools,Supplies & Services
11/09/2017,3883321,813.8,Midshire Business Systems Ltd,201806,Schools,Supplies & Services
19/09/2017,3884446,"1,418.16",Midshire Communications Ltd,201806,Schools,Supplies & Services
11/08/2017,3881602,"17,308.59",Milkwood Care Ltd T/A Ganarew House,201805,Physical Disabilities,Third Party Payments
20/07/2017,3879116,"10,028.00",Millhouse Residential Care Home,201804,Learning Disabilities,Third Party Payments
30/08/2017,3882595,"10,028.00",Millhouse Residential Care Home,201805,Learning Disabilities,Third Party Payments
12/09/2017,3883437,"10,028.00",Millhouse Residential Care Home,201806,Learning Disabilities,Third Party Payments
06/07/2017,3876943,"1,188.00",Minibus Services,201804,Learning Disabilities,Transport-Related Expenditure
06/07/2017,3876945,"1,100.00",Minibus Services,201804,Learning Disabilities,Transport-Related Expenditure
06/07/2017,3876946,"1,320.00",Minibus Services,201804,Learning Disabilities,Transport-Related Expenditure
10/08/2017,3881455,"1,134.00",Minibus Services,201805,Learning Disabilities,Transport-Related Expenditure
10/08/2017,3881456,"1,050.00",Minibus Services,201805,Learning Disabilities,Transport-Related Expenditure
10/08/2017,3881457,"1,200.00",Minibus Services,201805,Learning Disabilities,Transport-Related Expenditure
04/09/2017,3882907,780,Minibus Services,201806,Learning Disabilities,Transport-Related Expenditure
04/09/2017,3882908,"1,188.00",Minibus Services,201806,Learning Disabilities,Transport-Related Expenditure
04/09/2017,3882909,"1,100.00",Minibus Services,201806,Learning Disabilities,Transport-Related Expenditure
20/07/2017,3879134,798.02,Miranda's Cleaning & Ironing Service,201804,Schools,Premises-Related Expenditure
26/07/2017,3879716,650.64,Miranda's Cleaning & Ironing Service,201804,Schools,Premises-Related Expenditure
13/07/2017,3876522,"2,528.69",MISL Ltd,201804,Communities,Supplies & Services
22/08/2017,3882259,700,Monmouth Canoe & Activity Centre Ltd,201805,Environment and Place,Supplies & Services
11/08/2017,3881546,500,Monmouthshire Meadows Group,201805,Environment and Place,Transfer Payments
14/09/2017,3883984,"2,575.51",Monnow Electrical Services Ltd,201806,Schools,Premises-Related Expenditure
12/07/2017,3877485,"2,967.36",Moorfield House Surgery,201804,Environment and Place,Supplies & Services
08/08/2017,3880972,"2,637.73",Moorfield House Surgery,201805,Environment and Place,Supplies & Services
19/09/2017,3884192,"2,475.36",Moorfield House Surgery,201806,Environment and Place,Supplies & Services
19/07/2017,2420616,475,Mordiford Church of England Primary School,201804,Dedicated Schools Grant,Support Services
19/07/2017,2420805,475,Mordiford Church of England Primary School,201804,Dedicated Schools Grant,Support Services
19/07/2017,2421039,475,Mordiford Church of England Primary School,201804,Dedicated Schools Grant,Support Services
19/07/2017,2421040,475,Mordiford Church of England Primary School,201804,Dedicated Schools Grant,Support Services
19/07/2017,2421058,475,Mordiford Church of England Primary School,201804,Dedicated Schools Grant,Support Services
22/08/2017,2433920,475,Mordiford Church of England Primary School,201805,Dedicated Schools Grant,Support Services
22/08/2017,2434096,475,Mordiford Church of England Primary School,201805,Dedicated Schools Grant,Support Services
22/08/2017,2434257,475,Mordiford Church of England Primary School,201805,Dedicated Schools Grant,Support Services
22/08/2017,2434258,475,Mordiford Church of England Primary School,201805,Dedicated Schools Grant,Support Services
22/08/2017,2434299,704.84,Mordiford Church of England Primary School,201805,Dedicated Schools Grant,Support Services
18/09/2017,2443080,475,Mordiford Church of England Primary School,201806,Dedicated Schools Grant,Support Services
18/09/2017,2443227,475,Mordiford Church of England Primary School,201806,Dedicated Schools Grant,Support Services
18/09/2017,2443355,475,Mordiford Church of England Primary School,201806,Dedicated Schools Grant,Support Services
18/09/2017,2443390,475,Mordiford Church of England Primary School,201806,Dedicated Schools Grant,Support Services
21/09/2017,3884861,458.66,Morleys Of Bicester Ltd,201806,Schools,Premises-Related Expenditure
26/09/2017,3885280,551.94,Morleys Of Bicester Ltd,201806,Schools,Premises-Related Expenditure
09/08/2017,3880958,535,Mountain Lane Primary School,201805,Dedicated Schools Grant,Support Services
07/09/2017,3883196,775,Mr Clean (Hereford) Limited,201806,Schools,Premises-Related Expenditure
07/07/2017,3877158,"5,578.00",MVF Builders Ltd,201804,Housing & Independent Living Capital,Capital Expenditure
21/07/2017,3879427,"3,471.00",MVF Builders Ltd,201804,Housing & Independent Living Capital,Capital Expenditure
17/08/2017,3882022,"3,361.00",MVF Builders Ltd,201805,Housing & Independent Living Capital,Capital Expenditure
22/08/2017,3882247,"3,493.25",MVF Builders Ltd,201805,Housing & Independent Living Capital,Capital Expenditure
19/09/2017,3884450,"5,191.00",MVF Builders Ltd,201806,Housing & Independent Living Capital,Capital Expenditure
08/08/2017,3881144,439.4,MWUK Ltd T/A Alexandra,201805,Adults Operations,Supplies & Services
03/07/2017,3876235,795,Nabma,201804,Environment and Place,Supplies & Services
07/09/2017,3882666,"1,190.00",National Museum & Galleries of Wales,201806,Communities,Supplies & Services
19/07/2017,2420930,"3,061.68",National Star College,201804,Dedicated Schools Grant,Support Services
19/07/2017,2420931,"1,116.93",National Star College,201804,Dedicated Schools Grant,Support Services
19/07/2017,2420932,"4,013.76",National Star College,201804,Dedicated Schools Grant,Support Services
19/07/2017,2420933,"1,512.32",National Star College,201804,Dedicated Schools Grant,Support Services
19/07/2017,2420935,688,National Star College,201804,Dedicated Schools Grant,Support Services
19/07/2017,2420936,"1,533.42",National Star College,201804,Dedicated Schools Grant,Support Services
19/07/2017,2420937,"1,547.88",National Star College,201804,Dedicated Schools Grant,Support Services
19/07/2017,2420938,"1,565.83",National Star College,201804,Dedicated Schools Grant,Support Services
19/07/2017,2420939,885.82,National Star College,201804,Dedicated Schools Grant,Support Services
19/07/2017,2420940,965.71,National Star College,201804,Dedicated Schools Grant,Support Services
19/07/2017,2420941,987.16,National Star College,201804,Dedicated Schools Grant,Support Services
19/07/2017,2420966,"1,575.87",National Star College,201804,Dedicated Schools Grant,Support Services
19/07/2017,2420967,"1,330.67",National Star College,201804,Dedicated Schools Grant,Support Services
19/07/2017,2420969,417.48,National Star College,201804,Dedicated Schools Grant,Support Services
19/07/2017,2420970,"1,370.77",National Star College,201804,Dedicated Schools Grant,Support Services
19/07/2017,2420971,"1,143.25",National Star College,201804,Dedicated Schools Grant,Support Services
19/07/2017,2421014,"3,387.13",National Star College,201804,Dedicated Schools Grant,Support Services
19/07/2017,2421041,575.99,National Star College,201804,Dedicated Schools Grant,Support Services
19/07/2017,2421046,552.32,National Star College,201804,Dedicated Schools Grant,Support Services
10/08/2017,3881439,"27,599.31",National Star College,201805,Dedicated Schools Grant,Support Services
04/07/2017,3876361,"36,424.98",National Star College,201804,Dedicated Schools Grant,Third Party Payments
15/09/2017,3883836,"6,121.00",National Youth Advocacy Service (nyas),201806,Education and Commissioning,Third Party Payments
15/09/2017,3883835,"17,409.25",National Youth Advocacy Service (nyas),201806,Education and Commissioning,Third Party Payments
21/07/2017,2421978,669.72,Natwest One Card (Direct Debit A/C),201804,Communities,Supplies & Services
27/07/2017,2423890,812.58,Natwest One Card (Direct Debit A/C),201804,Education and Commissioning,Supplies & Services
01/08/2017,2424433,812.61,Natwest One Card (Direct Debit A/C),201805,Education and Commissioning,Supplies & Services
21/07/2017,2421904,"2,305.30",Natwest One Card (Direct Debit A/C),201804,Resources,Premises-Related Expenditure
04/08/2017,3881030,"2,734.45",Neopost Finance Ltd,201805,Communities,Supplies & Services
20/07/2017,3879129,"1,436.06",Neopost Finance Ltd,201804,Resources,Supplies & Services
18/08/2017,3882109,"1,126.66",Neopost Finance Ltd,201805,Resources,Supplies & Services
04/09/2017,3882930,843.88,Neopost Finance Ltd,201806,Resources,Supplies & Services
04/09/2017,3882932,611.37,Neopost Finance Ltd,201806,Resources,Supplies & Services
06/07/2017,3877010,"10,126.33",Neopost Ltd,201804,Resources,Supplies & Services
12/07/2017,3877902,"1,136.80",Neopost Ltd,201804,Resources,Supplies & Services
12/07/2017,3877903,"2,079.82",Neopost Ltd,201804,Resources,Supplies & Services
02/08/2017,3880636,"5,000.00",Neopost Ltd,201805,Resources,Supplies & Services
04/08/2017,3880838,"1,018.00",Neopost Ltd,201805,Resources,Supplies & Services
17/08/2017,3882023,"3,000.00",Neopost Ltd,201805,Resources,Supplies & Services
08/09/2017,3883263,"2,609.26",Neopost Ltd,201806,Resources,Supplies & Services
14/09/2017,3883611,"2,015.00",Neopost Ltd,201806,Resources,Supplies & Services
24/08/2017,3882376,638.75,Network Rail,201805,Resources,Premises-Related Expenditure
19/07/2017,2420991,"3,378.17",New College,201804,Dedicated Schools Grant,Support Services
07/07/2017,3874342,"2,124.00",New Start Networks CIC,201804,Education and Commissioning,Supplies & Services
11/07/2017,3877517,425,Newbridge Farm Park,201804,Schools,Supplies & Services
21/07/2017,3879440,465,Newbridge Farm Park,201804,Schools,Supplies & Services
06/07/2017,3876959,790,Newsquest Media Group Ltd,201804,Commissioning Adults,Supplies & Services
21/09/2017,3884578,788,Newsquest Media Group Ltd,201806,Environment and Place,Supplies & Services
21/09/2017,3884579,788,Newsquest Media Group Ltd,201806,Environment and Place,Supplies & Services
21/09/2017,3884580,788,Newsquest Media Group Ltd,201806,Environment and Place,Supplies & Services
04/07/2017,3876655,"1,317.00",Newsquest Media Group Ltd,201804,Growth,Supplies & Services
04/07/2017,3876657,"1,695.47",Newsquest Media Group Ltd,201804,Growth,Supplies & Services
04/07/2017,3876678,968.88,Newsquest Media Group Ltd,201804,Growth,Supplies & Services
14/08/2017,3881692,456,Newsquest Media Group Ltd,201805,Growth,Supplies & Services
14/07/2017,3878408,420.83,Newsquest Media Group Ltd,201804,Safeguarding and Family Support,Supplies & Services
07/08/2017,3881082,450,Nicholas O'Sullivan T/A Fire and Risk Management Services,201805,Schools,Premises-Related Expenditure
04/09/2017,3882896,440,Nicholas O'Sullivan T/A Fire and Risk Management Services,201806,Schools,Supplies & Services
17/07/2017,3878443,429.73,NJ Electrical Services Ltd,201804,Schools,Premises-Related Expenditure
03/08/2017,2427934,557,Noahs Ark Pre-School,201805,Dedicated Schools Grant,Transfer Payments
10/07/2017,3877414,"1,432.00",Northamptonshire County Council,201804,Schools,Supplies & Services
12/07/2017,3877961,"4,345.00",Northamptonshire County Council,201804,Schools,Supplies & Services
27/09/2017,3885467,435,Northamptonshire County Council,201806,Schools,Supplies & Services
25/07/2017,3879697,"1,148.00",Northern Link Traffic Data Consultancy Ltd,201804,Commissioning Capital,Capital Expenditure
25/07/2017,3879769,"1,950.00",Northern Link Traffic Data Consultancy Ltd,201804,Commissioning Capital,Capital Expenditure
04/08/2017,3881009,"1,100.00",Northern Link Traffic Data Consultancy Ltd,201805,Commissioning Capital,Capital Expenditure
21/08/2017,3882227,950,Northern Link Traffic Data Consultancy Ltd,201805,Environment and Place,Premises-Related Expenditure
25/07/2017,3879768,"1,600.00",Northern Link Traffic Data Consultancy Ltd,201804,Environment and Place,Third Party Payments
10/07/2017,3877177,"1,299.80",Northgate Public Services (UK) Ltd,201804,Communities,Supplies & Services
08/08/2017,3881070,"1,256.15",Northgate Public Services (UK) Ltd,201805,Communities,Supplies & Services
05/09/2017,3882877,"1,428.70",Northgate Public Services (UK) Ltd,201806,Communities,Supplies & Services
01/08/2017,3880324,"67,361.48",Nottingham Rehab Ltd,201805,Commissioning Adults,Supplies & Services
01/08/2017,3880325,"86,686.02",Nottingham Rehab Ltd,201805,Commissioning Adults,Supplies & Services
21/08/2017,3882120,"65,308.70",Nottingham Rehab Ltd,201805,Commissioning Adults,Supplies & Services
01/08/2017,3880324,"12,742.35",Nottingham Rehab Ltd,201805,Commissioning Adults,Transport-Related Expenditure
01/08/2017,3880325,"16,388.85",Nottingham Rehab Ltd,201805,Commissioning Adults,Transport-Related Expenditure
21/08/2017,3882120,"15,001.65",Nottingham Rehab Ltd,201805,Commissioning Adults,Transport-Related Expenditure
20/07/2017,3879396,"12,682.36",Nottingham Rehab Ltd,201804,Transformation and Safeguarding,Supplies & Services
20/07/2017,3879397,"18,320.92",Nottingham Rehab Ltd,201804,Transformation and Safeguarding,Supplies & Services
29/08/2017,3882587,"18,362.98",Nottingham Rehab Ltd,201805,Transformation and Safeguarding,Supplies & Services
20/09/2017,3884775,"11,665.17",Nottingham Rehab Ltd,201806,Transformation and Safeguarding,Supplies & Services
02/08/2017,3880754,"6,750.00",Notts Sport Limited,201805,Resources,Premises-Related Expenditure
13/07/2017,3878118,877.5,Novatech  Ltd,201804,Schools,Supplies & Services
14/07/2017,3878342,480,Novatech  Ltd,201804,Schools,Supplies & Services
15/09/2017,3883940,417.53,NPOWER (Electricity),201806,Environment and Place,Premises-Related Expenditure
03/08/2017,3880790,"1,306.45",NPOWER (Electricity),201805,Resources,Premises-Related Expenditure
25/09/2017,3884253,973.88,NPOWER (Electricity),201806,Schools,Premises-Related Expenditure
02/08/2017,3880419,"1,447.00",Npower (Gas Supply),201805,Environment and Place,Premises-Related Expenditure
21/07/2017,3879438,"1,003.10",NSM Training & Consultancy Ltd,201804,Schools,Employees
25/07/2017,3879855,518,NSSC Operations Ltd,201804,Schools,Supplies & Services
03/07/2017,3876232,790,NWN Media Ltd,201804,Commissioning Adults,Supplies & Services
18/08/2017,3882039,708.75,NWN Media Ltd,201805,Communities,Supplies & Services
28/08/2017,3882493,500,NWN Media Ltd,201805,Environment and Place,Supplies & Services
11/09/2017,3883448,"1,000.00",NWN Media Ltd,201806,Environment and Place,Supplies & Services
05/07/2017,3876599,"6,965.00",Oaker Wood Leisure Ltd,201804,Schools,Supplies & Services
11/07/2017,3877715,460,Oaker Wood Leisure Ltd,201804,Schools,Supplies & Services
13/07/2017,3878130,"9,350.00",Oaker Wood Leisure Ltd,201804,Schools,Supplies & Services
24/08/2017,3882332,"1,000.00",Oaker Wood Leisure Ltd,201805,Schools,Supplies & Services
21/09/2017,3884887,500,Oaker Wood Leisure Ltd,201806,Schools,Supplies & Services
29/09/2017,3885694,"2,250.00",Oaker Wood Leisure Ltd,201806,Schools,Supplies & Services
14/07/2017,3878217,420,Octaga Security Services Ltd,201804,Environment and Place,Supplies & Services
02/08/2017,3880512,"1,078.05",Octaga Security Services Ltd,201805,Environment and Place,Supplies & Services
06/09/2017,3883042,575,Ofcom (Spectrum Licencing),201806,Environment and Place,Supplies & Services
18/07/2017,3878715,508.33,One Creative Environments Ltd,201804,Growth Capital,Capital Expenditure
10/07/2017,3877450,505,One Team Logic Ltd,201804,Schools,Supplies & Services
12/07/2017,3877681,"13,020.75",Onside Independent Advocacy,201804,Commissioning Adults,Third Party Payments
12/07/2017,3877682,"15,000.00",Onside Independent Advocacy,201804,Commissioning Adults,Third Party Payments
12/07/2017,3877683,"20,728.75",Onside Independent Advocacy,201804,Commissioning Adults,Third Party Payments
12/07/2017,3877684,"6,909.57",Onside Independent Advocacy,201804,Commissioning Adults,Third Party Payments
12/07/2017,3877685,"5,000.00",Onside Independent Advocacy,201804,Commissioning Adults,Third Party Payments
12/07/2017,3877701,"4,340.25",Onside Independent Advocacy,201804,Commissioning Adults,Third Party Payments
11/09/2017,3883449,"16,100.00",Onside Independent Advocacy,201806,Commissioning Adults,Third Party Payments
19/07/2017,3875852,"10,284.86",Orange PLC (Airtime),201804,Communities,Supplies & Services
26/07/2017,3879870,"5,185.12",Orange PLC (Airtime),201804,Communities,Supplies & Services
24/08/2017,3882347,"5,187.47",Orange PLC (Airtime),201805,Communities,Supplies & Services
20/09/2017,3884602,"7,077.18",Orange PLC (Airtime),201806,Communities,Supplies & Services
28/09/2017,3885628,"1,470.00",Orange PLC (Equipment),201806,Environment and Place,Supplies & Services
10/08/2017,3881431,"5,416.67",Orbis Education & Care,201805,Dedicated Schools Grant,Supplies & Services
07/09/2017,3883170,"5,416.67",Orbis Education & Care,201806,Dedicated Schools Grant,Supplies & Services
07/09/2017,3883171,"5,416.67",Orbis Education & Care,201806,Dedicated Schools Grant,Supplies & Services
20/07/2017,3878955,"2,735.16",Orbis Education & Care,201804,Education and Commissioning,Third Party Payments
05/09/2017,3882884,"1,367.58",Orbis Education & Care,201806,Education and Commissioning,Third Party Payments
12/09/2017,3883490,"2,397.63",Orbis Education & Care,201806,Education and Commissioning,Third Party Payments
15/08/2017,3881770,570.8,Orchid Cellmark Ltd,201805,Communities,Supplies & Services
04/07/2017,2413949,"1,077.84",Orleton C.E. Primary School Imprest,201804,Schools,Premises-Related Expenditure
